{"text_format":"1","workbook":"xlsx","n_sheets":22,"sheets":["18M202218","18M2018","18M2019","18M2018-19","18M2020","18M2021","18M2022","18M2023","18M2024","18M2025","25M2019","25M2020","25M2021","25M2022","25M2023","25M2024","25M2025","25M2026","25M2027","25Mtest","Feuil1","Feuil3"],"not_rendered":{"charts":0,"images":13,"macros":1,"external_links":0,"defined_names":0,"comments":0,"pivot_tables":0},"unopened":[],"bounds":{"document_bytes":16777216,"sheet_cells":100000,"rows_first":2000,"rows_last":500,"rows_between":2000,"halvings":0,"cell_chars":16384,"cell_head_chars":4096},"cells_cut":0,"cells_raw":0,"read":"whole","date_system":"1900"}

{"sheet":"18M202218","index":0,"n_rows":84,"n_cols":46,"rows_kept":84,"cut":false,"hidden":false,"merged":[]}
[]
[]
[null,"Nom","Club","Matricule","Cat.","Tir 1 ","Tir 2","Tir 3","Tir 4","Tir 5","Total","M/600","M/300",null,null,null,null,null,"ITW","GAU","ANT","FAO","LIE","HUY","HAC","LFU",2022,"FBG","CAT","SSC","CTH","BEA","ADS","FAC","GPE","LFE","MDY","FAO","DSA","CMA","LAC","ECA","LIE","BTS",2023,"ANT"]
[]
[1,"MEYER Marc","GPE","59H04233","RHV",521,518,null,null,null,{"$f":"SUM(F5:J5)","v":1039},{"$f":"K5/5","v":207.8},{"$f":"L5/2","v":103.9},null,null,null,null,null,null,null,null,null,null,null,null,null,null,518,null,521]
[{"$f":"IF(B6<>\"\",A5+1,\"\")","v":2},"LEJOLY Daniel","LIE","61H01569","RHV",555,null,null,null,null,555,111,55.5,null,null,null,null,null,null,null,null,null,null,null,null,null,null,null,null,555]
[{"$f":"IF(B7<>\"\",A6+1,\"\")","v":3},"SKORUPKA Guy","CEN","57H01040","RHV",499,null,null,null,null,499,99.8,49.9,null,null,null,null,null,null,null,null,null,null,null,null,null,null,null,null,499]
[4,"BOUGELET Yvan","FBG",null,"RHV",460,null,null,null,null,460,92,46,null,null,null,null,null,null,null,null,null,null,null,null,null,null,460]
[5,"BALEINE Yves","CAT","57H04916","RHV",445,null,null,null,null,445,89,44.5,null,null,null,null,null,null,null,null,null,null,null,null,null,null,null,445]
[6,"VANDENBERGHE Daniel","CAB","51H02731","RHV",443,null,null,null,null,443,88.6,44.3,null,null,null,null,null,null,null,null,null,null,null,null,null,null,443]
[7,"LEJEUNE Paul","LFE","56H00919","RHV",441,null,null,null,null,441,88.2,44.1,null,null,null,null,null,null,null,null,null,null,null,null,null,null,null,441]
[8,"BACOT Paul (recurve)","HUY","50H01459","RHV",440,null,null,null,null,440,88,44,null,null,null,null,null,null,null,null,null,null,null,null,null,null,440]
[9,"PETRONS Joel","LFU","49H00899","RHV",437,null,null,null,null,437,87.4,43.7,null,null,null,null,null,null,null,null,null,null,null,null,null,null,437]
[10,"FRYNS Guido","ITW","59H03148","RHV",318,null,null,null,null,318,63.6,31.8,null,null,null,null,null,null,null,null,null,null,null,null,null,null,318]
[11,"FOURNIER Gérard","BTS","55H02754","RHV",null,null,null,null,null,0,0,0]
[12,"PIERRE Auguste","CAJ","56H04788","RHV",null,null,null,null,null,0,0,0]
[13,"BARBIEUX Robin","CAJ","57H05709","RHV",null,null,null,null,null,0,0,0]
[14,"DEGHAYE Pierre","ACM","55H01808","RHV",null,null,null,null,null,0,0,0]
[15,"COCQUYT Francis","CTH","60H01688","RHV",null,null,null,null,null,0,0,0]
[16,"OLBRECHTS Pierre","LAJ","56H00822","RHV",null,null,null,null,null,0,0,0]
[17,"FIORA Joel","SSK","57H00342","RHV",null,null,null,null,null,0,0,0]
[18,"DEPROOST Michel","SSK","61H00337","RHV",null,null,null,null,null,0,0,0]
[19,"NATALIS Joseph","CAJ","42H01967","RHV",null,null,null,null,null,0,0,0]
[20,"DELCOMINETTE guy","LIE","48H01514","RHV",null,null,null,null,null,0,0,0]
[21,"PAT Henri","ABA ","52H04786","RHV",null,null,null,null,null,0,0,0]
[22,"DE BON Pierre","SAG","57H03719","RHV",null,null,null,null,null,0,0,0]
[23,"CIATTO Giovani","ITW","59H04882","RHV",null,null,null,null,null,0,0,0]
[24,"LEMIN Gerard","ITW","53H02240","RHV",null,null,null,null,null,0,0,0]
[25,"VANHAEREN Patrick","LIE","61H05047","RHV",null,null,null,null,null,0,0,0]
[26,"BUCHET Eric","SSK","62H00326","RHV",null,null,null,null,null,0,0,0]
[27,"ANTOINE Pol","GAU",null,"RHV",null,null,null,null,null,0,0,0]
[28,"MARIAVELLE Eric","CAL","60H05586","RHV",null,null,null,null,null,0,0,0]
[29,"FASSOTTE Charly","CTH","46H01723","RHV",null,null,null,null,null,0,0,0]
[30,"DURIEUX Marc","SSC  ","57H01263","RHV",null,null,null,null,null,0,0,0]
[31,"D'HEUR Michel","FAO","46H00532","RHV",null,null,null,null,null,0,0,0]
[32,"METDEPENNINGEN Luc","MDY","59H02050","RHV",null,null,null,null,null,0,0,0]
[33,"GRAVAR Pierre","ECA","52H01303","RHV",null,null,null,null,null,{"$f":"SUM(F37:J37)","v":0},{"$f":"K37/5","v":0},{"$f":"L37/2","v":0}]
[34,"PETRUS Gus","GAU","54H00363","RHV",null,null,null,null,null,0,0,0]
[35,"DUPOND Yves","BTS","59H03867","RHV",null,null,null,null,null,0,0,0]
[36,"ANQUETIL Marc","CEN","56H01013","RHV",null,null,null,null,null,0,0,0]
[37,"LANDOLINO FRANCIS","ACG","56H04781","RHV",null,null,null,null,null,0,0,0]
[38,"PEETERS Emmanuel","SSK","59H00357","RHV",null,null,null,null,null,0,0,0]
[39,"SANTOS MONDO Julio",null,"59H04745","RHV",null,null,null,null,null,0,0,0]
[40,"RENNEAU Jean-Noel","ADS","59H02001","RHV",null,null,null,null,null,0,0,0]
[41,"WIGGELEER Patrick","GSR","56H00096","RHV",null,null,null,null,null,0,0,0]
[42,"DELNATTE Georges","LIE","58H02914","RHV",null,null,null,null,null,0,0,0]
[43,"HERMAL Raymond","ACB","55H01249","RHV",null,null,null,null,null,0,0,0]
[44,"DESSART Hubert","ACM","48H01811","RHV",null,null,null,null,null,0,0,0]
[45,"DEBATY Dominique","GAU",null,"RHV",null,null,null,null,null,0,0,0]
[46,"ROBERTO Salvator","ACB","50H02729","RHV",null,null,null,null,null,0,0,0]
[47,"RANDLE Daniel","CMA","47H00700","RHV",null,null,null,null,null,0,0,0]
[48,"NEYRET Robert","LAJ","49H00841","RHV",null,null,null,null,null,0,0,0]
[49,"SIMON Claude","MDY","51H03522","RHV",null,null,null,null,null,0,0,0]
[50,"PENA Victor","CTH","54H01714","RHV",null,null,null,null,null,0,0,0]
[51,"VANDEN BOGGAARR Marc","ABA ","57H00558","RHV",null,null,null,null,null,0,0,0]
[52,"NOSSENT Christian","SSK","53H00269","RHV",null,null,null,null,null,0,0,0]
[53,"LUCAS André (recurve)","SSC  ","55H01262","RHV",null,null,null,null,null,0,0,0]
[54,"GESSA Stefano","CAM","45H01355","RHV",null,null,null,null,null,{"$f":"SUM(F58:J58)","v":0},{"$f":"K58/5","v":0},{"$f":"L58/2","v":0}]
[55,"REIBER Guy","GSR","46H00175","RHV",null,null,null,null,null,0,0,0]
[56,"STEINIER Robert","ABA ","46H00639","RHV",null,null,null,null,null,0,0,0]
[57,"HODIAMONT Thierry","FOA","55H0049","RHV",null,null,null,null,null,0,0,0]
[58,"RAHIR Jacques","CTH",null,"RHV",null,null,null,null,null,0,0,0]
[59,"CHABEAU Andre","MDY","57H03240","RHV",null,null,null,null,null,0,0,0]
[60,"BERUS Alain","BTS","60H02770","RHV",null,null,null,null,null,0,0,0]
[61,"VANDERVELDEN Daniel","HUY  ","51H02731","RHV",null,null,null,null,null,0,0,0]
[62,"HANZE Bernard","HUY",null,"RHV",null,null,null,null,null,0,0,0]
[63,"RENARD René","SSK",null,"RHV",null,null,null,null,null,0,0,0]
[64,"VAN ASSCHE Pierre","GPE","48H00236","RHV",null,null,null,null,null,0,0,0]
[65,"VANDENHOOFDEN Bernard","FAO","51H02731","RHV",null,null,null,null,null,{"$f":"SUM(F69:J69)","v":0},{"$f":"K69/5","v":0},{"$f":"L69/2","v":0}]
[66,"DE GREEF Jean","SSK","46H00331","RHV",null,null,null,null,null,0,0,0]
[{"$f":"IF(B71<>\"\",A70+1,\"\")","v":67},"BOEVER Pierre","TAB","56H02663","RHV",null,null,null,null,null,0,0,0]
[68,"VANMEENEN Philippe","FBG","57H03948","RHV",null,null,null,null,null,0,0,0]
[69,"PIETTE Alain","FBG","54H03645","RHV",null,null,null,null,null,0,0,0]
[70,"RENNEAU Jean-Noel","ADS","59H02001","RHV",null,null,null,null,null,0,0,0]
[71,"HANZE Bernard","HUY","58H01505","RHV",null,null,null,null,null,0,0,0]
[72,"RAHIR Jacques","CTH","44H03480","RHV",null,null,null,null,null,0,0,0]
[{"$f":"IF(B77<>\"\",A76+1,\"\")","v":73},"THEYS Marc","LFU","56H04345","RHV",null,null,null,null,null,0,0,0]
[{"$f":"IF(B78<>\"\",A77+1,\"\")","v":74},"MAQUET Gilbert (recurve)","ACF  ","53H02240","RHV",null,null,null,null,null,0,0,0]
[{"$f":"IF(B79<>\"\",A78+1,\"\")","v":75},"YX",null,null,"RHV",null,null,null,null,null,0,0,0]
[""]
[]
[]
[]
[null,null,"La macro est déclenchée par toute entrée d'une valeur dans le tableau N5:BW20 (modifier le plage si nécessaire dans la macro)"]

{"sheet":"18M2018","index":1,"n_rows":74,"n_cols":40,"rows_kept":74,"cut":false,"hidden":false,"merged":[]}
[]
[]
[null,"Nom","Club","Matricule","Cat.","Tir 1 ","Tir 2","Tir 3","Tir 4","Tir 5","Total","M/600","M/300",null,null,null,null,null,"CAT","fBG","CAB","BEA","MDY","ADS","GPE","WSS","FAC","LFE","FAO","CMA","RCM","FGV","KJS","ECA","ACG","LAC","LIE","GSR","BTS","FOA"]
[]
[1,"SKORUPKA Guy","CEN","57H01040","RHV",510,505,504,502,496,{"$f":"SUM(F5:J5)","v":2517},{"$f":"K5/5","v":503.4},{"$f":"L5/2","v":251.7},null,null,null,null,null,null,null,480,null,null,null,496,null,null,null,502,505,510,null,null,504,null,null,495,496,null,469]
[{"$f":"IF(B6<>\"\",A5+1,\"\")","v":2},"PETRONS Joel","LFU","49H00899","RHV",512,508,498,491,486,2495,499,249.5,null,null,null,null,null,null,470,491,null,null,null,null,null,null,null,486,498,null,null,null,null,null,null,null,508,512]
[{"$f":"IF(B7<>\"\",A6+1,\"\")","v":3},"LUCAS André (recurve)","SSC  ","55H01262","RHV",510,502,487,486,483,2468,493.6,246.8,null,null,null,null,null,null,null,486,510,null,null,null,null,433,487,null,null,null,null,null,502,null,null,null,null,483]
[4,"GRAVAR Pierre","ECA","52H01303","RHV",503,496,490,490,485,2464,492.8,246.4,null,null,null,null,null,481,null,null,null,null,null,null,null,490,null,null,490,503,485,null,496]
[5,"FOURNIER Gérard","BTS","55H02754","RHV",509,474,473,462,461,2379,475.8,237.9,null,null,null,null,null,null,462,474,null,null,null,null,null,441,null,473,null,null,null,null,461,null,null,509,null,454]
[6,"BACOT Paul (recurve)","HUY","50H01459","RHV",483,480,447,443,419,2272,454.4,227.2,null,null,null,null,null,null,443,null,null,null,483,null,null,null,null,null,null,null,null,null,419,null,null,480,null,447]
[7,"NATALIS Joseph","CAJ","42H01967","RHV",527,510,510,507,null,2054,410.8,205.4,null,null,null,null,null,null,null,null,null,510,527,null,null,null,null,null,null,null,null,null,null,510,null,507]
[8,"VANDERVELDEN Daniel","HUY  ","51H02731","RHV",502,496,496,485,null,1979,395.8,197.9,null,null,null,null,null,null,496,null,null,null,496,null,null,null,null,null,null,null,null,null,null,485,null,null,null,502]
[9,"DELCOMINETTE guy","LIE","48H01514","RHV",492,492,477,475,null,1936,387.2,193.6,null,null,null,null,null,null,null,null,null,475,null,null,null,null,null,477,null,null,null,null,null,null,null,null,492,492]
[10,"DEGHAYE Pierre","ACM","55H01808","RHV",505,476,469,467,null,1917,383.4,191.7,null,null,null,null,null,null,null,null,null,469,467,null,null,null,null,null,null,null,null,null,null,null,null,476,null,null,505]
[11,"NEYRET Robert","LAJ","49H00841","RHV",468,428,416,347,null,1659,331.8,165.9,null,null,null,null,null,null,null,null,null,null,416,null,null,null,null,null,null,null,null,null,null,null,null,347,null,428,468]
[12,"PENA Victor","CTH","54H01714","RHV",493,493,467,null,null,1453,290.60000000000002,145.30000000000001,null,null,null,null,null,null,null,null,null,467,493,null,null,null,null,null,null,null,null,null,null,493]
[13,"D'HEUR Michel","FAO","46H00532","RHV",476,475,458,null,null,1409,281.8,140.9,null,null,null,null,null,null,null,null,null,null,null,null,null,null,null,476,null,null,null,null,null,null,null,null,475,458]
[14,"RANDLE Daniel","CMA","47H00700","RHV",463,448,441,null,null,1352,270.39999999999998,135.19999999999999,null,null,null,null,null,null,null,null,null,null,null,null,null,null,null,463,441,null,null,null,null,null,null,null,448]
[15,"VANDEN BOGGAARR Marc","ABA ","57H00558","RHV",526,518,null,null,null,1044,208.8,104.4,null,null,null,null,null,null,null,null,null,null,null,null,null,null,null,null,null,null,518,null,null,null,null,null,null,526]
[16,"GESSA Stefano","CAM","45H01355","RHV",525,475,null,null,null,1000,200,100,null,null,null,null,null,null,null,null,475,null,null,null,null,null,null,null,null,null,null,null,null,null,null,null,null,525]
[17,"OLBRECHTS Pierre","LAJ","56H00822","RHV",499,486,null,null,null,985,197,98.5,null,null,null,null,null,null,null,null,null,null,null,null,null,null,null,null,null,null,null,null,null,null,null,499,null,486]
[18,"DURIEUX Marc","SSC  ","57H01263","RHV",478,473,null,null,null,951,190.2,95.1,null,null,null,null,null,null,null,null,null,null,null,null,null,null,null,null,null,null,null,null,478,null,null,null,null,473]
[19,"PETRUS Gus","GAU","54H00363","RHV",483,455,null,null,null,938,187.6,93.8,null,null,null,null,null,null,null,null,null,null,null,483,null,null,null,null,null,455]
[20,"DEPRY Jacquy","FAC","49H01168","RHV",409,305,null,null,null,714,142.80000000000001,71.400000000000006,null,null,null,null,null,null,null,null,null,null,null,null,null,409,null,null,null,null,null,null,null,null,null,null,null,305]
[21,"VANDENBERGHE Daniel","CAB","51H02731","RHV",490,null,null,null,null,490,98,49,null,null,null,null,null,null,null,490]
[22,"HERMAL Raymond","ACB","55H01249","RHV",471,null,null,null,null,471,94.2,47.1,null,null,null,null,null,null,null,null,null,null,null,null,null,null,null,null,null,null,null,null,471]
[23,"MAQUET Gilbert (recurve)","ACF  ","53H02240","RHV",466,null,null,null,null,466,93.2,46.6,null,null,null,null,null,null,null,null,null,466]
[24,"FIORA Joel","SSK","57H00342","RHV",462,null,null,null,null,462,92.4,46.2,null,null,null,null,null,null,null,null,null,null,null,null,null,null,null,null,462]
[25,"ROBERTO Salvator","CAB","50H02729","RHV",443,null,null,null,null,443,88.6,44.3,null,null,null,null,null,null,null,null,null,null,null,null,null,null,null,null,null,null,null,null,null,null,null,null,null,443]
[26,"BOEVER Pierre","TAB","56H02663","RHV",436,null,null,null,null,436,87.2,43.6,null,null,null,null,null,null,null,null,null,null,null,null,null,null,null,null,null,null,null,null,null,null,null,null,null,436]
[27,"REIBER Guy","GSR","46H00175","RHV",435,null,null,null,null,435,87,43.5,null,null,null,null,null,null,null,null,null,null,null,null,null,null,null,null,null,null,null,null,null,null,null,null,435]
[28,"DE GREEF Jean","SSK","46H00331","RHV",396,null,null,null,null,396,79.2,39.6,null,null,null,null,null,null,null,null,null,null,null,null,null,null,null,null,396]
[29,"HODIAMONT Thierry","FOA","55H00049","RHV",375,null,null,null,null,375,75,37.5,null,null,null,null,null,null,null,null,null,null,null,null,null,null,null,null,null,null,null,null,null,null,null,null,null,null,375]
[30,"STEVENNE Marc","FAC","54H01165","RHV",351,null,null,null,null,351,70.2,35.1,null,null,null,null,null,null,null,null,null,null,null,null,null,null,null,null,null,null,null,null,null,null,null,null,null,351]
[31,"HINCCHLIFFE Clive","FAO",null,"RHV",239,null,null,null,null,239,47.8,23.9,null,null,null,null,null,null,null,null,null,null,null,null,null,null,null,239]
[32,"ANTOINE Pol","GAU",null,"RHV",null,null,null,null,null,0,0,0]
[33,"STAINIER Robert","ABA ","46H00639","RHV",null,null,null,null,null,0,0,0]
[34,"METDEPENNINGEN Luc","MDY","59H02050","RHV",null,null,null,null,null,0,0,0]
[35,"FRYNS Guido","ITW","59H03148","RHV",null,null,null,null,null,0,0,0]
[36,"WIGGELEER Patrick","GSR","56H00096","RHV",null,null,null,null,null,0,0,0]
[37,"DELNATTE Georges","LIE","58H02914","RHV",null,null,null,null,null,0,0,0]
[38,"NOSSENT Christian","SSK","53H00269","RHV",null,null,null,null,null,0,0,0]
[39,"CHABEAU Andre","MDY","57H03240","RHV",null,null,null,null,null,0,0,0]
[40,"VANMEENEN Philippe","FBG","57H03948","RHV",null,null,null,null,null,0,0,0]
[{"$f":"IF(B45<>\"\",A44+1,\"\")","v":41},"PIETTE Alain","FBG","54H03645","RHV",null,null,null,null,null,0,0,0]
[42,"RENARD René","SSK",null,"RHV",null,null,null,null,null,0,0,0]
[43,"FASSOTTE Charly","CTH","46H01723","RHV",null,null,null,null,null,0,0,0]
[44,"RENNEAU Jean-Noel","ADS","59H02001","RHV",null,null,null,null,null,0,0,0]
[45,"THEYS Marc","LFU","56H04345","RHV",null,null,null,null,null,0,0,0]
[46,"DEBATY Dominique","GAU",null,"RHV",null,null,null,null,null,0,0,0]
[""]
[""]
[""]
["",null,"La macro est déclenchée par toute entrée d'une valeur dans le tableau N5:BW20 (modifier le plage si nécessaire dans la macro)"]
[""]
[""]
[""]
[""]
[""]
[""]
[""]
[""]
[""]
[""]
[""]
[""]
[""]
[""]
[""]
[""]
[{"$f":"IF(B71<>\"\",A70+1,\"\")","v":""}]
[{"$f":"IF(B72<>\"\",A71+1,\"\")","v":""}]
[{"$f":"IF(B73<>\"\",A72+1,\"\")","v":""}]
[{"$f":"IF(B74<>\"\",A73+1,\"\")","v":""}]

{"sheet":"18M2019","index":2,"n_rows":82,"n_cols":51,"rows_kept":82,"cut":false,"hidden":false,"merged":[]}
[]
[]
[null,"Nom","Club","Matricule","Cat.","Tir 1 ","Tir 2","Tir 3","Tir 4","Tir 5","Total","M/600","M/300",null,null,null,null,null,"ACG","PAC","GAU","ANT","LAC","ITW","ABA","LIE","GSR","HUY","HAC","LFU",2019,"FBG","CAT","BEA","CAB","ADS","GPE","FAC","LFE","FAO","CMA","LAC","RCM","MDY","ACG","ECA","FGV","GSR","LIE","BTS","FOA"]
[]
[1,"SKORUPKA Guy","CEN","57H01040","RHV",521,520,518,517,510,{"$f":"SUM(F5:J5)","v":2586},{"$f":"K5/5","v":517.20000000000005},{"$f":"L5/2","v":258.60000000000002},null,null,null,null,null,null,473,null,495,null,null,null,null,null,null,null,492,null,510,null,null,500,null,null,517,null,508,520,null,521,null,null,518,null,null,null,485]
[{"$f":"IF(B6<>\"\",A5+1,\"\")","v":2},"DEGHAYE Pierre","ACM","55H01808","RHV",525,514,513,503,501,2556,511.2,255.6,null,null,null,null,null,525,null,null,null,null,478,503,432,null,null,501,null,null,null,null,null,null,487,null,null,null,null,null,null,null,514,513,null,null,null,495]
[{"$f":"IF(B7<>\"\",A6+1,\"\")","v":3},"LUCAS André (recurve)","SSC  ","55H01262","RHV",519,518,514,501,469,2521,504.2,252.1,null,null,null,null,null,null,null,null,null,null,null,null,null,null,null,null,null,null,null,null,null,501,null,null,469,null,null,514,null,null,null,null,518,null,null,null,519]
[4,"BACOT Paul (recurve)","HUY","50H01459","RHV",510,505,503,495,493,2506,501.2,250.6,null,null,null,null,437,505,null,null,null,null,null,null,479,null,null,503,null,null,493,null,null,null,487,null,null,null,null,null,null,null,510,486,null,null,null,495,485]
[5,"WIGGELEER Patrick","GSR","56H00096","RHV",515,512,500,495,477,2499,499.8,249.9,null,null,null,null,null,null,null,null,null,null,null,null,470,null,null,null,422,null,null,null,null,null,null,500,null,null,464,495,null,null,477,null,null,null,515,null,null,512]
[6,"DELCOMINETTE guy","LIE","48H01514","RHV",507,498,495,495,495,2490,498,249,null,null,null,null,null,null,null,null,null,null,495,null,null,null,null,null,null,null,440,null,null,null,466,null,null,null,null,495,null,null,498,null,null,null,null,495,507]
[7,"D'HEUR Michel","FAO","46H00532","RHV",511,503,484,481,476,2455,491,245.5,null,null,null,null,null,null,null,null,null,null,null,484,null,null,null,503,511,null,null,null,null,460,null,null,null,null,481,null,null,null,null,null,null,null,476,null,465]
[8,"PETRONS Joel","LFU","49H00899","RHV",508,495,486,483,479,2451,490.2,245.1,null,null,null,null,null,null,508,null,null,null,495,null,null,null,null,null,null,null,null,486,null,null,null,null,null,null,483,473,null,null,479,null,null,null,null,null,471]
[9,"GRAVAR Pierre","ECA","52H01303","RHV",518,503,481,472,470,2444,488.8,244.4,null,null,null,null,null,null,null,null,null,null,null,472,null,null,null,null,503,null,null,null,481,null,null,null,null,null,null,null,null,null,null,null,470,null,null,null,518]
[10,"FIORA Joel","SSK","57H00342","RHV",499,496,483,480,476,2434,486.8,243.4,null,null,null,null,null,null,null,471,null,null,null,483,476,null,null,480,null,null,null,null,null,null,null,null,null,null,null,499,null,null,null,null,null,null,null,null,null,496]
[11,"VANDERVELDEN Daniel","HUY  ","51H02731","RHV",499,494,481,479,477,2430,486,243,null,null,null,null,null,494,null,null,null,null,null,null,null,null,477,479,481,null,499]
[12,"DURIEUX Marc","SSC  ","57H01263","RHV",486,479,476,475,475,2391,478.2,239.1,null,null,null,null,null,null,null,null,null,null,null,475,464,null,null,null,476,null,null,null,null,427,null,null,479,null,null,475,null,null,null,null,486,null,475,null,465]
[13,"GESSA Stefano","CAM","45H01355","RHV",505,486,453,448,441,2333,466.6,233.3,null,null,null,null,null,null,486,null,null,null,null,null,null,null,null,null,null,null,null,null,505,null,null,null,453,null,null,null,null,null,null,null,441,null,null,null,448]
[14,"OLBRECHTS Pierre","LAJ","56H00822","RHV",505,473,456,455,443,2332,466.4,233.2,null,null,null,null,null,null,null,null,null,505,null,null,null,null,null,null,null,null,null,null,null,null,null,null,null,null,null,null,74,null,null,null,null,456,455,443,473]
[15,"PENA Victor","CTH","54H01714","RHV",479,476,458,451,437,2301,460.2,230.1,null,null,null,null,null,437,null,null,null,null,458,null,null,null,null,null,476,null,null,null,null,null,479,null,null,null,null,null,null,null,null,451]
[16,"NEYRET Robert","LAJ","49H00841","RHV",490,453,452,445,426,2266,453.2,226.6,null,null,null,null,null,null,null,null,null,445,null,null,null,null,null,null,null,null,453,null,490,null,452,null,null,null,426]
[17,"RANDLE Daniel","CMA","47H00700","RHV",465,445,444,443,418,2215,443,221.5,null,null,null,null,null,null,null,445,null,null,null,null,465,null,null,null,418,null,null,null,null,null,null,null,null,null,null,444,null,null,null,null,null,null,443]
[18,"DELNATTE Georges","LIE","58H02914","RHV",459,449,447,446,335,2136,427.2,213.6,null,null,null,null,null,null,null,null,null,null,446,null,447,null,null,null,null,null,335,null,null,null,null,449,null,null,null,null,null,null,459]
[19,"VANDEN BOGGAARR Marc","ABA ","57H00558","RHV",529,523,503,499,null,2054,410.8,205.4,null,null,null,null,null,null,null,null,null,null,523,529,499,null,null,null,null,null,null,null,null,null,null,null,null,null,null,null,null,null,null,null,null,null,null,null,503]
[20,"NATALIS Joseph","CAJ","42H01967","RHV",523,505,503,501,null,2032,406.4,203.2,null,null,null,null,null,null,null,null,null,null,503,null,523,null,null,null,null,null,null,null,null,null,null,null,null,null,null,null,null,null,null,505,null,null,null,501]
[21,"FOURNIER Gérard","BTS","55H02754","RHV",479,472,466,462,null,1879,375.8,187.9,null,null,null,null,null,null,null,null,null,null,null,472,466,null,null,null,null,null,null,null,null,479,null,null,null,null,null,null,null,null,null,null,null,null,null,null,462]
[22,"PETRUS Gus","GAU","54H00363","RHV",465,450,429,null,null,1344,268.8,134.4,null,null,null,null,null,null,null,429,null,465,null,450]
[23,"HERMAL Raymond","ACB","55H01249","RHV",492,459,null,null,null,951,190.2,95.1,null,null,null,null,null,null,null,null,null,null,null,null,null,null,null,null,null,null,null,null,null,null,null,null,null,null,null,null,null,null,null,null,459,null,null,null,492]
[24,"HANZE Bernard","HUY",null,"RHV",488,373,null,null,null,861,172.2,86.1,null,null,null,null,null,null,null,373,null,null,null,null,null,null,488]
[25,"RENARD René","SSK",null,"RHV",417,387,null,null,null,804,160.80000000000001,80.400000000000006,null,null,null,null,null,null,null,null,null,null,null,null,387,null,null,417]
[26,"VAN ASSCHE Pierre","GPE","48H00236","RHV",515,null,null,null,null,515,103,51.5,null,null,null,null,null,null,null,null,null,null,null,null,null,null,null,null,null,null,null,null,null,null,null,515]
[27,"VANDENHOOFDEN Bernard","FAO","51H02731","RHV",482,null,null,null,null,482,96.4,48.2,null,null,null,null,null,null,null,null,null,null,null,null,null,null,null,null,null,null,null,null,null,null,null,null,null,null,482]
[28,"REIBER Guy","GSR","46H00175","RHV",453,null,null,null,null,453,90.6,45.3,null,null,null,null,null,null,null,null,null,null,null,null,null,null,null,null,null,null,null,null,null,null,null,null,null,null,null,null,null,null,null,null,null,null,453]
[29,"ANTOINE Pol","GAU",null,"RHV",437,null,null,null,null,437,87.4,43.7,null,null,null,null,null,null,null,437]
[30,"DE GREEF Jean","SSK","46H00331","RHV",422,null,null,null,null,422,84.4,42.2,null,null,null,null,null,null,null,null,null,null,null,null,422]
[31,"FRYNS Guido","ITW","59H03148","RHV",401,null,null,null,null,401,80.2,40.1,null,null,null,null,null,null,null,null,null,null,null,null,null,null,null,null,null,null,null,null,null,null,null,null,null,null,null,null,null,null,null,null,null,null,null,null,null,401]
[32,"BOEVER Pierre","TAB","56H02663","RHV",383,null,null,null,null,383,76.599999999999994,38.299999999999997,null,null,null,null,null,null,null,null,null,null,null,null,383]
[33,"VANMEENEN Philippe","FBG","57H03948","RHV",382,null,null,null,null,{"$f":"SUM(F37:J37)","v":382},{"$f":"K37/5","v":76.400000000000006},{"$f":"L37/2","v":38.200000000000003},null,null,null,null,null,null,null,null,null,null,null,null,null,null,null,null,null,null,382]
[34,"DEBATY Dominique","GAU",null,"RHV",373,null,null,null,null,373,74.599999999999994,37.299999999999997,null,null,null,null,null,null,null,373]
[35,"FASSOTTE Charly","CTH","46H01723","RHV",362,null,null,null,null,362,72.400000000000006,36.200000000000003,null,null,null,null,null,null,null,null,null,null,null,null,362]
[36,"PIETTE Alain","FBG","54H03645","RHV",330,null,null,null,null,330,66,33,null,null,null,null,null,null,null,null,null,null,null,null,null,null,null,null,null,null,330]
[37,"HODIAMONT Thierry","FOA","55H0049","RHV",322,null,null,null,null,322,64.400000000000006,32.200000000000003,null,null,null,null,null,null,null,null,null,null,null,null,null,null,null,null,null,null,null,null,null,null,null,null,null,null,null,null,null,null,null,null,null,null,null,null,null,322]
[38,"RENNEAU Jean-Noel","ADS","59H02001","RHV",null,null,null,null,null,0,0,0]
[39,"MEYER Marc","GPE","59H04233","RHV",null,null,null,null,null,0,0,0]
[40,"METDEPENNINGEN Luc","MDY","59H02050","RHV",null,null,null,null,null,0,0,0]
[41,"DUPOND Yves","BTS","59H03867","RHV",null,null,null,null,null,0,0,0]
[42,"NOSSENT Christian","SSK","53H00269","RHV",null,null,null,null,null,0,0,0]
[43,"RENNEAU Jean-Noel","ADS","59H02001","RHV",null,null,null,null,null,0,0,0]
[44,"ANQUETIL Marc","CEN","56H01013","RHV",null,null,null,null,null,0,0,0]
[45,"HANZE Bernard","HUY","58H01505","RHV",null,null,null,null,null,0,0,0]
[46,"STEINIER Robert","ABA ","46H00639","RHV",null,null,null,null,null,0,0,0]
[47,"RAHIR Jacques","CTH","44H03480","RHV",null,null,null,null,null,0,0,0]
[48,"SANTOS MONDO Julio",null,"59H04745","RHV",null,null,null,null,null,0,0,0]
[{"$f":"IF(B53<>\"\",A52+1,\"\")","v":49},"CHABEAU Andre","MDY","57H03240","RHV",null,null,null,null,null,0,0,0]
[{"$f":"IF(B54<>\"\",A53+1,\"\")","v":50},"THEYS Marc","LFU","56H04345","RHV",null,null,null,null,null,0,0,0]
[{"$f":"IF(B55<>\"\",A54+1,\"\")","v":51},"VANDENBERGHE Daniel","CAB","51H02731","RHV",null,null,null,null,null,0,0,0]
[{"$f":"IF(B56<>\"\",A55+1,\"\")","v":52},"MAQUET Gilbert (recurve)","ACF  ","53H02240","RHV",null,null,null,null,null,0,0,0]
[""]
["",null,"La macro est déclenchée par toute entrée d'une valeur dans le tableau N5:BW20 (modifier le plage si nécessaire dans la macro)"]
[""]
[""]
[""]
[""]
[""]
[""]
[""]
[""]
[""]
[""]
[""]
[""]
[""]
[""]
[""]
[""]
[""]
[""]
[""]
[""]
[""]
[""]
[""]
[""]

{"sheet":"18M2018-19","index":3,"n_rows":82,"n_cols":52,"rows_kept":82,"cut":false,"hidden":false,"merged":[]}
[]
[]
[null,"Nom","Club","Matricule","Cat.","Tir 1 ","Tir 2","Tir 3","Tir 4","Tir 5","Total","M/600","M/300",null,null,null,null,null,"ACG","PAC","GAU","ANT","LAC","ITW","ABA","LIE","GSR","HUY","HAC","LFU",2018,"FBG","CAT","BEA","CAB","ADS","GPE","FAC","LFE","FAO","CMA","LAC","RCM","MDY","ACG","ECA","FGV","GSR","LIE","BTS","FOA",2019]
[]
[1,"SKORUPKA Guy","CEN","57H01040","RHV",521,520,518,517,510,{"$f":"SUM(F5:J5)","v":2586},{"$f":"K5/5","v":517.20000000000005},{"$f":"L5/2","v":258.60000000000002},null,null,null,null,null,null,473,null,495,null,null,null,null,null,null,null,492,null,510,null,null,500,null,null,517,null,508,520,null,521,null,null,518,null,null,null,485]
[{"$f":"IF(B6<>\"\",A5+1,\"\")","v":2},"DEGHAYE Pierre","ACM","55H01808","RHV",525,514,513,503,501,2556,511.2,255.6,null,null,null,null,null,525,null,null,null,null,478,503,432,null,null,501,null,null,null,null,null,null,487,null,null,null,null,null,null,null,514,513,null,null,null,495]
[{"$f":"IF(B7<>\"\",A6+1,\"\")","v":3},"LUCAS André (recurve)","SSC  ","55H01262","RHV",519,518,514,501,469,2521,504.2,252.1,null,null,null,null,null,null,null,null,null,null,null,null,null,null,null,null,null,null,null,null,null,501,null,null,469,null,null,514,null,null,null,null,518,null,null,null,519]
[4,"BACOT Paul (recurve)","HUY","50H01459","RHV",510,505,503,495,493,2506,501.2,250.6,null,null,null,null,437,505,null,null,null,null,null,null,479,null,null,503,null,null,493,null,null,null,487,null,null,null,null,null,null,null,510,486,null,null,null,495,485]
[5,"WIGGELEER Patrick","GSR","56H00096","RHV",515,512,500,495,477,2499,499.8,249.9,null,null,null,null,null,null,null,null,null,null,null,null,470,null,null,null,422,null,null,null,null,null,null,500,null,null,464,495,null,null,477,null,null,null,515,null,null,512]
[6,"DELCOMINETTE guy","LIE","48H01514","RHV",507,498,495,495,495,2490,498,249,null,null,null,null,null,null,null,null,null,null,495,null,null,null,null,null,null,null,440,null,null,null,466,null,null,null,null,495,null,null,498,null,null,null,null,495,507]
[7,"D'HEUR Michel","FAO","46H00532","RHV",511,503,484,481,476,2455,491,245.5,null,null,null,null,null,null,null,null,null,null,null,484,null,null,null,503,511,null,null,null,null,460,null,null,null,null,481,null,null,null,null,null,null,null,476,null,465]
[8,"PETRONS Joel","LFU","49H00899","RHV",508,495,486,483,479,2451,490.2,245.1,null,null,null,null,null,null,508,null,null,null,495,null,null,null,null,null,null,null,null,486,null,null,null,null,null,null,483,473,null,null,479,null,null,null,null,null,471]
[9,"GRAVAR Pierre","ECA","52H01303","RHV",518,503,481,472,470,2444,488.8,244.4,null,null,null,null,null,null,null,null,null,null,null,472,null,null,null,null,503,null,null,null,481,null,null,null,null,null,null,null,null,null,null,null,470,null,null,null,518]
[10,"FIORA Joel","SSK","57H00342","RHV",499,496,483,480,476,2434,486.8,243.4,null,null,null,null,null,null,null,471,null,null,null,483,476,null,null,480,null,null,null,null,null,null,null,null,null,null,null,499,null,null,null,null,null,null,null,null,null,496]
[11,"VANDERVELDEN Daniel","HUY  ","51H02731","RHV",499,494,481,479,477,2430,486,243,null,null,null,null,null,494,null,null,null,null,null,null,null,null,477,479,481,null,499]
[12,"DURIEUX Marc","SSC  ","57H01263","RHV",486,479,476,475,475,2391,478.2,239.1,null,null,null,null,null,null,null,null,null,null,null,475,464,null,null,null,476,null,null,null,null,427,null,null,479,null,null,475,null,null,null,null,486,null,475,null,465]
[13,"GESSA Stefano","CAM","45H01355","RHV",505,486,453,448,441,2333,466.6,233.3,null,null,null,null,null,null,486,null,null,null,null,null,null,null,null,null,null,null,null,null,505,null,null,null,453,null,null,null,null,null,null,null,441,null,null,null,448]
[14,"OLBRECHTS Pierre","LAJ","56H00822","RHV",505,473,456,455,443,2332,466.4,233.2,null,null,null,null,null,null,null,null,null,505,null,null,null,null,null,null,null,null,null,null,null,null,null,null,null,null,null,null,74,null,null,null,null,456,455,443,473]
[15,"PENA Victor","CTH","54H01714","RHV",479,476,458,451,437,2301,460.2,230.1,null,null,null,null,null,437,null,null,null,null,458,null,null,null,null,null,476,null,null,null,null,null,479,null,null,null,null,null,null,null,null,451]
[16,"NEYRET Robert","LAJ","49H00841","RHV",490,453,452,445,426,2266,453.2,226.6,null,null,null,null,null,null,null,null,null,445,null,null,null,null,null,null,null,null,453,null,490,null,452,null,null,null,426]
[17,"RANDLE Daniel","CMA","47H00700","RHV",465,445,444,443,418,2215,443,221.5,null,null,null,null,null,null,null,445,null,null,null,null,465,null,null,null,418,null,null,null,null,null,null,null,null,null,null,444,null,null,null,null,null,null,443]
[18,"DELNATTE Georges","LIE","58H02914","RHV",459,449,447,446,335,2136,427.2,213.6,null,null,null,null,null,null,null,null,null,null,446,null,447,null,null,null,null,null,335,null,null,null,null,449,null,null,null,null,null,null,459]
[19,"VANDEN BOGGAARR Marc","ABA ","57H00558","RHV",529,523,503,499,null,2054,410.8,205.4,null,null,null,null,null,null,null,null,null,null,523,529,499,null,null,null,null,null,null,null,null,null,null,null,null,null,null,null,null,null,null,null,null,null,null,null,503]
[20,"NATALIS Joseph","CAJ","42H01967","RHV",523,505,503,501,null,2032,406.4,203.2,null,null,null,null,null,null,null,null,null,null,503,null,523,null,null,null,null,null,null,null,null,null,null,null,null,null,null,null,null,null,null,505,null,null,null,501]
[21,"FOURNIER Gérard","BTS","55H02754","RHV",479,472,466,462,null,1879,375.8,187.9,null,null,null,null,null,null,null,null,null,null,null,472,466,null,null,null,null,null,null,null,null,479,null,null,null,null,null,null,null,null,null,null,null,null,null,null,462]
[22,"PETRUS Gus","GAU","54H00363","RHV",465,450,429,null,null,1344,268.8,134.4,null,null,null,null,null,null,null,429,null,465,null,450]
[23,"HERMAL Raymond","ACB","55H01249","RHV",492,459,null,null,null,951,190.2,95.1,null,null,null,null,null,null,null,null,null,null,null,null,null,null,null,null,null,null,null,null,null,null,null,null,null,null,null,null,null,null,null,null,459,null,null,null,492]
[24,"HANZE Bernard","HUY",null,"RHV",488,373,null,null,null,861,172.2,86.1,null,null,null,null,null,null,null,373,null,null,null,null,null,null,488]
[25,"RENARD René","SSK",null,"RHV",417,387,null,null,null,804,160.80000000000001,80.400000000000006,null,null,null,null,null,null,null,null,null,null,null,null,387,null,null,417]
[26,"VAN ASSCHE Pierre","GPE","48H00236","RHV",515,null,null,null,null,515,103,51.5,null,null,null,null,null,null,null,null,null,null,null,null,null,null,null,null,null,null,null,null,null,null,null,515]
[27,"VANDENHOOFDEN Bernard","FAO","51H02731","RHV",482,null,null,null,null,482,96.4,48.2,null,null,null,null,null,null,null,null,null,null,null,null,null,null,null,null,null,null,null,null,null,null,null,null,null,null,482]
[28,"REIBER Guy","GSR","46H00175","RHV",453,null,null,null,null,453,90.6,45.3,null,null,null,null,null,null,null,null,null,null,null,null,null,null,null,null,null,null,null,null,null,null,null,null,null,null,null,null,null,null,null,null,null,null,453]
[29,"ANTOINE Pol","GAU",null,"RHV",437,null,null,null,null,437,87.4,43.7,null,null,null,null,null,null,null,437]
[30,"DE GREEF Jean","SSK","46H00331","RHV",422,null,null,null,null,422,84.4,42.2,null,null,null,null,null,null,null,null,null,null,null,null,422]
[31,"FRYNS Guido","ITW","59H03148","RHV",401,null,null,null,null,401,80.2,40.1,null,null,null,null,null,null,null,null,null,null,null,null,null,null,null,null,null,null,null,null,null,null,null,null,null,null,null,null,null,null,null,null,null,null,null,null,null,401]
[32,"BOEVER Pierre","TAB","56H02663","RHV",383,null,null,null,null,383,76.599999999999994,38.299999999999997,null,null,null,null,null,null,null,null,null,null,null,null,383]
[33,"VANMEENEN Philippe","FBG","57H03948","RHV",382,null,null,null,null,{"$f":"SUM(F37:J37)","v":382},{"$f":"K37/5","v":76.400000000000006},{"$f":"L37/2","v":38.200000000000003},null,null,null,null,null,null,null,null,null,null,null,null,null,null,null,null,null,null,382]
[34,"DEBATY Dominique","GAU",null,"RHV",373,null,null,null,null,373,74.599999999999994,37.299999999999997,null,null,null,null,null,null,null,373]
[35,"FASSOTTE Charly","CTH","46H01723","RHV",362,null,null,null,null,362,72.400000000000006,36.200000000000003,null,null,null,null,null,null,null,null,null,null,null,null,362]
[36,"PIETTE Alain","FBG","54H03645","RHV",330,null,null,null,null,330,66,33,null,null,null,null,null,null,null,null,null,null,null,null,null,null,null,null,null,null,330]
[37,"HODIAMONT Thierry","FOA","55H0049","RHV",322,null,null,null,null,322,64.400000000000006,32.200000000000003,null,null,null,null,null,null,null,null,null,null,null,null,null,null,null,null,null,null,null,null,null,null,null,null,null,null,null,null,null,null,null,null,null,null,null,null,null,322]
[38,"RENNEAU Jean-Noel","ADS","59H02001","RHV",null,null,null,null,null,0,0,0]
[39,"HANZE Bernard","HUY","58H01505","RHV",null,null,null,null,null,0,0,0]
[40,"DUPOND Yves","BTS","59H03867","RHV",null,null,null,null,null,0,0,0]
[41,"STEINIER Robert","ABA ","46H00639","RHV",null,null,null,null,null,0,0,0]
[42,"METDEPENNINGEN Luc","MDY","59H02050","RHV",null,null,null,null,null,0,0,0]
[43,"NOSSENT Christian","SSK","53H00269","RHV",null,null,null,null,null,0,0,0]
[44,"MEYER Marc","GPE","59H04233","RHV",null,null,null,null,null,0,0,0]
[45,"RENNEAU Jean-Noel","ADS","59H02001","RHV",null,null,null,null,null,0,0,0]
[46,"ANQUETIL Marc","CEN","56H01013","RHV",null,null,null,null,null,0,0,0]
[47,"RAHIR Jacques","CTH","44H03480","RHV",null,null,null,null,null,0,0,0]
[48,"SANTOS MONDO Julio",null,"59H04745","RHV",null,null,null,null,null,0,0,0]
[49,"CHABEAU Andre","MDY","57H03240","RHV",null,null,null,null,null,0,0,0]
[50,"THEYS Marc","LFU","56H04345","RHV",null,null,null,null,null,0,0,0]
[51,"VANDENBERGHE Daniel","CAB","51H02731","RHV",null,null,null,null,null,0,0,0]
[52,"MAQUET Gilbert (recurve)","ACF  ","53H02240","RHV",null,null,null,null,null,0,0,0]
[""]
["",null,"La macro est déclenchée par toute entrée d'une valeur dans le tableau N5:BW20 (modifier le plage si nécessaire dans la macro)"]
[""]
[""]
[""]
[""]
[""]
[""]
[""]
[""]
[""]
[""]
[""]
[""]
[{"$f":"IF(B71<>\"\",A70+1,\"\")","v":""}]
[""]
[""]
[""]
[""]
[""]
[""]
[""]
[""]
[""]
[""]
[""]

{"sheet":"18M2020","index":4,"n_rows":80,"n_cols":49,"rows_kept":80,"cut":false,"hidden":false,"merged":[]}
[]
[]
[null,"Nom","Club","Matricule","Cat.","Tir 1 ","Tir 2","Tir 3","Tir 4","Tir 5","Total","M/600","M/300",null,null,null,null,null,"GAU","ACG","PAC","ANT","ABA","LIE","HUY","HAC","LFU","ITW",2020,"FBG","CAT","BEA","CTH","ADS","FAC","GPE","LFE","FAO","CMA","RCM","MDY","ECA","LAC","ACG","FGV","GSR","LIE","BTS","FOA"]
[]
[1,"NATALIS Joseph","CAJ","42H01967","RHV",546,528,527,506,501,{"$f":"SUM(F5:J5)","v":2608},{"$f":"K5/5","v":521.6},{"$f":"L5/2","v":260.8},null,null,null,null,null,null,546,null,null,null,null,null,null,null,498,null,null,null,null,528,527,null,null,null,null,null,null,null,null,null,501,null,null,506]
[{"$f":"IF(B6<>\"\",A5+1,\"\")","v":2},"SKORUPKA Guy","CEN","57H01040","RHV",521,518,511,504,501,2555,511,255.5,null,null,null,null,null,null,null,492,521,481,null,null,null,null,null,null,489,null,null,null,null,null,null,null,511,518,495,null,486,null,null,null,501,null,448,504]
[{"$f":"IF(B7<>\"\",A6+1,\"\")","v":3},"DEGHAYE Pierre","ACM","55H01808","RHV",520,517,504,503,502,2546,509.2,254.6,null,null,null,null,null,null,517,null,null,null,494,null,502,null,null,null,520,null,null,503,499,null,null,null,null,null,null,504,null,null,497,null,null,499]
[4,"OLBRECHTS Pierre","LAJ","56H00822","RHV",521,504,502,492,484,2503,500.6,250.3,null,null,null,null,null,null,null,null,null,null,null,null,null,null,null,null,null,null,null,null,null,null,null,null,492,null,null,null,null,null,null,null,484,502,504,521]
[5,"WIGGELEER Patrick","GSR","56H00096","RHV",505,500,499,489,488,2481,496.2,248.1,null,null,null,null,null,null,null,null,null,null,489,null,null,499,505,null,null,null,null,null,null,null,null,null,485,476,null,null,null,null,null,null,500,488,null,488]
[6,"DELCOMINETTE guy","LIE","48H01514","RHV",506,499,494,490,489,2478,495.6,247.8,null,null,null,null,null,null,null,null,null,null,485,null,499,null,494,null,null,null,null,490,489,null,null,null,null,null,null,null,null,null,null,null,506,482,462]
[7,"D'HEUR Michel","FAO","46H00532","RHV",496,495,493,491,486,2461,492.2,246.1,null,null,null,null,null,485,null,null,null,486,null,null,null,496,null,null,null,null,null,null,null,null,null,null,495,493,null,null,null,null,null,null,491,null,455]
[8,"DELNATTE Georges","LIE","58H02914","RHV",513,496,489,488,469,2455,491,245.5,null,null,null,null,null,null,null,null,null,null,null,null,488,469,null,null,null,null,null,496,null,null,null,null,null,null,489,null,null,null,null,513]
[9,"BACOT Paul (recurve)","HUY","50H01459","RHV",509,504,493,472,466,2444,488.8,244.4,null,null,null,null,437,null,509,null,null,455,493,null,472,null,437,null,466,null,null,455,504,null,null,null,null,null,null,466,null,null,459,null,null,null,365]
[10,"PETRONS Joel","LFU","49H00899","RHV",491,490,481,481,476,2419,483.8,241.9,null,null,null,null,null,null,null,472,null,null,null,null,490,null,476,null,null,null,null,null,null,null,null,null,481,491,null,null,null,null,null,null,null,null,481]
[11,"FIORA Joel","SSK","57H00342","RHV",492,491,484,474,471,2412,482.4,241.2,null,null,null,null,null,484,null,null,null,491,474,null,471,null,null,null,null,null,null,null,null,null,null,null,null,492,null,null,null,null,null,null,469]
[12,"DURIEUX Marc","SSC  ","57H01263","RHV",468,466,462,460,456,2312,462.4,231.2,null,null,null,null,null,null,null,null,null,null,null,null,null,462,null,null,null,null,null,null,null,460,null,null,null,468,null,null,429,null,null,null,466,456,449]
[13,"PENA Victor","CTH","54H01714","RHV",480,475,458,446,439,2298,459.6,229.8,null,null,null,null,null,null,480,null,null,null,null,null,439,null,458,null,475,null,null,null,416,null,null,null,null,null,null,446]
[14,"NEYRET Robert","LAJ","49H00841","RHV",451,447,443,442,442,2225,445,222.5,null,null,null,null,null,null,null,null,null,null,null,null,null,null,null,null,null,null,null,null,null,null,null,null,443,401,null,null,null,null,null,null,442,451,442,447]
[15,"FRYNS Guido","ITW","59H03148","RHV",456,428,428,421,413,2146,429.2,214.6,null,null,null,null,null,null,null,null,null,372,428,null,413,421,391,null,412,null,null,410,null,null,null,null,392,428,null,412,null,null,null,null,456,410,382,397]
[16,"DUPOND Yves","BTS","59H03867","RHV",453,436,424,422,405,2140,428,214,null,null,null,null,null,null,null,null,null,null,null,null,null,null,null,null,null,null,424,null,null,405,null,422,null,null,null,453,null,null,null,null,null,null,null,436]
[17,"RANDLE Daniel","CMA","47H00700","RHV",453,429,427,411,402,2122,424.4,212.2,null,null,null,null,null,429,null,null,null,null,null,null,null,453,null,null,null,null,null,null,null,null,null,null,411,402,null,null,null,null,null,null,427]
[18,"METDEPENNINGEN Luc","MDY","59H02050","RHV",427,418,402,383,379,2009,401.8,200.9,null,null,null,null,null,null,null,null,null,null,402,null,null,null,379,null,null,null,null,383,null,null,null,null,null,null,null,427,null,null,null,418,null,374]
[19,"GRAVAR Pierre","ECA","52H01303","RHV",495,484,466,447,null,1892,378.4,189.2,null,null,null,null,null,null,null,495,null,null,null,null,null,466,null,null,null,null,null,null,null,null,null,null,null,null,null,null,484,null,null,null,null,null,447]
[20,"RENNEAU Jean-Noel","ADS","59H02001","RHV",476,474,471,423,null,1844,368.8,184.4,null,null,null,null,null,null,null,null,null,null,null,null,null,null,null,null,null,null,null,null,474,null,null,null,null,null,null,471,null,null,423,null,null,476]
[21,"PETRUS Gus","GAU","54H00363","RHV",459,445,445,436,null,1785,357,178.5,null,null,null,null,null,459,null,null,null,445,null,null,null,null,null,null,null,null,null,null,null,null,null,null,null,null,null,null,null,null,null,null,null,null,436,445]
[22,"MEYER Marc","GPE","59H04233","RHV",532,524,520,null,null,1576,315.2,157.6,null,null,null,null,null,null,null,null,null,null,null,null,null,null,null,null,null,null,null,null,null,null,532,524,null,null,null,null,null,null,null,null,null,null,null,520]
[23,"VANDEN BOGGAARR Marc","ABA ","57H00558","RHV",523,518,518,null,null,1559,311.8,155.9,null,null,null,null,null,null,null,null,null,518,523,null,null,null,518]
[24,"ANQUETIL Marc","CEN","56H01013","RHV",492,472,452,null,null,1416,283.2,141.6,null,null,null,null,null,null,null,null,null,null,null,null,null,null,null,null,null,null,null,null,null,null,null,null,null,452,null,null,472,null,null,null,null,null,492]
[25,"FOURNIER Gérard","BTS","55H02754","RHV",466,426,null,null,null,892,178.4,89.2,null,null,null,null,null,null,null,null,null,null,426,null,null,null,null,null,null,null,null,null,null,null,null,null,null,null,null,null,null,null,null,null,null,null,466]
[26,"NOSSENT Christian","SSK","53H00269","RHV",418,405,null,null,null,823,164.6,82.3,null,null,null,null,null,null,null,null,null,418,405]
[27,"SANTOS MONDO Julio",null,"59H04745","RHV",365,359,null,null,null,724,144.80000000000001,72.400000000000006,null,null,null,null,null,null,null,null,null,null,null,null,null,null,null,null,null,null,null,null,null,null,null,null,null,365,null,null,null,null,null,null,359]
[28,"HERMAL Raymond","ACB","55H01249","RHV",512,null,null,null,null,512,102.4,51.2,null,null,null,null,null,null,null,null,null,null,null,null,null,null,null,null,null,null,512]
[29,"LUCAS André (recurve)","SSC  ","55H01262","RHV",490,null,null,null,null,490,98,49,null,null,null,null,null,null,null,null,490]
[30,"GESSA Stefano","CAM","45H01355","RHV",478,null,null,null,null,478,95.6,47.8,null,null,null,null,null,null,null,null,null,null,null,null,null,null,null,null,null,null,478]
[31,"ANTOINE Pol","GAU",null,"RHV",456,null,null,null,null,456,91.2,45.6,null,null,null,null,null,456]
[32,"REIBER Guy","GSR","46H00175","RHV",414,null,null,null,null,414,82.8,41.4,null,null,null,null,null,null,null,null,null,null,null,null,null,null,null,null,null,null,null,null,null,null,null,null,null,null,null,null,null,null,null,null,414]
[33,"STEINIER Robert","ABA ","46H00639","RHV",392,null,null,null,null,{"$f":"SUM(F37:J37)","v":392},{"$f":"K37/5","v":78.400000000000006},{"$f":"L37/2","v":39.200000000000003},null,null,null,null,null,null,null,null,null,null,392]
[34,"HODIAMONT Thierry","FOA","55H0049","RHV",362,null,null,null,null,362,72.400000000000006,36.200000000000003,null,null,null,null,null,null,null,null,null,null,null,null,null,null,null,null,null,null,null,null,null,null,null,null,null,null,null,null,null,null,null,null,null,null,null,362]
[35,"RAHIR Jacques","CTH",null,"RHV",335,null,null,null,null,335,67,33.5,null,null,null,null,null,null,null,null,null,null,null,null,null,null,null,null,null,null,335]
[36,"CHABEAU Andre","MDY","57H03240","RHV",302,null,null,null,null,302,60.4,30.2,null,null,null,null,null,null,null,null,null,null,null,null,null,null,302]
[37,"BERUS Alain","BTS","60H02770","RHV",294,null,null,null,null,294,58.8,29.4,null,null,null,null,null,null,null,null,null,null,null,null,null,null,null,null,null,null,null,null,null,null,null,null,null,null,null,null,null,null,null,null,null,null,294]
[38,"PEETERS Emmanuel","SSK","59H00357","RHV",279,null,null,null,null,279,55.8,27.9,null,null,null,null,null,null,null,null,null,null,null,null,null,null,null,null,null,null,null,null,null,null,null,null,null,null,null,null,null,null,null,null,279]
[39,"DE GREEF Jean","SSK","46H00331","RHV",null,null,null,null,null,0,0,0]
[40,"RENNEAU Jean-Noel","ADS","59H02001","RHV",null,null,null,null,null,0,0,0]
[41,"HANZE Bernard","HUY","58H01505","RHV",null,null,null,null,null,0,0,0]
[42,"VANDERVELDEN Daniel","HUY  ","51H02731","RHV",null,null,null,null,null,0,0,0]
[43,"HANZE Bernard","HUY",null,"RHV",null,null,null,null,null,0,0,0]
[44,"RENARD René","SSK",null,"RHV",null,null,null,null,null,0,0,0]
[45,"VAN ASSCHE Pierre","GPE","48H00236","RHV",null,null,null,null,null,0,0,0]
[46,"VANDENHOOFDEN Bernard","FAO","51H02731","RHV",null,null,null,null,null,0,0,0]
[47,"BOEVER Pierre","TAB","56H02663","RHV",null,null,null,null,null,0,0,0]
[48,"VANMEENEN Philippe","FBG","57H03948","RHV",null,null,null,null,null,0,0,0]
[49,"DEBATY Dominique","GAU",null,"RHV",null,null,null,null,null,0,0,0]
[50,"FASSOTTE Charly","CTH","46H01723","RHV",null,null,null,null,null,0,0,0]
[51,"PIETTE Alain","FBG","54H03645","RHV",null,null,null,null,null,0,0,0]
[52,"RAHIR Jacques","CTH","44H03480","RHV",null,null,null,null,null,0,0,0]
[{"$f":"IF(B57<>\"\",A56+1,\"\")","v":53},"THEYS Marc","LFU","56H04345","RHV",null,null,null,null,null,0,0,0]
[{"$f":"IF(B58<>\"\",A57+1,\"\")","v":54},"VANDENBERGHE Daniel","CAB","51H02731","RHV",null,null,null,null,null,0,0,0]
[{"$f":"IF(B59<>\"\",A58+1,\"\")","v":55},"MAQUET Gilbert (recurve)","ACF  ","53H02240","RHV",null,null,null,null,null,0,0,0]
[{"$f":"IF(B60<>\"\",A59+1,\"\")","v":56},"XA","CAB","51H02731","RHV",null,null,null,null,null,0,0,0]
[""]
[""]
[""]
[""]
["",null,"La macro est déclenchée par toute entrée d'une valeur dans le tableau N5:BW20 (modifier le plage si nécessaire dans la macro)"]
[""]
[""]
[""]
[{"$f":"IF(B69<>\"\",A68+1,\"\")","v":""}]
[""]
[""]
[""]
[""]
[""]
[""]
[""]
[""]
[""]
[""]
[""]

{"sheet":"18M2021","index":5,"n_rows":80,"n_cols":49,"rows_kept":80,"cut":false,"hidden":false,"merged":[]}
[]
[]
[null,"Nom","Club","Matricule","Cat.","Tir 1 ","Tir 2","Tir 3","Tir 4","Tir 5","Total","M/600","M/300",null,null,null,null,null,"AGC","PAC","GAU","ANT","ITW","ABA","LIE","ECA","HUY",2021,"CTH","CAT","SSC","ADS","FAC","ADS","GPE","BEA","LFE","MDY","FAO","CMA","LAC","ACG","FGV","ECA","GSR","RCM","LIE","BTS","FOA"]
[]
[1,"OLBRECHTS Pierre","LAJ","56H00822","RHV",561,552,551,547,544,{"$f":"SUM(F5:J5)","v":2755},{"$f":"K5/5","v":551},{"$f":"L5/2","v":275.5},null,null,null,null,null,null,null,null,null,511,null,null,null,481,null,522,null,null,531,null,534,538,null,null,561,542,544,551,null,null,null,534,null,547,552]
[{"$f":"IF(B6<>\"\",A5+1,\"\")","v":2},"MEYER Marc","GPE","59H04233","RHV",534,530,530,526,517,2637,527.4,263.7,null,null,null,null,null,null,null,null,null,null,null,534,null,null,null,null,530,530,null,null,null,null,null,null,null,508,null,null,null,null,517,499,502,null,526]
[{"$f":"IF(B7<>\"\",A6+1,\"\")","v":3},"SKORUPKA Guy","CEN","57H01040","RHV",520,519,517,516,514,2586,517.20000000000005,258.60000000000002,null,null,null,null,null,null,508,null,492,null,516,489,null,null,null,null,498,520,null,514,null,null,503,null,null,517,519,null,null,null,508,null,503,513,506]
[4,"COCQUYT Francis","CTH","60H01688","RHV",525,514,511,507,500,2557,511.4,255.7,null,null,null,null,null,514,null,null,null,500,null,499,null,null,null,525,null,null,null,null,511,null,null,null,507,null,null,null,482,null,null,null,null,493]
[5,"PIERRE Auguste","CAJ","56H04788","RHV",519,516,510,503,498,2546,509.2,254.6,null,null,null,null,null,null,null,null,null,462,null,446,null,null,null,null,null,null,null,null,474,null,null,null,498,503,497,516,null,510,null,null,null,519]
[6,"DEGHAYE Pierre","ACM","55H01808","RHV",522,506,500,498,492,2518,503.6,251.8,null,null,null,null,null,522,null,null,null,506,null,498,null,null,null,470,null,null,null,null,290,null,null,null,500,null,null,null,492,null,null,null,null,492,489]
[7,"FIORA Joel","SSK","57H00342","RHV",505,495,492,492,489,2473,494.6,247.3,null,null,null,null,null,null,null,495,null,null,489,478,null,null,null,null,null,null,null,null,null,null,null,null,null,485,492,null,null,null,null,460,null,492,null,505]
[8,"DELCOMINETTE guy","LIE","48H01514","RHV",500,486,484,482,477,2429,485.8,242.9,null,null,null,null,null,null,null,null,null,null,null,null,null,null,null,447,null,null,484,null,477,null,null,null,430,null,486,null,null,null,null,500,null,482]
[9,"VANDENBERGHE Daniel","CAB","51H02731","RHV",504,501,486,481,457,2429,485.8,242.9,null,null,null,null,null,null,null,null,null,null,null,null,null,null,null,null,null,null,null,501,null,null,null,null,null,486,457,null,null,null,504,null,null,null,481]
[10,"PAT Henri","ABA ","52H04786","RHV",485,466,465,464,417,2297,459.4,229.7,null,null,null,null,null,null,null,null,null,null,null,485,null,null,null,null,null,null,null,null,null,null,null,null,null,464,417,null,null,null,466,465]
[11,"DEPROOST Michel","SSK","61H00337","RHV",476,466,464,451,437,2294,458.8,229.4,null,null,null,null,null,null,null,null,null,null,null,null,null,null,null,null,null,null,null,null,null,null,null,null,null,437,476,null,null,null,null,451,null,464,null,466]
[12,"FRYNS Guido","ITW","59H03148","RHV",450,427,427,427,420,2151,430.2,215.1,null,null,null,null,null,412,null,null,null,427,450,null,null,427,null,352,null,null,null,null,408,null,null,null,427,382,420,null,null,400,null,410,null,400,413,404]
[13,"DURIEUX Marc","SSC  ","57H01263","RHV",495,483,470,449,null,1897,379.4,189.7,null,null,null,null,null,null,null,null,495,null,470,483,null,null,null,null,null,449]
[14,"BACOT Paul (recurve)","HUY","50H01459","RHV",487,480,468,459,null,1894,378.8,189.4,null,null,null,null,null,468,null,null,null,null,480,459,null,487]
[15,"D'HEUR Michel","FAO","46H00532","RHV",476,461,457,455,null,1849,369.8,184.9,null,null,null,null,null,null,null,476,null,null,457,null,null,null,null,null,null,null,null,null,null,null,null,null,null,461,null,null,null,null,null,455]
[16,"NATALIS Joseph","CAJ","42H01967","RHV",516,497,447,256,null,1716,343.2,171.6,null,null,null,null,null,null,null,null,null,256,null,null,null,null,null,null,null,null,null,null,447,null,null,null,516,null,null,null,null,null,null,null,null,497]
[17,"METDEPENNINGEN Luc","MDY","59H02050","RHV",453,401,381,326,null,1561,312.2,156.1,null,null,null,null,null,null,null,null,null,401,null,453,null,null,null,null,null,null,null,null,null,null,null,null,381,null,null,null,null,null,null,null,null,326]
[18,"VANHAEREN Patrick","LIE","61H05047","RHV",515,490,476,null,null,1481,296.2,148.1,null,null,null,null,null,null,null,null,null,null,null,null,null,null,null,null,null,null,null,null,null,null,null,null,515,null,476,null,null,null,null,null,null,490]
[19,"GRAVAR Pierre","ECA","52H01303","RHV",489,467,454,null,null,1410,282,141,null,null,null,null,null,null,467,null,null,null,489,null,null,null,null,null,null,null,null,null,null,null,null,null,null,null,null,null,null,null,454]
[20,"PETRUS Gus","GAU","54H00363","RHV",451,430,397,null,null,1278,255.6,127.8,null,null,null,null,null,null,null,451,null,null,430,null,null,null,null,null,null,null,null,null,null,null,null,null,null,null,null,397]
[21,"DUPOND Yves","BTS","59H03867","RHV",426,417,400,null,null,1243,248.6,124.3,null,null,null,null,null,null,400,null,null,null,417,426]
[22,"ANQUETIL Marc","CEN","56H01013","RHV",509,471,null,null,null,980,196,98,null,null,null,null,null,null,509,null,null,null,471]
[23,"DE BON Pierre","SAG","57H03719","RHV",321,315,315,null,null,951,190.2,95.1,null,null,null,null,null,null,null,null,null,null,null,null,null,null,null,null,null,null,null,null,null,null,315,null,null,null,null,null,null,null,321,null,null,null,315]
[24,"PETRONS Joel","LFU","49H00899","RHV",480,467,null,null,null,947,189.4,94.7,null,null,null,null,null,null,467,null,null,480]
[25,"LEMIN Gerard","ITW","53H02240","RHV",481,454,null,null,null,935,187,93.5,null,null,null,null,null,null,null,null,null,null,null,null,null,null,null,454,null,null,null,null,null,null,null,null,null,null,null,null,null,null,null,null,null,null,null,481]
[26,"MARIAVELLE Eric","CAL","60H05586","RHV",456,414,null,null,null,870,174,87,null,null,null,null,null,null,null,null,null,null,null,456,null,null,null,null,null,null,null,null,null,null,null,null,null,null,null,null,null,414]
[27,"LEJEUNE Paul","LFE","56H00919","RHV",428,373,null,null,null,801,160.19999999999999,80.099999999999994,null,null,null,null,null,null,null,null,null,null,null,null,null,null,null,null,null,null,null,null,null,null,null,null,null,null,null,null,null,null,null,428,373]
[28,"LANDOLINO FRANCIS","ACG","56H04781","RHV",412,334,null,null,null,746,149.19999999999999,74.599999999999994,null,null,null,null,null,412,null,null,null,null,null,null,null,null,null,null,null,null,null,null,null,null,null,null,null,null,null,null,334]
[29,"PEETERS Emmanuel","SSK","59H00357","RHV",367,324,null,null,null,691,138.19999999999999,69.099999999999994,null,null,null,null,null,null,null,324,null,null,367]
[30,"SANTOS MONDO Julio",null,"59H04745","RHV",306,248,null,null,null,554,110.8,55.4,null,null,null,null,null,null,null,248,null,null,306]
[31,"RENNEAU Jean-Noel","ADS","59H02001","RHV",511,null,null,null,null,511,102.2,51.1,null,null,null,null,null,511]
[32,"WIGGELEER Patrick","GSR","56H00096","RHV",510,null,null,null,null,510,102,51,null,null,null,null,null,null,null,null,null,null,null,510]
[33,"DELNATTE Georges","LIE","58H02914","RHV",477,null,null,null,null,{"$f":"SUM(F37:J37)","v":477},{"$f":"K37/5","v":95.4},{"$f":"L37/2","v":47.7},null,null,null,null,null,null,null,null,null,477]
[34,"HERMAL Raymond","ACB","55H01249","RHV",466,null,null,null,null,466,93.2,46.6,null,null,null,null,null,null,null,null,null,null,null,null,null,null,null,null,null,null,null,null,null,null,466]
[35,"DESSART Hubert","ACM","48H01811","RHV",451,null,null,null,null,451,90.2,45.1,null,null,null,null,null,null,null,null,null,null,null,451]
[36,"DEBATY Dominique","GAU",null,"RHV",430,null,null,null,null,430,86,43,null,null,null,null,null,null,null,430]
[37,"ROBERTO Salvator","ACB","50H02729","RHV",409,null,null,null,null,409,81.8,40.9,null,null,null,null,null,null,null,null,null,null,null,null,null,null,null,null,null,null,null,null,null,null,409]
[38,"FOURNIER Gérard","BTS","55H02754","RHV",408,null,null,null,null,408,81.599999999999994,40.799999999999997,null,null,null,null,null,null,null,null,null,null,null,null,null,null,null,null,null,null,null,null,null,null,null,null,null,null,null,null,null,null,null,null,null,null,408]
[39,"RANDLE Daniel","CMA","47H00700","RHV",399,null,null,null,null,399,79.8,39.9,null,null,null,null,null,null,null,399]
[40,"NEYRET Robert","LAJ","49H00841","RHV",352,null,null,null,null,352,70.400000000000006,35.200000000000003,null,null,null,null,null,null,null,null,null,352]
[41,"SIMON Claude","MDY","51H03522","RHV",287,null,null,null,null,287,57.4,28.7,null,null,null,null,null,null,null,null,null,null,null,null,null,null,null,null,null,null,null,null,null,null,null,null,287]
[42,"STEINIER Robert","ABA ","46H00639","RHV",null,null,null,null,null,0,0,0]
[43,"CHABEAU Andre","MDY","57H03240","RHV",null,null,null,null,null,0,0,0]
[44,"RAHIR Jacques","CTH","44H03480","RHV",null,null,null,null,null,0,0,0]
[45,"MAQUET Gilbert (recurve)","ACF  ","53H02240","RHV",null,null,null,null,null,0,0,0]
[46,"PENA Victor","CTH","54H01714","RHV",null,null,null,null,null,0,0,0]
[47,"VANDEN BOGGAARR Marc","ABA ","57H00558","RHV",null,null,null,null,null,0,0,0]
[48,"NOSSENT Christian","SSK","53H00269","RHV",null,null,null,null,null,0,0,0]
[49,"LUCAS André (recurve)","SSC  ","55H01262","RHV",null,null,null,null,null,0,0,0]
[50,"GESSA Stefano","CAM","45H01355","RHV",null,null,null,null,null,0,0,0]
[51,"ANTOINE Pol","GAU",null,"RHV",null,null,null,null,null,0,0,0]
[52,"REIBER Guy","GSR","46H00175","RHV",null,null,null,null,null,0,0,0]
[53,"HODIAMONT Thierry","FOA","55H0049","RHV",null,null,null,null,null,0,0,0]
[54,"RAHIR Jacques","CTH",null,"RHV",null,null,null,null,null,0,0,0]
[55,"BERUS Alain","BTS","60H02770","RHV",null,null,null,null,null,0,0,0]
[56,"VANDERVELDEN Daniel","HUY  ","51H02731","RHV",null,null,null,null,null,0,0,0]
[{"$f":"IF(B61<>\"\",A60+1,\"\")","v":57},"HANZE Bernard","HUY",null,"RHV",null,null,null,null,null,0,0,0]
[58,"RENARD René","SSK",null,"RHV",null,null,null,null,null,0,0,0]
[59,"VAN ASSCHE Pierre","GPE","48H00236","RHV",null,null,null,null,null,0,0,0]
[60,"VANDENHOOFDEN Bernard","FAO","51H02731","RHV",null,null,null,null,null,0,0,0]
[61,"DE GREEF Jean","SSK","46H00331","RHV",null,null,null,null,null,0,0,0]
[62,"BOEVER Pierre","TAB","56H02663","RHV",null,null,null,null,null,0,0,0]
[63,"VANMEENEN Philippe","FBG","57H03948","RHV",null,null,null,null,null,0,0,0]
[64,"FASSOTTE Charly","CTH","46H01723","RHV",null,null,null,null,null,0,0,0]
[65,"PIETTE Alain","FBG","54H03645","RHV",null,null,null,null,null,{"$f":"SUM(F69:J69)","v":0},{"$f":"K69/5","v":0},{"$f":"L69/2","v":0}]
[66,"RENNEAU Jean-Noel","ADS","59H02001","RHV",null,null,null,null,null,0,0,0]
[67,"HANZE Bernard","HUY","58H01505","RHV",null,null,null,null,null,0,0,0]
[68,"THEYS Marc","LFU","56H04345","RHV",null,null,null,null,null,0,0,0]
[{"$f":"IF(B73<>\"\",A72+1,\"\")","v":""}]
[""]
[""]
[""]
[""]
["",null,"La macro est déclenchée par toute entrée d'une valeur dans le tableau N5:BW20 (modifier le plage si nécessaire dans la macro)"]
[""]
[""]

{"sheet":"18M2022","index":6,"n_rows":97,"n_cols":53,"rows_kept":97,"cut":false,"hidden":false,"merged":[]}
[]
[]
[null,"Nom","Club","Matricule","Cat.","Tir 1 ","Tir 2","Tir 3","Tir 4","Tir 5","Total","M/600","M/300",null,null,null,null,null,"ITW","GAU","ANT","FAO","ChLie","LIE","Telev","HUY","HAC","LFU",2022,"FBG","CAT","SSC","CTH","BEA","ADS","FAC","GPE","LFE","MDY","FAO","DSA","CMA","ACG","LAC","ECA","FGV","KJS","GSR","RCM","LIE","BTS","FOA",2023]
[]
[1,"LEJOLY Daniel","LIE","61H01569","RHV",556,555,552,544,531,{"$f":"SUM(F5:J5)","v":2738},{"$f":"K5/5","v":547.6},{"$f":"L5/2","v":273.8},null,null,null,null,null,null,null,null,null,null,null,null,null,null,null,null,null,null,555,552,null,544,null,null,null,null,null,null,null,556,null,531,null,null,null,null,527,529]
[{"$f":"IF(B6<>\"\",A5+1,\"\")","v":2},"HEYVAERT Etienne","GSR","48H07665","RHV",554,548,548,546,542,2738,547.6,273.8,null,null,null,null,null,null,null,null,null,null,null,null,null,null,null,null,null,null,null,null,null,null,null,538,546,null,null,null,548,null,null,null,null,554,541,null,548,542]
[{"$f":"IF(B7<>\"\",A6+1,\"\")","v":3},"OLBRECHTS Pierre","LAJ","56H00822","RHV",545,535,533,531,528,2672,534.4,267.2,null,null,null,null,null,null,510,null,null,null,528,null,null,null,531,null,null,null,null,520,null,535,null,null,null,533,524,null,null,null,520,488,null,null,null,null,523,545]
[4,"MEYER Marc","GPE","59H04233","RHV",535,535,527,525,524,2646,529.20000000000005,264.60000000000002,null,null,null,null,null,null,501,null,null,null,451,null,null,null,500,null,518,null,521,null,null,null,null,null,null,null,522,null,535,null,null,524,null,null,535,527,null,525]
[5,"SKORUPKA Guy","CEN","57H01040","RHV",532,529,526,523,523,2633,526.6,263.3,null,null,null,null,null,null,null,523,null,null,511,null,null,null,null,null,null,null,499,null,null,null,526,null,508,null,496,null,532,null,null,523,null,null,529,510]
[6,"PIERRE Auguste","CAJ","56H04788","RHV",526,524,524,516,513,2603,520.6,260.3,null,null,null,null,null,513,null,null,null,505,526,null,null,524,null,null,null,null,null,496,null,null,null,null,null,513,null,516,null,493,null,null,null,null,499,null,524]
[7,"COCQUYT Francis","CTH","60H01688","RHV",512,511,510,506,503,2542,508.4,254.2,null,null,null,null,null,485,null,null,null,486,null,null,510,491,null,null,null,null,null,511,null,506,null,null,null,501,null,503,null,512,null,null,null,null,null,null,486]
[8,"FIORA Joel","SSK","57H00342","RHV",516,509,508,508,499,2540,508,254,null,null,null,null,null,null,494,null,null,null,null,null,null,508,492,null,null,null,null,null,null,null,null,null,null,null,516,null,509,null,null,null,null,null,499,null,508]
[9,"DEGHAYE Pierre","ACM","55H01808","RHV",518,513,509,497,495,2532,506.4,253.2,null,null,null,null,null,478,null,null,null,null,494,null,null,478,null,null,null,null,null,477,null,513,null,null,null,509,null,497,null,518,null,null,null,null,null,null,495]
[10,"DELCOMINETTE guy","LIE","48H01514","RHV",515,509,490,481,480,2475,495,247.5,null,null,null,null,null,451,null,null,null,null,459,null,null,null,null,null,null,null,null,480,null,471,null,null,null,509,null,515,null,null,null,null,null,null,490,null,445,481]
[11,"DEPROOST Michel","SSK","61H00337","RHV",493,491,487,481,472,2424,484.8,242.4,null,null,null,null,null,null,493,null,null,null,null,null,null,448,472,null,null,null,null,null,null,null,null,null,null,null,481,null,441,null,null,null,null,null,487,null,491]
[12,"VANDENBERGHE Daniel","CAB","51H02731","RHV",500,498,491,463,461,2413,482.6,241.3,null,null,null,null,null,null,null,null,null,null,461,null,null,null,null,null,443,null,441,null,455,null,439,null,null,null,500,null,498,null,null,491,null,null,null,null,null,463]
[13,"LEJEUNE Paul","LFE","56H00919","RHV",483,481,454,442,441,2301,460.2,230.1,null,null,null,null,null,null,null,399,null,null,null,null,null,null,454,null,null,441,442,null,null,null,null,277,null,null,null,null,null,null,null,null,null,null,483,481]
[14,"PETRONS Joel","LFU","49H00899","RHV",466,465,446,437,430,2244,448.8,224.4,null,null,null,null,null,399,null,null,null,null,null,null,null,413,null,null,437,null,null,466,null,null,null,null,null,420,465,null,430,null,null,null,null,null,null,417,null,446]
[15,"FRYNS Guido","ITW","59H03148","RHV",463,453,450,440,432,2238,447.6,223.8,null,null,null,null,null,389,null,null,null,344,390,null,432,431,410,null,418,null,null,null,null,null,null,null,null,463,397,450,null,453,null,null,440,null,null,null,392,368]
[16,"BARBIEUX Robin","CAJ","57H05709","RHV",452,449,436,426,423,2186,437.2,218.6,null,null,null,null,null,436,null,null,null,null,423,null,null,449,null,null,null,null,null,null,null,null,null,null,null,null,null,426,null,null,null,null,null,null,null,null,452]
[17,"NEYRET Robert","LAJ","49H00841","RHV",441,440,437,422,420,2160,432,216,null,null,null,null,null,null,null,null,null,null,null,null,null,null,null,null,null,null,null,null,null,420,null,null,null,441,null,null,null,null,440,null,null,null,null,null,437,422]
[18,"PAT Henri","ABA ","52H04786","RHV",425,425,410,396,391,2047,409.4,204.7,null,null,null,null,null,null,425,null,null,null,null,null,null,null,425,null,null,null,null,null,null,null,null,null,null,410,null,null,391,null,null,null,null,null,null,null,null,396]
[19,"NIZET Philippe","ITW","61H07318","RHV",429,429,373,361,358,1950,390,195,null,null,null,null,null,null,null,null,null,null,null,null,null,null,null,null,null,null,null,null,null,272,null,null,null,358,361,373,null,null,null,null,429,null,null,null,429]
[20,"DE BON Pierre","SAG","57H03719","RHV",417,392,391,381,361,1942,388.4,194.2,null,null,null,null,null,null,null,381,null,null,null,null,null,null,361,null,null,null,null,null,null,null,null,null,361,null,null,null,392,null,null,391,null,null,null,null,null,417]
[21,"BACOT Paul (recurve)","HUY","50H01459","RHV",444,440,427,406,null,1717,343.4,171.7,null,null,null,null,null,null,null,null,null,null,null,null,null,null,null,null,440,null,null,null,null,null,null,null,null,null,null,null,null,406,null,null,null,null,null,null,444,427]
[22,"HENIN Christian","CEN","58H00999","RHV",363,347,325,314,293,1642,328.4,164.2,null,null,null,null,null,null,null,null,null,null,null,null,null,null,null,null,null,null,314,null,null,null,null,247,325,null,null,null,null,null,null,293,null,null,null,363,null,347]
[23,"NATALIS Joseph","CAJ","42H01967","RHV",510,499,478,null,null,1487,297.39999999999998,148.69999999999999,null,null,null,null,null,null,null,null,null,499,510,null,null,478]
[24,"FOURNIER Gérard","BTS","55H02754","RHV",449,445,413,null,null,1307,261.39999999999998,130.69999999999999,null,null,null,null,null,null,null,null,null,null,445,null,null,449,null,null,null,null,null,null,null,null,null,null,null,null,null,null,null,null,null,null,null,null,null,null,null,413]
[25,"ROBERTO Salvator","ACB","50H02729","RHV",412,408,360,null,null,1180,236,118,null,null,null,null,null,null,null,null,null,null,null,null,null,null,null,null,null,null,360,null,408,null,null,null,null,null,null,null,null,null,null,412]
[26,"LEMIN Gerard","CTH","53H02240","RHV",528,489,null,null,null,1017,203.4,101.7,null,null,null,null,null,489,null,null,null,null,null,null,null,null,null,null,null,null,null,528]
[27,"LUCAS André (recurve)","SSC  ","55H01262","RHV",504,496,null,null,null,1000,200,100,null,null,null,null,null,null,null,null,null,null,null,null,null,null,null,null,null,null,496,null,null,null,null,null,null,null,null,null,null,null,null,null,null,null,null,null,null,504]
[28,"DELVAL Alain","FAO","62H00471","RHV",449,444,null,null,null,893,178.6,89.3,null,null,null,null,null,null,null,null,null,null,null,null,null,null,null,null,null,null,null,null,null,null,444,null,null,null,null,null,null,null,null,449]
[29,"CAMBIER Thierry","MSP","56H03373","RHV",425,423,null,null,null,848,169.6,84.8,null,null,null,null,null,null,null,null,null,null,null,null,null,null,null,null,null,null,null,null,null,null,null,null,null,null,null,null,null,null,423,null,425]
[30,"LIBERT Marc","ACG",null,"RHV",428,367,null,null,null,795,159,79.5,null,null,null,null,null,null,null,null,null,null,null,null,null,null,null,null,null,null,null,428,null,null,null,null,null,null,null,null,null,367]
[31,"CIATTO Giovani","ITW","59H04882","RHV",355,350,null,null,null,705,141,70.5,null,null,null,null,null,350,null,null,null,null,355]
[32,"FASSOTTE Charly","CTH","46H01723","RHV",342,292,null,null,null,634,126.8,63.4,null,null,null,null,null,null,null,null,null,null,342,null,null,null,null,null,null,null,null,null,null,null,null,null,null,null,null,292]
[33,"ESTIEVENART Philippe","LAW","59H02563","RHV",516,null,null,null,null,{"$f":"SUM(F37:J37)","v":516},{"$f":"K37/5","v":103.2},{"$f":"L37/2","v":51.6},null,null,null,null,null,null,null,null,null,null,null,null,null,null,null,null,null,null,null,null,null,516]
[34,"VANHAEREN Patrick","LIE","61H05047","RHV",487,null,null,null,null,487,97.4,48.7,null,null,null,null,null,487]
[35,"BUCHET Eric","SSK","62H00326","RHV",482,null,null,null,null,482,96.4,48.2,null,null,null,null,null,null,null,null,null,null,null,null,null,null,482]
[36,"DAVID Marc","GSR",null,"RHV",478,null,null,null,null,478,95.6,47.8,null,null,null,null,null,null,null,null,null,null,null,null,null,null,null,null,null,null,null,null,null,null,null,null,null,null,null,null,null,null,null,null,null,null,478]
[37,"ANTOINE Pol","GAU",null,"RHV",473,null,null,null,null,473,94.6,47.3,null,null,null,null,null,null,473]
[38,"BERNARD Claude","FGV","51H05874","RHV",471,null,null,null,null,471,94.2,47.1,null,null,null,null,null,null,null,null,null,null,null,null,null,null,null,null,null,null,null,null,null,null,null,null,null,null,null,null,null,null,null,null,471]
[39,"LENDERS Philippe","FAO","53H02240","RHV",462,null,null,null,null,462,92.4,46.2,null,null,null,null,null,null,null,null,null,null,null,null,null,null,null,null,null,null,null,null,null,null,null,null,null,null,462]
[40,"BOUGELET Yvan","FBG",null,"RHV",460,null,null,null,null,460,92,46,null,null,null,null,null,null,null,null,null,null,null,null,null,null,null,null,460]
[41,"ROSKAM Jean-Michel","FDM","57H02325","RHV",459,null,null,null,null,459,91.8,45.9,null,null,null,null,null,null,null,null,null,null,null,null,null,null,null,null,null,null,null,null,null,null,null,null,null,null,null,null,null,null,459]
[42,"RENIERS Claude","MDY","57H04019","RHV",454,null,null,null,null,454,90.8,45.4,null,null,null,null,null,null,null,null,null,null,null,null,null,null,null,null,null,null,null,null,null,null,null,null,null,454]
[43,"BALEINE Yves","CAT","57H04916","RHV",445,null,null,null,null,445,89,44.5,null,null,null,null,null,null,null,null,null,null,null,null,null,null,null,null,null,445]
[44,"GOFFARD Philippe","CTH",null,"RHV",433,null,null,null,null,433,86.6,43.3,null,null,null,null,null,null,null,null,null,null,null,null,null,null,null,null,null,null,null,433]
[45,"REIBER Guy","GSR","46H00175","RHV",397,null,null,null,null,397,79.400000000000006,39.700000000000003,null,null,null,null,null,null,null,null,null,null,null,null,null,null,null,null,null,null,null,null,null,null,null,null,null,null,null,null,null,null,null,null,null,null,397]
[46,"MARIAVELLE Eric","CAL","60H05586","RHV",350,null,null,null,null,350,70,35,null,null,null,null,null,null,null,null,null,null,350]
[47,"LANDOLINO FRANCIS","ACG","56H04781","RHV",306,null,null,null,null,306,61.2,30.6,null,null,null,null,null,null,null,null,null,null,null,null,null,null,null,null,null,null,null,null,null,null,null,null,null,null,null,null,null,306]
[48,"MEISEN Guter","HCB","56H04345","RHV",281,null,null,null,null,281,56.2,28.1,null,null,null,null,null,null,null,null,null,null,null,null,null,null,null,null,null,null,null,null,null,null,null,null,null,null,null,281]
[49,"IANDOLINO Francis","ACG","56H04781","RHV",262,null,null,null,null,262,52.4,26.2,null,null,null,null,null,null,null,null,null,null,null,null,null,null,null,null,null,null,null,null,null,null,null,null,null,null,null,null,null,null,null,null,null,null,null,null,262]
[50,"BROUCKAERT Jeab","CAN","50H02730","RHV",208,null,null,null,null,208,41.6,20.8,null,null,null,null,null,null,null,null,null,null,null,null,null,null,null,null,null,null,null,null,null,null,null,null,null,null,null,null,null,null,null,null,null,null,null,null,null,208]
[51,"DELNATTE Georges","LIE","58H02914","RHV",null,null,null,null,null,0,0,0]
[52,"PENA Victor","CTH","54H01714","RHV",null,null,null,null,null,0,0,0]
[53,"VANDEN BOGGAARR Marc","ABA ","57H00558","RHV",null,null,null,null,null,0,0,0]
[54,"HERMAL Raymond","ACB","55H01249","RHV",null,null,null,null,null,0,0,0]
[55,"DURIEUX Marc","SSC  ","57H01263","RHV",null,null,null,null,null,0,0,0]
[56,"DEBATY Dominique","GAU",null,"RHV",null,null,null,null,null,0,0,0]
[57,"D'HEUR Michel","FAO","46H00532","RHV",null,null,null,null,null,0,0,0]
[58,"METDEPENNINGEN Luc","MDY","59H02050","RHV",null,null,null,null,null,0,0,0]
[59,"GRAVAR Pierre","ECA","52H01303","RHV",null,null,null,null,null,0,0,0]
[60,"PETRUS Gus","GAU","54H00363","RHV",null,null,null,null,null,0,0,0]
[61,"DUPOND Yves","BTS","59H03867","RHV",null,null,null,null,null,0,0,0]
[62,"ANQUETIL Marc","CEN","56H01013","RHV",null,null,null,null,null,0,0,0]
[63,"PEETERS Emmanuel","SSK","59H00357","RHV",null,null,null,null,null,0,0,0]
[64,"SANTOS MONDO Julio",null,"59H04745","RHV",null,null,null,null,null,0,0,0]
[65,"RENNEAU Jean-Noel","ADS","59H02001","RHV",null,null,null,null,null,{"$f":"SUM(F69:J69)","v":0},{"$f":"K69/5","v":0},{"$f":"L69/2","v":0}]
[66,"WIGGELEER Patrick","GSR","56H00096","RHV",null,null,null,null,null,0,0,0]
[{"$f":"IF(B71<>\"\",A70+1,\"\")","v":67},"DESSART Hubert","ACM","48H01811","RHV",null,null,null,null,null,0,0,0]
[68,"RANDLE Daniel","CMA","47H00700","RHV",null,null,null,null,null,0,0,0]
[69,"SIMON Claude","MDY","51H03522","RHV",null,null,null,null,null,0,0,0]
[70,"NOSSENT Christian","SSK","53H00269","RHV",null,null,null,null,null,0,0,0]
[71,"GESSA Stefano","CAM","45H01355","RHV",null,null,null,null,null,0,0,0]
[72,"STEINIER Robert","ABA ","46H00639","RHV",null,null,null,null,null,0,0,0]
[73,"HODIAMONT Thierry","FOA","55H0049","RHV",null,null,null,null,null,0,0,0]
[74,"RAHIR Jacques","CTH",null,"RHV",null,null,null,null,null,0,0,0]
[75,"CHABEAU Andre","MDY","57H03240","RHV",null,null,null,null,null,0,0,0]
[76,"BERUS Alain","BTS","60H02770","RHV",null,null,null,null,null,0,0,0]
[77,"VANDERVELDEN Daniel","HUY  ","51H02731","RHV",null,null,null,null,null,0,0,0]
[78,"HANZE Bernard","HUY",null,"RHV",null,null,null,null,null,0,0,0]
[79,"RENARD René","SSK",null,"RHV",null,null,null,null,null,0,0,0]
[80,"VAN ASSCHE Pierre","GPE","48H00236","RHV",null,null,null,null,null,0,0,0]
[81,"VANDENHOOFDEN Bernard","FAO","51H02731","RHV",null,null,null,null,null,0,0,0]
[82,"DE GREEF Jean","SSK","46H00331","RHV",null,null,null,null,null,0,0,0]
[83,"BOEVER Pierre","TAB","56H02663","RHV",null,null,null,null,null,0,0,0]
[84,"VANMEENEN Philippe","FBG","57H03948","RHV",null,null,null,null,null,0,0,0]
[85,"PIETTE Alain","FBG","54H03645","RHV",null,null,null,null,null,0,0,0]
[86,"RENNEAU Jean-Noel","ADS","59H02001","RHV",null,null,null,null,null,0,0,0]
[87,"RAHIR Jacques","CTH","44H03480","RHV",null,null,null,null,null,0,0,0]
[88,"THEYS Marc","LFU","56H04345","RHV",null,null,null,null,null,0,0,0]
[89,"YY","LFU","56H04345","RHV",null,null,null,null,null,0,0,0]
[]
[]
[]
[null,null,"La macro est déclenchée par toute entrée d'une valeur dans le tableau N5:BW20 (modifier le plage si nécessaire dans la macro)"]

{"sheet":"18M2023","index":7,"n_rows":108,"n_cols":49,"rows_kept":108,"cut":false,"hidden":false,"merged":[]}
[]
[]
[null,"Nom","Club","Matricule","Cat.","Tir 1 ","Tir 2","Tir 3","Tir 4","Tir 5","Total","M/600","M/300",null,null,null,null,null,2023,"ITW","ANT","ABA","LIE","HUY","HAC","LFU","LFE","MDY","FAO","CMA","LAC","ACG","FGV","ECA","GSR","RCM","LIE","BTS","FOA",2022,"AGC","PAC","GAU","ANT","ITW","ABA","LIE","ECA","HUY"]
[]
[1,"ANQUETIL Marc","CEN","56H01013","RHV",null,null,null,null,null,{"$f":"SUM(F5:J5)","v":0},{"$f":"K5/5","v":0},{"$f":"L5/2","v":0}]
[{"$f":"IF(B6<>\"\",A5+1,\"\")","v":2},"ANTOINE Pol","GAU",null,"RHV",null,null,null,null,null,0,0,0]
[{"$f":"IF(B7<>\"\",A6+1,\"\")","v":3},"BACOT Paul (recurve)","HUY","50H01459","RHV",null,null,null,null,null,0,0,0]
[4,"BALEINE Yves","CAT","57H04916","RHV",null,null,null,null,null,0,0,0]
[5,"BARBIEUX Robin","CAJ","57H05709","RHV",null,null,null,null,null,0,0,0]
[6,"BERUS Alain","BTS","60H02770","RHV",null,null,null,null,null,0,0,0]
[7,"BOEVER Pierre","TAB","56H02663","RHV",null,null,null,null,null,0,0,0]
[8,"BOUGELET Yvan","FBG",null,"RHV",null,null,null,null,null,0,0,0]
[9,"BUCHET Eric","SSK","62H00326","RHV",null,null,null,null,null,0,0,0]
[10,"CAMBIER Thierry","MSP","56H03373","RHV",null,null,null,null,null,0,0,0]
[11,"CHABEAU Andre","MDY","57H03240","RHV",null,null,null,null,null,0,0,0]
[12,"CIATTO Giovani","ITW","59H04882","RHV",null,null,null,null,null,0,0,0]
[13,"COCQUYT Francis","CTH","60H01688","RHV",null,null,null,null,null,0,0,0]
[14,"DE BON Pierre","SAG","57H03719","RHV",null,null,null,null,null,0,0,0]
[15,"DE GREEF Jean","SSK","46H00331","RHV",null,null,null,null,null,0,0,0]
[16,"DEBATY Dominique","GAU",null,"RHV",null,null,null,null,null,0,0,0]
[17,"DEGHAYE Pierre","ACM","55H01808","RHV",null,null,null,null,null,0,0,0]
[18,"DELCOMINETTE guy","LIE","48H01514","RHV",null,null,null,null,null,0,0,0]
[19,"DELNATTE Georges","LIE","58H02914","RHV",null,null,null,null,null,0,0,0]
[20,"DELVAL Alain","FAO","62H00471","RHV",null,null,null,null,null,0,0,0]
[21,"DEPROOST Michel","SSK","61H00337","RHV",null,null,null,null,null,0,0,0]
[22,"DESSART Hubert","ACM","48H01811","RHV",null,null,null,null,null,0,0,0]
[23,"D'HEUR Michel","FAO","46H00532","RHV",null,null,null,null,null,0,0,0]
[24,"DUPOND Yves","BTS","59H03867","RHV",null,null,null,null,null,0,0,0]
[25,"DURIEUX Marc","SSC  ","57H01263","RHV",null,null,null,null,null,0,0,0]
[26,"ESTIEVENART Philippe","LAW","59H02563","RHV",null,null,null,null,null,0,0,0]
[27,"FASSOTTE Charly","CTH","46H01723","RHV",null,null,null,null,null,0,0,0]
[28,"FIORA Joel","SSK","57H00342","RHV",null,null,null,null,null,0,0,0]
[29,"FOURNIER Gérard","BTS","55H02754","RHV",null,null,null,null,null,0,0,0]
[30,"FRYNS Guido","ITW","59H03148","RHV",null,null,null,null,null,0,0,0]
[31,"GESSA Stefano","CAM","45H01355","RHV",null,null,null,null,null,0,0,0]
[32,"GOFFARD Philippe","CTH",null,"RHV",null,null,null,null,null,0,0,0]
[33,"GRAVAR Pierre","ECA","52H01303","RHV",null,null,null,null,null,{"$f":"SUM(F37:J37)","v":0},{"$f":"K37/5","v":0},{"$f":"L37/2","v":0}]
[34,"HANZE Bernard","HUY",null,"RHV",null,null,null,null,null,0,0,0]
[35,"HANZE Bernard","HUY","58H01505","RHV",null,null,null,null,null,0,0,0]
[36,"HENIN Christian","CEN","58H00999","RHV",null,null,null,null,null,0,0,0]
[37,"HERMAL Raymond","ACB","55H01249","RHV",null,null,null,null,null,0,0,0]
[38,"HEYVAERT Etienne","GSR","48H07665","RHV",null,null,null,null,null,0,0,0]
[39,"HODIAMONT Thierry","FOA","55H0049","RHV",null,null,null,null,null,0,0,0]
[40,"LANDOLINO FRANCIS","ACG","56H04781","RHV",null,null,null,null,null,0,0,0]
[41,"LEJEUNE Paul","LFE","56H00919","RHV",null,null,null,null,null,0,0,0]
[42,"LEJOLY Daniel","LIE","61H01569","RHV",null,null,null,null,null,0,0,0]
[43,"LEMIN Gerard","CTH","53H02240","RHV",null,null,null,null,null,0,0,0]
[44,"LENDERS Philippe","FAO","53H02240","RHV",null,null,null,null,null,0,0,0]
[45,"LIBERT Marc","ACG",null,"RHV",null,null,null,null,null,0,0,0]
[46,"LUCAS André (recurve)","SSC  ","55H01262","RHV",null,null,null,null,null,0,0,0]
[47,"MAQUET Gilbert (recurve)","ACF  ","53H02240","RHV",null,null,null,null,null,0,0,0]
[48,"MARIAVELLE Eric","CAL","60H05586","RHV",null,null,null,null,null,0,0,0]
[49,"MEISEN Guter","HCB","56H04345","RHV",null,null,null,null,null,0,0,0]
[50,"METDEPENNINGEN Luc","MDY","59H02050","RHV",null,null,null,null,null,0,0,0]
[51,"MEYER Marc","GPE","59H04233","RHV",null,null,null,null,null,0,0,0]
[52,"NATALIS Joseph","CAJ","42H01967","RHV",null,null,null,null,null,0,0,0]
[53,"NEYRET Robert","LAJ","49H00841","RHV",null,null,null,null,null,0,0,0]
[54,"NIZET Philippe","ITW","61H07318","RHV",null,null,null,null,null,0,0,0]
[55,"NOSSENT Christian","SSK","53H00269","RHV",null,null,null,null,null,0,0,0]
[56,"OLBRECHTS Pierre","LAJ","56H00822","RHV",null,null,null,null,null,0,0,0]
[57,"PAT Henri","ABA ","52H04786","RHV",null,null,null,null,null,0,0,0]
[58,"PEETERS Emmanuel","SSK","59H00357","RHV",null,null,null,null,null,0,0,0]
[59,"PENA Victor","CTH","54H01714","RHV",null,null,null,null,null,0,0,0]
[60,"PETRONS Joel","LFU","49H00899","RHV",null,null,null,null,null,0,0,0]
[61,"PETRUS Gus","GAU","54H00363","RHV",null,null,null,null,null,0,0,0]
[62,"PIERRE Auguste","CAJ","56H04788","RHV",null,null,null,null,null,0,0,0]
[63,"PIETTE Alain","FBG","54H03645","RHV",null,null,null,null,null,0,0,0]
[64,"RAHIR Jacques","CTH","44H03480","RHV",null,null,null,null,null,0,0,0]
[65,"RAHIR Jacques","CTH",null,"RHV",null,null,null,null,null,{"$f":"SUM(F69:J69)","v":0},{"$f":"K69/5","v":0},{"$f":"L69/2","v":0}]
[66,"RANDLE Daniel","CMA","47H00700","RHV",null,null,null,null,null,0,0,0]
[{"$f":"IF(B71<>\"\",A70+1,\"\")","v":67},"REIBER Guy","GSR","46H00175","RHV",null,null,null,null,null,0,0,0]
[68,"RENARD René","SSK",null,"RHV",null,null,null,null,null,0,0,0]
[69,"RENIERS Claude","MDY","57H04019","RHV",null,null,null,null,null,0,0,0]
[70,"RENNEAU Jean-Noel","ADS","59H02001","RHV",null,null,null,null,null,0,0,0]
[71,"RENNEAU Jean-Noel","ADS","59H02001","RHV",null,null,null,null,null,0,0,0]
[72,"ROBERTO Salvator","ACB","50H02729","RHV",null,null,null,null,null,0,0,0]
[73,"ROSKAM Jean-Michel","FDM","57H02325","RHV",null,null,null,null,null,0,0,0]
[74,"SANTOS MONDO Julio",null,"59H04745","RHV",null,null,null,null,null,0,0,0]
[75,"SIMON Claude","MDY","51H03522","RHV",null,null,null,null,null,0,0,0]
[76,"SKORUPKA Guy","CEN","57H01040","RHV",null,null,null,null,null,0,0,0]
[77,"STEINIER Robert","ABA ","46H00639","RHV",null,null,null,null,null,0,0,0]
[78,"THEYS Marc","LFU","56H04345","RHV",null,null,null,null,null,0,0,0]
[79,"VAN ASSCHE Pierre","GPE","48H00236","RHV",null,null,null,null,null,0,0,0]
[80,"VANDEN BOGGAARR Marc","ABA ","57H00558","RHV",null,null,null,null,null,0,0,0]
[81,"VANDENBERGHE Daniel","CAB","51H02731","RHV",null,null,null,null,null,0,0,0]
[82,"VANDENHOOFDEN Bernard","FAO","51H02731","RHV",null,null,null,null,null,0,0,0]
[83,"VANDERVELDEN Daniel","HUY  ","51H02731","RHV",null,null,null,null,null,0,0,0]
[84,"VANHAEREN Patrick","LIE","61H05047","RHV",null,null,null,null,null,0,0,0]
[85,"VANMEENEN Philippe","FBG","57H03948","RHV",null,null,null,null,null,0,0,0]
[86,"WIGGELEER Patrick","GSR","56H00096","RHV",null,null,null,null,null,0,0,0]
[87,"YY","ACF  ","53H02240","RHV",null,null,null,null,null,0,0,0]
[]
[]
[]
[]
[]
[]
[]
[]
[]
[]
[]
[]
[]
[]
[]
[]
[null,null,"La macro est déclenchée par toute entrée d'une valeur dans le tableau N5:BW20 (modifier le plage si nécessaire dans la macro)"]

{"sheet":"18M2024","index":8,"n_rows":108,"n_cols":49,"rows_kept":108,"cut":false,"hidden":false,"merged":[]}
[]
[]
[null,"Nom","Club","Matricule","Cat.","Tir 1 ","Tir 2","Tir 3","Tir 4","Tir 5","Total","M/600","M/300",null,null,null,null,null,2023,"ITW","ANT","ABA","LIE","HUY","HAC","LFU","LFE","MDY","FAO","CMA","LAC","ACG","FGV","ECA","GSR","RCM","LIE","BTS","FOA",2022,"AGC","PAC","GAU","ANT","ITW","ABA","LIE","ECA","HUY"]
[]
[1,"YY","ACF  ","53H02240","RHV",null,null,null,null,null,{"$f":"SUM(F5:J5)","v":0},{"$f":"K5/5","v":0},{"$f":"L5/2","v":0}]
[{"$f":"IF(B6<>\"\",A5+1,\"\")","v":2},"HEYVAERT Etienne","GSR","48H07665","RHV",null,null,null,null,null,0,0,0]
[{"$f":"IF(B7<>\"\",A6+1,\"\")","v":3},"NATALIS Joseph","CAJ","42H01967","RHV",null,null,null,null,null,0,0,0]
[4,"PAT Henri","ABA ","52H04786","RHV",null,null,null,null,null,0,0,0]
[5,"LEJOLY Daniel","LIE","61H01569","RHV",null,null,null,null,null,0,0,0]
[6,"OLBRECHTS Pierre","LAJ","56H00822","RHV",null,null,null,null,null,0,0,0]
[7,"MEYER Marc","GPE","59H04233","RHV",null,null,null,null,null,0,0,0]
[8,"SKORUPKA Guy","CEN","57H01040","RHV",null,null,null,null,null,0,0,0]
[9,"PIERRE Auguste","CAJ","56H04788","RHV",null,null,null,null,null,0,0,0]
[10,"COCQUYT Francis","CTH","60H01688","RHV",null,null,null,null,null,0,0,0]
[11,"DEGHAYE Pierre","ACM","55H01808","RHV",null,null,null,null,null,0,0,0]
[12,"FIORA Joel","SSK","57H00342","RHV",null,null,null,null,null,0,0,0]
[13,"DELCOMINETTE guy","LIE","48H01514","RHV",null,null,null,null,null,0,0,0]
[14,"VANDENBERGHE Daniel","CAB","51H02731","RHV",null,null,null,null,null,0,0,0]
[15,"DEPROOST Michel","SSK","61H00337","RHV",null,null,null,null,null,0,0,0]
[16,"FRYNS Guido","ITW","59H03148","RHV",null,null,null,null,null,0,0,0]
[17,"PETRONS Joel","LFU","49H00899","RHV",null,null,null,null,null,0,0,0]
[18,"LEJEUNE Paul","LFE","56H00919","RHV",null,null,null,null,null,0,0,0]
[19,"DE BON Pierre","SAG","57H03719","RHV",null,null,null,null,null,0,0,0]
[20,"BARBIEUX Robin","CAJ","57H05709","RHV",null,null,null,null,null,0,0,0]
[21,"NIZET Philippe","ITW","61H07318","RHV",null,null,null,null,null,0,0,0]
[22,"NEYRET Robert","LAJ","49H00841","RHV",null,null,null,null,null,0,0,0]
[23,"ROBERTO Salvator","ACB","50H02729","RHV",null,null,null,null,null,0,0,0]
[24,"HENIN Christian","CEN","58H00999","RHV",null,null,null,null,null,0,0,0]
[25,"LEMIN Gerard","CTH","53H02240","RHV",null,null,null,null,null,0,0,0]
[26,"FOURNIER Gérard","BTS","55H02754","RHV",null,null,null,null,null,0,0,0]
[27,"DELVAL Alain","FAO","62H00471","RHV",null,null,null,null,null,0,0,0]
[28,"BACOT Paul (recurve)","HUY","50H01459","RHV",null,null,null,null,null,0,0,0]
[29,"LIBERT Marc","ACG",null,"RHV",null,null,null,null,null,0,0,0]
[30,"CIATTO Giovani","ITW","59H04882","RHV",null,null,null,null,null,0,0,0]
[31,"FASSOTTE Charly","CTH","46H01723","RHV",null,null,null,null,null,0,0,0]
[32,"ESTIEVENART Philippe","LAW","59H02563","RHV",null,null,null,null,null,0,0,0]
[33,"LUCAS André (recurve)","SSC  ","55H01262","RHV",null,null,null,null,null,{"$f":"SUM(F37:J37)","v":0},{"$f":"K37/5","v":0},{"$f":"L37/2","v":0}]
[34,"VANHAEREN Patrick","LIE","61H05047","RHV",null,null,null,null,null,0,0,0]
[35,"BUCHET Eric","SSK","62H00326","RHV",null,null,null,null,null,0,0,0]
[36,"ANTOINE Pol","GAU",null,"RHV",null,null,null,null,null,0,0,0]
[37,"LENDERS Philippe","FAO","53H02240","RHV",null,null,null,null,null,0,0,0]
[38,"BOUGELET Yvan","FBG",null,"RHV",null,null,null,null,null,0,0,0]
[39,"ROSKAM Jean-Michel","FDM","57H02325","RHV",null,null,null,null,null,0,0,0]
[40,"RENIERS Claude","MDY","57H04019","RHV",null,null,null,null,null,0,0,0]
[41,"BALEINE Yves","CAT","57H04916","RHV",null,null,null,null,null,0,0,0]
[42,"GOFFARD Philippe","CTH",null,"RHV",null,null,null,null,null,0,0,0]
[43,"CAMBIER Thierry","MSP","56H03373","RHV",null,null,null,null,null,0,0,0]
[44,"MARIAVELLE Eric","CAL","60H05586","RHV",null,null,null,null,null,0,0,0]
[45,"LANDOLINO FRANCIS","ACG","56H04781","RHV",null,null,null,null,null,0,0,0]
[46,"MEISEN Guter","HCB","56H04345","RHV",null,null,null,null,null,0,0,0]
[47,"DURIEUX Marc","SSC  ","57H01263","RHV",null,null,null,null,null,0,0,0]
[48,"D'HEUR Michel","FAO","46H00532","RHV",null,null,null,null,null,0,0,0]
[49,"METDEPENNINGEN Luc","MDY","59H02050","RHV",null,null,null,null,null,0,0,0]
[50,"GRAVAR Pierre","ECA","52H01303","RHV",null,null,null,null,null,0,0,0]
[51,"PETRUS Gus","GAU","54H00363","RHV",null,null,null,null,null,0,0,0]
[52,"DUPOND Yves","BTS","59H03867","RHV",null,null,null,null,null,0,0,0]
[53,"ANQUETIL Marc","CEN","56H01013","RHV",null,null,null,null,null,0,0,0]
[54,"PEETERS Emmanuel","SSK","59H00357","RHV",null,null,null,null,null,0,0,0]
[55,"SANTOS MONDO Julio",null,"59H04745","RHV",null,null,null,null,null,0,0,0]
[56,"RENNEAU Jean-Noel","ADS","59H02001","RHV",null,null,null,null,null,0,0,0]
[57,"WIGGELEER Patrick","GSR","56H00096","RHV",null,null,null,null,null,0,0,0]
[58,"DELNATTE Georges","LIE","58H02914","RHV",null,null,null,null,null,0,0,0]
[59,"HERMAL Raymond","ACB","55H01249","RHV",null,null,null,null,null,0,0,0]
[60,"DESSART Hubert","ACM","48H01811","RHV",null,null,null,null,null,0,0,0]
[61,"DEBATY Dominique","GAU",null,"RHV",null,null,null,null,null,0,0,0]
[62,"RANDLE Daniel","CMA","47H00700","RHV",null,null,null,null,null,0,0,0]
[63,"SIMON Claude","MDY","51H03522","RHV",null,null,null,null,null,0,0,0]
[64,"PENA Victor","CTH","54H01714","RHV",null,null,null,null,null,0,0,0]
[65,"VANDEN BOGGAARR Marc","ABA ","57H00558","RHV",null,null,null,null,null,{"$f":"SUM(F69:J69)","v":0},{"$f":"K69/5","v":0},{"$f":"L69/2","v":0}]
[66,"NOSSENT Christian","SSK","53H00269","RHV",null,null,null,null,null,0,0,0]
[{"$f":"IF(B71<>\"\",A70+1,\"\")","v":67},"GESSA Stefano","CAM","45H01355","RHV",null,null,null,null,null,0,0,0]
[68,"REIBER Guy","GSR","46H00175","RHV",null,null,null,null,null,0,0,0]
[69,"STEINIER Robert","ABA ","46H00639","RHV",null,null,null,null,null,0,0,0]
[70,"HODIAMONT Thierry","FOA","55H0049","RHV",null,null,null,null,null,0,0,0]
[71,"RAHIR Jacques","CTH",null,"RHV",null,null,null,null,null,0,0,0]
[72,"CHABEAU Andre","MDY","57H03240","RHV",null,null,null,null,null,0,0,0]
[73,"BERUS Alain","BTS","60H02770","RHV",null,null,null,null,null,0,0,0]
[74,"VANDERVELDEN Daniel","HUY  ","51H02731","RHV",null,null,null,null,null,0,0,0]
[75,"HANZE Bernard","HUY",null,"RHV",null,null,null,null,null,0,0,0]
[76,"RENARD René","SSK",null,"RHV",null,null,null,null,null,0,0,0]
[77,"VAN ASSCHE Pierre","GPE","48H00236","RHV",null,null,null,null,null,0,0,0]
[78,"VANDENHOOFDEN Bernard","FAO","51H02731","RHV",null,null,null,null,null,0,0,0]
[79,"DE GREEF Jean","SSK","46H00331","RHV",null,null,null,null,null,0,0,0]
[80,"BOEVER Pierre","TAB","56H02663","RHV",null,null,null,null,null,0,0,0]
[81,"VANMEENEN Philippe","FBG","57H03948","RHV",null,null,null,null,null,0,0,0]
[82,"PIETTE Alain","FBG","54H03645","RHV",null,null,null,null,null,0,0,0]
[83,"RENNEAU Jean-Noel","ADS","59H02001","RHV",null,null,null,null,null,0,0,0]
[84,"HANZE Bernard","HUY","58H01505","RHV",null,null,null,null,null,0,0,0]
[85,"RAHIR Jacques","CTH","44H03480","RHV",null,null,null,null,null,0,0,0]
[86,"THEYS Marc","LFU","56H04345","RHV",null,null,null,null,null,0,0,0]
[87,"MAQUET Gilbert (recurve)","ACF  ","53H02240","RHV",null,null,null,null,null,0,0,0]
[]
[]
[]
[]
[]
[]
[]
[]
[]
[]
[]
[]
[]
[]
[]
[]
[null,null,"La macro est déclenchée par toute entrée d'une valeur dans le tableau N5:BW20 (modifier le plage si nécessaire dans la macro)"]

{"sheet":"18M2025","index":9,"n_rows":80,"n_cols":49,"rows_kept":80,"cut":false,"hidden":false,"merged":[]}
[]
[]
[null,"Nom","Club","Matricule","Cat.","Tir 1 ","Tir 2","Tir 3","Tir 4","Tir 5","Total","M/600","M/300",null,null,null,null,null,"ITW","GAU","ANT","FAO","LIE","HUY","HAC","LFU","LFE","MDY","FAO","CMA","LAC","ACG","FGV","ECA","GSR","RCM","LIE","BTS","FOA",2022,"AGC","PAC","GAU","ANT","ITW","ABA","LIE","ECA","HUY"]
[]
[1,"FRYNS Guido","ITW","59H03148","RHV",432,431,410,390,389,{"$f":"SUM(F5:J5)","v":2052},{"$f":"K5/5","v":410.4},{"$f":"L5/2","v":205.2},null,null,null,null,null,389,null,null,null,390,432,431,410]
[{"$f":"IF(B6<>\"\",A5+1,\"\")","v":2},"OLBRECHTS Pierre","LAJ","56H00822","RHV",531,528,510,null,null,1569,313.8,156.9,null,null,null,null,null,null,510,null,null,528,null,null,531]
[{"$f":"IF(B7<>\"\",A6+1,\"\")","v":3},"PIERRE Auguste","CAJ","56H04788","RHV",526,524,513,null,null,1563,312.60000000000002,156.30000000000001,null,null,null,null,null,513,null,null,null,526,null,524]
[4,"FIORA Joel","SSK","57H00342","RHV",508,494,492,null,null,1494,298.8,149.4,null,null,null,null,null,null,494,null,null,null,null,508,492]
[5,"COCQUYT Francis","CTH","60H01688","RHV",510,491,485,null,null,1486,297.2,148.6,null,null,null,null,null,485,null,null,null,null,510,491]
[6,"MEYER Marc","GPE","59H04233","RHV",501,500,451,null,null,1452,290.39999999999998,145.19999999999999,null,null,null,null,null,null,501,null,null,451,null,null,500]
[7,"DEGHAYE Pierre","ACM","55H01808","RHV",494,478,478,null,null,1450,290,145,null,null,null,null,null,478,null,null,null,494,null,478]
[8,"DEPROOST Michel","SSK","61H00337","RHV",493,472,448,null,null,1413,282.60000000000002,141.30000000000001,null,null,null,null,null,null,493,null,null,null,null,448,472]
[9,"BARBIEUX Robin","CAJ","57H05709","RHV",449,436,423,null,null,1308,261.60000000000002,130.80000000000001,null,null,null,null,null,436,null,null,null,423,null,449]
[10,"SKORUPKA Guy","CEN","57H01040","RHV",523,511,null,null,null,1034,206.8,103.4,null,null,null,null,null,null,null,523,null,511]
[11,"NATALIS Joseph","CAJ","42H01967","RHV",510,478,null,null,null,988,197.6,98.8,null,null,null,null,null,null,null,null,null,510,null,478]
[12,"DELCOMINETTE guy","LIE","48H01514","RHV",459,451,null,null,null,910,182,91,null,null,null,null,null,451,null,null,null,459]
[13,"FOURNIER Gérard","BTS","55H02754","RHV",449,445,null,null,null,894,178.8,89.4,null,null,null,null,null,null,null,null,null,445,null,449]
[14,"LEJEUNE Paul","LFE","56H00919","RHV",454,399,null,null,null,853,170.6,85.3,null,null,null,null,null,null,null,399,null,null,null,null,454]
[15,"PAT Henri","ABA ","52H04786","RHV",425,425,null,null,null,850,170,85,null,null,null,null,null,null,425,null,null,null,null,null,425]
[16,"PETRONS Joel","LFU","49H00899","RHV",413,399,null,null,null,812,162.4,81.2,null,null,null,null,null,399,null,null,null,null,null,413]
[17,"DE BON Pierre","SAG","57H03719","RHV",381,361,null,null,null,742,148.4,74.2,null,null,null,null,null,null,null,381,null,null,null,null,361]
[18,"CIATTO Giovani","ITW","59H04882","RHV",355,350,null,null,null,705,141,70.5,null,null,null,null,null,350,null,null,null,355]
[19,"LEMIN Gerard","ITW","53H02240","RHV",489,null,null,null,null,489,97.8,48.9,null,null,null,null,null,489]
[20,"VANHAEREN Patrick","LIE","61H05047","RHV",487,null,null,null,null,487,97.4,48.7,null,null,null,null,null,487]
[21,"BUCHET Eric","SSK","62H00326","RHV",482,null,null,null,null,482,96.4,48.2,null,null,null,null,null,null,null,null,null,null,null,null,482]
[22,"ANTOINE Pol","GAU",null,"RHV",473,null,null,null,null,473,94.6,47.3,null,null,null,null,null,null,473]
[23,"VANDENBERGHE Daniel","CAB","51H02731","RHV",461,null,null,null,null,461,92.2,46.1,null,null,null,null,null,null,null,null,null,461]
[24,"MARIAVELLE Eric","CAL","60H05586","RHV",350,null,null,null,null,350,70,35,null,null,null,null,null,null,null,null,null,350]
[25,"FASSOTTE Charly","CTH","46H01723","RHV",342,null,null,null,null,342,68.400000000000006,34.200000000000003,null,null,null,null,null,null,null,null,null,342]
[26,"ANQUETIL Marc","CEN","56H01013","RHV",300,null,null,null,null,300,60,30,null,null,null,null,null,null,300]
[27,"DURIEUX Marc","SSC  ","57H01263","RHV",null,null,null,null,null,0,0,0]
[28,"DEBATY Dominique","GAU",null,"RHV",null,null,null,null,null,0,0,0]
[29,"PEETERS Emmanuel","SSK","59H00357","RHV",null,null,null,null,null,0,0,0]
[30,"DUPOND Yves","BTS","59H03867","RHV",null,null,null,null,null,0,0,0]
[31,"METDEPENNINGEN Luc","MDY","59H02050","RHV",null,null,null,null,null,0,0,0]
[32,"BACOT Paul (recurve)","HUY","50H01459","RHV",null,null,null,null,null,0,0,0]
[33,"D'HEUR Michel","FAO","46H00532","RHV",null,null,null,null,null,{"$f":"SUM(F37:J37)","v":0},{"$f":"K37/5","v":0},{"$f":"L37/2","v":0}]
[34,"GRAVAR Pierre","ECA","52H01303","RHV",null,null,null,null,null,0,0,0]
[35,"PETRUS Gus","GAU","54H00363","RHV",null,null,null,null,null,0,0,0]
[36,"LANDOLINO FRANCIS","ACG","56H04781","RHV",null,null,null,null,null,0,0,0]
[37,"SANTOS MONDO Julio",null,"59H04745","RHV",null,null,null,null,null,0,0,0]
[38,"RENNEAU Jean-Noel","ADS","59H02001","RHV",null,null,null,null,null,0,0,0]
[39,"WIGGELEER Patrick","GSR","56H00096","RHV",null,null,null,null,null,0,0,0]
[40,"DELNATTE Georges","LIE","58H02914","RHV",null,null,null,null,null,0,0,0]
[41,"HERMAL Raymond","ACB","55H01249","RHV",null,null,null,null,null,0,0,0]
[42,"DESSART Hubert","ACM","48H01811","RHV",null,null,null,null,null,0,0,0]
[43,"ROBERTO Salvator","ACB","50H02729","RHV",null,null,null,null,null,0,0,0]
[44,"RANDLE Daniel","CMA","47H00700","RHV",null,null,null,null,null,0,0,0]
[45,"NEYRET Robert","LAJ","49H00841","RHV",null,null,null,null,null,0,0,0]
[46,"SIMON Claude","MDY","51H03522","RHV",null,null,null,null,null,0,0,0]
[47,"PENA Victor","CTH","54H01714","RHV",null,null,null,null,null,0,0,0]
[48,"VANDEN BOGGAARR Marc","ABA ","57H00558","RHV",null,null,null,null,null,0,0,0]
[49,"NOSSENT Christian","SSK","53H00269","RHV",null,null,null,null,null,0,0,0]
[50,"LUCAS André (recurve)","SSC  ","55H01262","RHV",null,null,null,null,null,0,0,0]
[51,"GESSA Stefano","CAM","45H01355","RHV",null,null,null,null,null,0,0,0]
[52,"REIBER Guy","GSR","46H00175","RHV",null,null,null,null,null,0,0,0]
[53,"STEINIER Robert","ABA ","46H00639","RHV",null,null,null,null,null,0,0,0]
[54,"HODIAMONT Thierry","FOA","55H0049","RHV",null,null,null,null,null,{"$f":"SUM(F58:J58)","v":0},{"$f":"K58/5","v":0},{"$f":"L58/2","v":0}]
[55,"RAHIR Jacques","CTH",null,"RHV",null,null,null,null,null,0,0,0]
[56,"CHABEAU Andre","MDY","57H03240","RHV",null,null,null,null,null,0,0,0]
[57,"BERUS Alain","BTS","60H02770","RHV",null,null,null,null,null,0,0,0]
[58,"VANDERVELDEN Daniel","HUY  ","51H02731","RHV",null,null,null,null,null,0,0,0]
[59,"HANZE Bernard","HUY",null,"RHV",null,null,null,null,null,0,0,0]
[60,"RENARD René","SSK",null,"RHV",null,null,null,null,null,0,0,0]
[61,"VAN ASSCHE Pierre","GPE","48H00236","RHV",null,null,null,null,null,0,0,0]
[62,"VANDENHOOFDEN Bernard","FAO","51H02731","RHV",null,null,null,null,null,0,0,0]
[63,"DE GREEF Jean","SSK","46H00331","RHV",null,null,null,null,null,0,0,0]
[64,"BOEVER Pierre","TAB","56H02663","RHV",null,null,null,null,null,0,0,0]
[65,"VANMEENEN Philippe","FBG","57H03948","RHV",null,null,null,null,null,{"$f":"SUM(F69:J69)","v":0},{"$f":"K69/5","v":0},{"$f":"L69/2","v":0}]
[66,"PIETTE Alain","FBG","54H03645","RHV",null,null,null,null,null,0,0,0]
[{"$f":"IF(B71<>\"\",A70+1,\"\")","v":67},"RENNEAU Jean-Noel","ADS","59H02001","RHV",null,null,null,null,null,0,0,0]
[68,"HANZE Bernard","HUY","58H01505","RHV",null,null,null,null,null,0,0,0]
[69,"RAHIR Jacques","CTH","44H03480","RHV",null,null,null,null,null,0,0,0]
[70,"THEYS Marc","LFU","56H04345","RHV",null,null,null,null,null,0,0,0]
[71,"MAQUET Gilbert (recurve)","ACF  ","53H02240","RHV",null,null,null,null,null,0,0,0]
[72,"X",null,null,"RHV",null,null,null,null,null,0,0,0]
[""]
[""]
[""]
["",null,"La macro est déclenchée par toute entrée d'une valeur dans le tableau N5:BW20 (modifier le plage si nécessaire dans la macro)"]

{"sheet":"25M2019","index":10,"n_rows":78,"n_cols":38,"rows_kept":78,"cut":false,"hidden":false,"merged":[]}
[]
[]
[null,"Nom","Club","Matricule","Cat.","Tir 1 ","Tir 2","Tir 3","Tir 4","Tir 5","Total","M/600","M/300",null,null,null,null,null,null,"SSC","GSR","FGV","ECA","ITW","CTH","GPE","LIE","LFE","BTS","CEN","ANT","GSR","CAS","GAU","HAC","ACG","BTS","GSR"]
[]
[1,"SKORUPKA Guy","CEN","57H01040","RHV",623,599,592,564,563,{"$f":"SUM(F5:J5)","v":2941},{"$f":"K5/5","v":588.20000000000005},{"$f":"L5/2","v":294.10000000000002},null,null,null,null,null,null,null,null,null,null,null,null,null,null,null,623,null,592,564,null,563,599]
[{"$f":"IF(B6<>\"\",A5+1,\"\")","v":2},"DELCOMINETTE guy","LIE","48H01514","RHV",607,572,564,561,526,2830,566,283,null,null,null,null,null,null,null,null,null,null,572,null,null,526,null,607,null,null,561,564]
[{"$f":"IF(B7<>\"\",A6+1,\"\")","v":3},"BACOT Paul (recurve)","HUY","50H01459","RHV",593,572,557,552,552,2826,565.20000000000005,282.60000000000002,null,null,null,null,null,null,null,null,null,null,572,null,null,557,null,552,null,null,null,null,null,552,593]
[4,"PETRONS Joel","LFU","49H00899","RHV",578,561,561,561,539,2800,560,280,null,null,null,null,null,null,null,null,null,null,561,null,null,null,null,561,null,null,561,578,null,539]
[5,"PETRUS Gus","GAU","54H00363","RHV",558,557,528,527,461,2631,526.20000000000005,263.10000000000002,null,null,null,null,null,null,null,null,null,null,null,null,null,461,null,null,null,528,null,558,557,527]
[6,"DELNATTE Georges","LIE","58H02914","RHV",581,568,562,555,null,2266,453.2,226.6,null,null,null,null,null,null,null,null,null,null,555,null,null,null,null,562,null,null,581,null,null,568]
[7,"FRYNS Guido","ITW","59H03148","RHV",504,456,434,426,420,2240,448,224,null,null,null,null,null,null,null,null,504,null,456,null,null,426,null,null,null,null,420,434,null,396]
[8,"METDEPENNINGEN Luc","MDY","59H02050","RHV",521,510,497,491,null,2019,403.8,201.9,null,null,null,null,null,null,null,null,null,null,null,null,null,521,null,510,null,null,null,491,null,497]
[9,"D'HEUR Michel","FAO","46H00532","RHV",608,593,null,null,null,1201,240.2,120.1,null,null,null,null,null,null,null,null,null,null,null,null,null,null,null,null,null,null,593,null,608]
[10,"REIBER Guy","GSR","46H00175","RHV",474,410,null,null,null,884,176.8,88.4,null,null,null,null,null,null,null,null,null,null,null,null,null,null,null,null,null,null,410,null,474]
[11,"THEYS Marc","LFU","56H04345","RHV",399,385,null,null,null,784,156.80000000000001,78.400000000000006,null,null,null,null,null,null,null,null,null,null,null,null,null,null,null,null,null,null,385,null,null,399]
[12,"RENNEAU Jean-Noel","ADS","59H02001","RHV",588,null,null,null,null,588,117.6,58.8,null,null,null,null,null,null,null,null,null,null,null,null,null,null,null,null,null,null,null,588]
[13,"VANDENBERGHE Daniel","CAB","51H02731","RHV",584,null,null,null,null,584,116.8,58.4,null,null,null,null,null,null,null,null,null,null,null,null,null,null,null,584]
[14,"WIGGELEER Patrick","GSR","56H00096","RHV",572,null,null,null,null,572,114.4,57.2,null,null,null,null,null,null,null,null,null,null,null,null,null,572]
[15,"FIORA Joel","SSK",null,"RHV",566,null,null,null,null,566,113.2,56.6,null,null,null,null,null,null,null,null,null,null,null,null,null,null,null,null,null,null,null,null,null,566]
[16,"PENA Victor","ACG","54H01714","RHV",536,null,null,null,null,536,107.2,53.6,null,null,null,null,null,null,null,null,null,null,null,null,null,null,null,null,null,null,null,536]
[17,"DEBATY Dominique","GAU",null,"RHV",515,null,null,null,null,515,103,51.5,null,null,null,null,null,null,null,null,null,null,null,null,null,null,null,null,null,null,null,null,515]
[18,"GRAVAR Pierre","ECA","52H01303","RHV",null,null,null,null,null,0,0,0]
[19,"MAQUET Gilbert (recurve)","ACF  ","53H02240","RHV",null,null,null,null,null,0,0,0]
[20,"PENA Victor","CTH","54H01714","RHV",null,null,null,null,null,0,0,0]
[21,"VANDEN BOGGAARR Marc","ABA ","57H00558","RHV",null,null,null,null,null,0,0,0]
[22,"LUCAS André (recurve)","SSC  ","55H01262","RHV",null,null,null,null,null,0,0,0]
[23,"NATALIS Joseph","CAJ","42H01967","RHV",null,null,null,null,null,0,0,0]
[24,"VANDERVELDEN Daniel","HUY  ","51H02731","RHV",null,null,null,null,null,0,0,0]
[25,"DEGHAYE Pierre","ACM","55H01808","RHV",null,null,null,null,null,0,0,0]
[26,"OLBRECHTS Pierre","LAJ","56H00822","RHV",null,null,null,null,null,0,0,0]
[27,"FOURNIER Gérard","BTS","55H02754","RHV",null,null,null,null,null,0,0,0]
[28,"RANDLE Daniel","CMA","47H00700","RHV",null,null,null,null,null,0,0,0]
[""]
[""]
[""]
[""]
[""]
[""]
[""]
[""]
[""]
[""]
[""]
[""]
[""]
[""]
[""]
[""]
[""]
[""]
[""]
[""]
[""]
[""]
[""]
[""]
[""]
[""]
[""]
[""]
[""]
[""]
[]
[]
[]
[]
[]
[]
[]
[]
[]
[]
[]
[]
[]
[]
[]
[null,null,"La macro est déclenchée par toute entrée d'une valeur dans le tableau N5:BW20 (modifier le plage si nécessaire dans la macro)"]

{"sheet":"25M2020","index":11,"n_rows":78,"n_cols":38,"rows_kept":78,"cut":false,"hidden":false,"merged":[]}
[]
[]
[null,"Nom","Club","Matricule","Cat.","Tir 1 ","Tir 2","Tir 3","Tir 4","Tir 5","Total","M/600","M/300",null,null,null,null,null,null,"ADS","GSR","FGV","ECA","ITW","CTH","GPE","LIE","LFE","BTS","CEN","ANT","GSR","CAS","GAU","HAC","ACG","BTS","GSR"]
[]
[1,"OLBRECHTS Pierre","LAJ","56H00822","RHV",634,null,null,null,null,{"$f":"SUM(F5:J5)","v":634},{"$f":"K5/5","v":126.8},{"$f":"L5/2","v":63.4},null,null,null,null,null,null,634]
[{"$f":"IF(B6<>\"\",A5+1,\"\")","v":2},"NATALIS Joseph","CAJ",null,"RHV",589,null,null,null,null,589,117.8,58.9,null,null,null,null,null,null,589]
[{"$f":"IF(B7<>\"\",A6+1,\"\")","v":3},"PIERRE Auguste","CAJ",null,"RHV",555,null,null,null,null,555,111,55.5,null,null,null,null,null,null,555]
[4,"FIORA Joel","SSK",null,"RHV",null,null,null,null,null,0,0,0]
[5,"FRYNS Guido","ITW","59H03148","RHV",null,null,null,null,null,0,0,0]
[6,"SKORUPKA Guy","CEN","57H01040","RHV",null,null,null,null,null,0,0,0]
[7,"DELCOMINETTE guy","LIE","48H01514","RHV",null,null,null,null,null,0,0,0]
[8,"BACOT Paul (recurve)","HUY","50H01459","RHV",null,null,null,null,null,0,0,0]
[9,"PETRONS Joel","LFU","49H00899","RHV",null,null,null,null,null,0,0,0]
[10,"PETRUS Gus","GAU","54H00363","RHV",null,null,null,null,null,0,0,0]
[11,"DELNATTE Georges","LIE","58H02914","RHV",null,null,null,null,null,0,0,0]
[12,"METDEPENNINGEN Luc","MDY","59H02050","RHV",null,null,null,null,null,0,0,0]
[13,"D'HEUR Michel","FAO","46H00532","RHV",null,null,null,null,null,0,0,0]
[14,"REIBER Guy","GSR","46H00175","RHV",null,null,null,null,null,0,0,0]
[15,"THEYS Marc","LFU","56H04345","RHV",null,null,null,null,null,0,0,0]
[16,"RENNEAU Jean-Noel","ADS","59H02001","RHV",null,null,null,null,null,0,0,0]
[17,"VANDENBERGHE Daniel","CAB","51H02731","RHV",null,null,null,null,null,0,0,0]
[18,"WIGGELEER Patrick","GSR","56H00096","RHV",null,null,null,null,null,0,0,0]
[19,"PENA Victor","ACG","54H01714","RHV",null,null,null,null,null,0,0,0]
[20,"DEBATY Dominique","GAU",null,"RHV",null,null,null,null,null,0,0,0]
[21,"PENA Victor","CTH","54H01714","RHV",null,null,null,null,null,0,0,0]
[22,"VANDEN BOGGAARR Marc","ABA ","57H00558","RHV",null,null,null,null,null,0,0,0]
[23,"LUCAS André (recurve)","SSC  ","55H01262","RHV",null,null,null,null,null,0,0,0]
[24,"NATALIS Joseph","CAJ","42H01967","RHV",null,null,null,null,null,0,0,0]
[25,"MAQUET Gilbert (recurve)","ACF  ","53H02240","RHV",null,null,null,null,null,0,0,0]
[26,"VANDERVELDEN Daniel","HUY  ","51H02731","RHV",null,null,null,null,null,0,0,0]
[27,"DEGHAYE Pierre","ACM","55H01808","RHV",null,null,null,null,null,0,0,0]
[28,"GRAVAR Pierre","ECA","52H01303","RHV",null,null,null,null,null,0,0,0]
[{"$f":"IF(B33<>\"\",A32+1,\"\")","v":29},"FOURNIER Gérard","BTS","55H02754","RHV",null,null,null,null,null,0,0,0]
[{"$f":"IF(B34<>\"\",A33+1,\"\")","v":30},"RANDLE Daniel","CMA","47H00700","RHV",null,null,null,null,null,0,0,0]
[""]
[""]
[""]
[""]
[""]
[""]
[""]
[""]
[""]
[""]
[""]
[""]
[""]
[""]
[""]
[""]
[""]
[""]
[""]
[""]
[""]
[""]
[""]
[""]
[""]
[""]
[""]
[""]
[]
[]
[]
[]
[]
[]
[]
[]
[]
[]
[]
[]
[]
[]
[]
[null,null,"La macro est déclenchée par toute entrée d'une valeur dans le tableau N5:BW20 (modifier le plage si nécessaire dans la macro)"]

{"sheet":"25M2021","index":12,"n_rows":62,"n_cols":42,"rows_kept":62,"cut":false,"hidden":false,"merged":[]}
[]
[]
[null,"Nom","Club","Matricule","Cat.","Tir 1 ","Tir 2","Tir 3","Tir 4","Tir 5","Total","M/600","M/300",null,null,null,null,null,"PAC","GAU","ANT","ITW","LIE","ANT","BTS","CEN","ANT","GSR","CAS","HAC","GAU","LIE","FAC",null,null,"MDY","ECA","FGV","GSR","LIE","BTS","FOA"]
[]
[1,"OLBRECHTS Pierre","LAJ","56H00822","RHV",657,649,643,640,640,{"$f":"SUM(F5:J5)","v":3229},{"$f":"K5/5","v":645.79999999999995},{"$f":"L5/2","v":322.89999999999998},null,null,null,null,null,null,null,null,null,607,null,640,null,649,596,640,657,null,631,null,643]
[{"$f":"IF(B6<>\"\",A5+1,\"\")","v":2},"SKORUPKA Guy","CEN","57H01040","RHV",626,619,613,611,595,3064,612.79999999999995,306.39999999999998,null,null,null,null,null,null,null,null,null,613,null,626,null,611,null,null,null,null,null,595,619]
[{"$f":"IF(B7<>\"\",A6+1,\"\")","v":3},"PIERRE Auguste","CAJ","56H04788","RHV",605,586,577,575,571,2914,582.79999999999995,291.39999999999998,null,null,null,null,null,null,null,null,null,571,null,544,null,586,null,558,542,null,605,null,577,575]
[4,"NATALIS Joseph","CAJ","42H01967","RHV",584,575,567,535,null,2261,452.2,226.1,null,null,null,null,null,null,null,null,null,null,null,567,null,null,null,584,575,null,535]
[5,"DEGHAYE Pierre","ACM","55H01808","RHV",630,608,null,null,null,1238,247.6,123.8,null,null,null,null,null,null,null,null,null,null,null,null,null,null,null,608,630]
[6,"FIORA Joel","SSK",null,"RHV",623,583,null,null,null,1206,241.2,120.6,null,null,null,null,null,null,null,null,null,null,null,null,null,null,null,null,583,623]
[7,"LEJOLY Daniel","LIE","61H01549","RHV",633,568,null,null,null,1201,240.2,120.1,null,null,null,null,null,null,null,null,null,633,null,null,null,null,null,null,null,null,568]
[8,"VANHAEREN Patrick","LIE","61H05047","RHV",633,531,null,null,null,1164,232.8,116.4,null,null,null,null,null,null,null,null,null,531]
[9,"DELCOMINETTE guy","LIE","48H01514","RHV",524,523,null,null,null,1047,209.4,104.7,null,null,null,null,null,null,null,null,null,null,null,null,null,null,null,null,523,null,524]
[10,"MEYER Marc","GPE","47H00700","RHV",599,null,null,null,null,599,119.8,59.9,null,null,null,null,null,null,null,null,null,null,null,null,null,null,null,null,null,599]
[11,"HERMAL Raymond","ACB","55H01249","RHV",582,null,null,null,null,582,116.4,58.2,null,null,null,null,null,null,null,null,null,null,null,null,null,null,null,null,null,null,null,582]
[12,"VANDENBERGHE Daniel","CAB","51H02731","RHV",562,null,null,null,null,562,112.4,56.2,null,null,null,null,null,null,null,null,null,null,null,null,null,null,null,null,null,null,null,562]
[13,"ROBERTO Salvator","ABT","50H02729","RHV",496,null,null,null,null,496,99.2,49.6,null,null,null,null,null,null,null,null,null,null,null,null,null,null,null,null,null,null,null,496]
[14,"FRYNS Guido","ITW","59H03148","RHV",474,null,null,null,null,474,94.8,47.4,null,null,null,null,null,null,null,null,null,null,null,null,null,null,null,null,null,null,474]
[15,"DE BON Pierre","SAG","57H03719","RHV",450,null,null,null,null,450,90,45,null,null,null,null,null,null,null,null,null,null,null,null,null,450]
[16,"BARBIEUX Robin","CAJ","57H05709","RHV",435,null,null,null,null,435,87,43.5,null,null,null,null,null,null,null,null,null,null,null,null,null,null,null,null,null,null,435]
[17,"DEBATY Dominique","GAU",null,"RHV",null,null,null,null,null,0,0,0]
[18,"DELNATTE Georges","LIE","58H02914","RHV",null,null,null,null,null,0,0,0]
[19,"PETRONS Joel","LFU","49H00899","RHV",null,null,null,null,null,0,0,0]
[20,"PETRUS Gus","GAU","54H00363","RHV",null,null,null,null,null,0,0,0]
[21,"RENNEAU Jean-Noel","ADS","59H02001","RHV",null,null,null,null,null,0,0,0]
[22,"BACOT Paul (recurve)","HUY","50H01459","RHV",null,null,null,null,null,0,0,0]
[23,"METDEPENNINGEN Luc","MDY","59H02050","RHV",null,null,null,null,null,0,0,0]
[24,"D'HEUR Michel","FAO","46H00532","RHV",null,null,null,null,null,0,0,0]
[25,"REIBER Guy","GSR","46H00175","RHV",null,null,null,null,null,0,0,0]
[26,"THEYS Marc","LFU","56H04345","RHV",null,null,null,null,null,0,0,0]
[27,"WIGGELEER Patrick","GSR","56H00096","RHV",null,null,null,null,null,0,0,0]
[28,"PENA Victor","CTH","54H01714","RHV",null,null,null,null,null,0,0,0]
[{"$f":"IF(B33<>\"\",A32+1,\"\")","v":29},"VANDEN BOGGAARR Marc","ABA ","57H00558","RHV",null,null,null,null,null,0,0,0]
[30,"LUCAS André (recurve)","SSC  ","55H01262","RHV",null,null,null,null,null,0,0,0]
[31,"MAQUET Gilbert (recurve)","ACF  ","53H02240","RHV",null,null,null,null,null,0,0,0]
[32,"VANDERVELDEN Daniel","HUY  ","51H02731","RHV",null,null,null,null,null,0,0,0]
[33,"GRAVAR Pierre","ECA","52H01303","RHV",null,null,null,null,null,0,0,0]
[34,"FOURNIER Gérard","BTS","55H02754","RHV",null,null,null,null,null,0,0,0]
[35,"RANDLE Daniel","CMA","47H00700","RHV",null,null,null,null,null,0,0,0]
[36,"NEYRET Robert","LAJ","49H00841","RHV",null,null,null,null,null,0,0,0]
[""]
[""]
[""]
[""]
[""]
["",null,"La macro est déclenchée par toute entrée d'une valeur dans le tableau N5:BW20 (modifier le plage si nécessaire dans la macro)"]
[""]
[""]
[""]
[""]
[""]
[""]
[""]
[""]
[""]
[""]
[""]
[""]
[""]
[""]
[""]
[""]

{"sheet":"25M2022","index":13,"n_rows":74,"n_cols":42,"rows_kept":74,"cut":false,"hidden":false,"merged":[]}
[]
[]
[null,"Nom","Club","Matricule","Cat.","Tir 1 ","Tir 2","Tir 3","Tir 4","Tir 5","Total","M/600","M/300",null,null,null,null,null,"PAC","GAU","ANT","ITW","LIE","ANT","BTS","CEN","ANT","CAS","HAC","GAU","LIE","ACG","CMA","LAC","RCM","MDY","ECA","FGV","GSR","LIE","BTS","FOA"]
[]
[1,"OLBRECHTS Pierre","LAJ","56H00822","RHV",641,625,617,613,603,{"$f":"SUM(F5:J5)","v":3099},{"$f":"K5/5","v":619.79999999999995},{"$f":"L5/2","v":309.89999999999998},null,null,null,null,null,null,null,null,641,601,null,625,613,null,602,617,null,603]
[{"$f":"IF(B6<>\"\",A5+1,\"\")","v":2},"PIERRE Auguste","CAJ","56H04788","RHV",621,605,604,600,598,3028,605.6,302.8,null,null,null,null,null,null,null,null,null,null,null,598,605,null,621,587,null,600,604]
[{"$f":"IF(B7<>\"\",A6+1,\"\")","v":3},"SKORUPKA Guy","CEN","57H01040","RHV",620,615,600,598,581,3014,602.79999999999995,301.39999999999998,null,null,null,null,null,null,null,null,null,null,null,620,615,581,null,600,577,568,598]
[4,"COCQUYT Francis","ACM","60H01688","RHV",602,592,573,537,269,2573,514.6,257.3,null,null,null,null,null,null,null,null,573,269,null,null,null,null,537,602,null,null,592]
[5,"PETRONS Joel","LFU","49H00899","RHV",554,516,504,500,474,2548,509.6,254.8,null,null,null,null,null,null,null,null,504,null,null,516,554,null,500,474]
[6,"NEYRET Robert","LAJ","49H00841","RHV",533,520,500,427,379,2359,471.8,235.9,null,null,null,null,null,null,null,null,null,427,null,533,null,null,500,520,null,379]
[7,"DELCOMINETTE guy","LIE","48H01514","RHV",581,531,512,484,126,2234,446.8,223.4,null,null,null,null,null,null,null,null,531,484,null,581,null,null,512,126]
[8,"FRYNS Guido","ITW","59H03148","RHV",553,500,494,480,null,2027,405.4,202.7,null,null,null,null,null,null,null,null,null,494,null,null,500,null,480,553]
[9,"LEJEUNE Paul","LFE","56H00919","RHV",545,506,476,null,null,1527,305.39999999999998,152.69999999999999,null,null,null,null,null,null,null,null,null,null,506,null,476,545]
[10,"BACOT Paul (recurve)","HUY","50H01459","RHV",519,508,480,null,null,1507,301.39999999999998,150.69999999999999,null,null,null,null,null,null,null,null,null,null,null,508,null,null,null,480,null,null,519]
[11,"BARBIEUX Romain","CAJ","57H05709","RHV",525,480,465,null,null,1470,294,147,null,null,null,null,null,null,null,null,525,null,null,null,null,null,480,465]
[12,"MEYER Marc","GPE","59H04233","RHV",624,620,null,null,null,1244,248.8,124.4,null,null,null,null,null,null,null,null,null,null,null,null,620,null,null,null,624]
[13,"DEGHAYE Pierre","ACM","55H01808","RHV",597,345,null,null,null,942,188.4,94.2,null,null,null,null,null,null,null,null,597,345]
[14,"LIBERT Marc","ACG","60H06362","RHV",485,435,null,null,null,920,184,92,null,null,null,null,null,null,null,null,null,null,null,null,null,null,435,null,null,null,485]
[15,"FIORA Joel","SSK","57H00342","RHV",634,null,null,null,null,634,126.8,63.4,null,null,null,null,null,null,null,null,null,null,null,null,null,null,null,null,634]
[16,"LEJOLY Daniel","LIE","61H01549","RHV",622,null,null,null,null,622,124.4,62.2,null,null,null,null,null,null,null,null,null,622]
[17,"NATALIS Joseph","CAJ","42H01967","RHV",575,null,null,null,null,575,115,57.5,null,null,null,null,null,null,null,null,575]
[18,"METDEPENNINGEN Luc","MDY","59H02050","RHV",487,null,null,null,null,487,97.4,48.7,null,null,null,null,null,null,null,null,null,null,null,null,null,null,487]
[19,"DEPROOST Michel","SSK",null,"RHV",487,null,null,null,null,487,97.4,48.7,null,null,null,null,null,null,null,null,null,null,null,null,null,null,null,487]
[20,"DE BON  Pierre","LFE","57H03719","RHV",470,null,null,null,null,470,94,47,null,null,null,null,null,null,null,null,null,null,null,null,null,470]
[21,"VANDEN BOGGAARR Marc","ABA ","57H00558","RHV",null,null,null,null,null,0,0,0]
[22,"FOURNIER Gérard","BTS","55H02754","RHV",null,null,null,null,null,0,0,0]
[23,"X",null,null,"RHV",null,null,null,null,null,0,0,0]
[24,"X1",null,null,"RHV",null,null,null,null,null,0,0,0]
[25,"WIGGELEER Patrick","GSR","56H00096","RHV",null,null,null,null,null,0,0,0]
[26,"D'HEUR Michel","FAO","46H00532","RHV",null,null,null,null,null,0,0,0]
[27,"PENA Victor","CTH","54H01714","RHV",null,null,null,null,null,0,0,0]
[28,"GRAVAR Pierre","ECA","52H01303","RHV",null,null,null,null,null,0,0,0]
[29,"DELNATTE Georges","LIE","58H02914","RHV",null,null,null,null,null,0,0,0]
[30,"PETRUS Gus","GAU","54H00363","RHV",null,null,null,null,null,0,0,0]
[31,"RANDLE Daniel","CMA","47H00700","RHV",null,null,null,null,null,0,0,0]
[32,"NOSSENT Christian","SSK","53H00269","RHV",null,null,null,null,null,0,0,0]
[33,"LUCAS André (recurve)","SSC  ","55H01262","RHV",null,null,null,null,null,{"$f":"SUM(F37:J37)","v":0},{"$f":"K37/5","v":0},{"$f":"L37/2","v":0}]
[34,"DURIEUX Marc","SSC  ","57H01263","RHV",null,null,null,null,null,0,0,0]
[35,"ANTOINE Pol","GAU",null,"RHV",null,null,null,null,null,0,0,0]
[36,"STAINIER Robert","ABA ","46H00639","RHV",null,null,null,null,null,0,0,0]
[37,"CHABEAU Andre","MDY","57H03240","RHV",null,null,null,null,null,0,0,0]
[38,"GESSA Stefano","CAM","45H01355","RHV",null,null,null,null,null,0,0,0]
[39,"VANDERVELDEN Daniel","HUY  ","51H02731","RHV",null,null,null,null,null,0,0,0]
[40,"VANMEENEN Philippe","FBG","57H03948","RHV",null,null,null,null,null,0,0,0]
[{"$f":"IF(B45<>\"\",A44+1,\"\")","v":41},"PIETTE Alain","FBG","54H03645","RHV",null,null,null,null,null,0,0,0]
[42,"RENARD René","SSK",null,"RHV",null,null,null,null,null,0,0,0]
[43,"DE GREEF Jean","SSK","46H00331","RHV",null,null,null,null,null,0,0,0]
[44,"BOEVER Pierre","TAB","56H02663","RHV",null,null,null,null,null,0,0,0]
[45,"FASSOTTE Charly","CTH","46H01723","RHV",null,null,null,null,null,0,0,0]
[46,"RENNEAU Jean-Noel","ADS","59H02001","RHV",null,null,null,null,null,0,0,0]
[47,"REIBER Guy","GSR","46H00175","RHV",null,null,null,null,null,0,0,0]
[48,"THEYS Marc","LFU","56H04345","RHV",null,null,null,null,null,0,0,0]
[49,"VANDENBERGHE Daniel","CAB","51H02731","RHV",null,null,null,null,null,0,0,0]
[50,"DEBATY Dominique","GAU",null,"RHV",null,null,null,null,null,0,0,0]
[51,"MAQUET Gilbert (recurve)","ACF  ","53H02240","RHV",null,null,null,null,null,0,0,0]
[52,"MAQUET Gilbert (recurve)","ACF  ","53H02240","RHV",null,null,null,null,null,0,0,0]
[""]
[""]
["",null,"La macro est déclenchée par toute entrée d'une valeur dans le tableau N5:BW20 (modifier le plage si nécessaire dans la macro)"]
[""]
[""]
[""]
[""]
[""]
[""]
[""]
[""]
[""]
[""]
[""]
[{"$f":"IF(B71<>\"\",A70+1,\"\")","v":""}]
[{"$f":"IF(B72<>\"\",A71+1,\"\")","v":""}]
[{"$f":"IF(B73<>\"\",A72+1,\"\")","v":""}]
[{"$f":"IF(B74<>\"\",A73+1,\"\")","v":""}]

{"sheet":"25M2023","index":14,"n_rows":74,"n_cols":42,"rows_kept":74,"cut":false,"hidden":false,"merged":[]}
[]
[]
[null,"Nom","Club","Matricule","Cat.","Tir 1 ","Tir 2","Tir 3","Tir 4","Tir 5","Total","M/600","M/300",null,null,null,null,null,"PAC","GAU","ANT","ITW","LIE","ANT","BTS","CEN","ANT","CAS","HAC","GAU","LIE","ACG","CMA","LAC","RCM","MDY","ECA","FGV","GSR","LIE","BTS","FOA"]
[]
[1,"OLBRECHTS Pierre","LAJ","56H00822","RHV",641,625,617,613,603,{"$f":"SUM(F5:J5)","v":3099},{"$f":"K5/5","v":619.79999999999995},{"$f":"L5/2","v":309.89999999999998},null,null,null,null,null,null,null,null,641,601,null,625,613,null,602,617,null,603]
[{"$f":"IF(B6<>\"\",A5+1,\"\")","v":2},"PIERRE Auguste","CAJ","56H04788","RHV",621,605,604,600,598,3028,605.6,302.8,null,null,null,null,null,null,null,null,null,null,null,598,605,null,621,587,null,600,604]
[{"$f":"IF(B7<>\"\",A6+1,\"\")","v":3},"SKORUPKA Guy","CEN","57H01040","RHV",620,615,600,598,581,3014,602.79999999999995,301.39999999999998,null,null,null,null,null,null,null,null,null,null,null,620,615,581,null,600,577,568,598]
[4,"COCQUYT Francis","ACM","60H01688","RHV",602,592,573,537,269,2573,514.6,257.3,null,null,null,null,null,null,null,null,573,269,null,null,null,null,537,602,null,null,592]
[5,"PETRONS Joel","LFU","49H00899","RHV",554,516,504,500,474,2548,509.6,254.8,null,null,null,null,null,null,null,null,504,null,null,516,554,null,500,474]
[6,"NEYRET Robert","LAJ","49H00841","RHV",533,520,500,427,379,2359,471.8,235.9,null,null,null,null,null,null,null,null,null,427,null,533,null,null,500,520,null,379]
[7,"DELCOMINETTE guy","LIE","48H01514","RHV",581,531,512,484,126,2234,446.8,223.4,null,null,null,null,null,null,null,null,531,484,null,581,null,null,512,126]
[8,"FRYNS Guido","ITW","59H03148","RHV",553,500,494,480,null,2027,405.4,202.7,null,null,null,null,null,null,null,null,null,494,null,null,500,null,480,553]
[9,"LEJEUNE Paul","LFE","56H00919","RHV",545,506,476,null,null,1527,305.39999999999998,152.69999999999999,null,null,null,null,null,null,null,null,null,null,506,null,476,545]
[10,"BACOT Paul (recurve)","HUY","50H01459","RHV",519,508,480,null,null,1507,301.39999999999998,150.69999999999999,null,null,null,null,null,null,null,null,null,null,null,508,null,null,null,480,null,null,519]
[11,"BARBIEUX Romain","CAJ","57H05709","RHV",525,480,465,null,null,1470,294,147,null,null,null,null,null,null,null,null,525,null,null,null,null,null,480,465]
[12,"MEYER Marc","GPE","59H04233","RHV",624,620,null,null,null,1244,248.8,124.4,null,null,null,null,null,null,null,null,null,null,null,null,620,null,null,null,624]
[13,"DEGHAYE Pierre","ACM","55H01808","RHV",597,345,null,null,null,942,188.4,94.2,null,null,null,null,null,null,null,null,597,345]
[14,"LIBERT Marc","ACG","60H06362","RHV",485,435,null,null,null,920,184,92,null,null,null,null,null,null,null,null,null,null,null,null,null,null,435,null,null,null,485]
[15,"FIORA Joel","SSK","57H00342","RHV",634,null,null,null,null,634,126.8,63.4,null,null,null,null,null,null,null,null,null,null,null,null,null,null,null,null,634]
[16,"LEJOLY Daniel","LIE","61H01549","RHV",622,null,null,null,null,622,124.4,62.2,null,null,null,null,null,null,null,null,null,622]
[17,"NATALIS Joseph","CAJ","42H01967","RHV",575,null,null,null,null,575,115,57.5,null,null,null,null,null,null,null,null,575]
[18,"METDEPENNINGEN Luc","MDY","59H02050","RHV",487,null,null,null,null,487,97.4,48.7,null,null,null,null,null,null,null,null,null,null,null,null,null,null,487]
[19,"DEPROOST Michel","SSK",null,"RHV",487,null,null,null,null,487,97.4,48.7,null,null,null,null,null,null,null,null,null,null,null,null,null,null,null,487]
[20,"DE BON  Pierre","LFE","57H03719","RHV",470,null,null,null,null,470,94,47,null,null,null,null,null,null,null,null,null,null,null,null,null,470]
[21,"X",null,null,"RHV",null,null,null,null,null,0,0,0]
[22,"X1",null,null,"RHV",null,null,null,null,null,0,0,0]
[23,"D'HEUR Michel","FAO","46H00532","RHV",null,null,null,null,null,0,0,0]
[24,"FOURNIER Gérard","BTS","55H02754","RHV",null,null,null,null,null,0,0,0]
[25,"VANDEN BOGGAARR Marc","ABA ","57H00558","RHV",null,null,null,null,null,0,0,0]
[26,"WIGGELEER Patrick","GSR","56H00096","RHV",null,null,null,null,null,0,0,0]
[27,"PENA Victor","CTH","54H01714","RHV",null,null,null,null,null,0,0,0]
[28,"GRAVAR Pierre","ECA","52H01303","RHV",null,null,null,null,null,0,0,0]
[29,"DELNATTE Georges","LIE","58H02914","RHV",null,null,null,null,null,0,0,0]
[30,"PETRUS Gus","GAU","54H00363","RHV",null,null,null,null,null,0,0,0]
[31,"RANDLE Daniel","CMA","47H00700","RHV",null,null,null,null,null,0,0,0]
[32,"NOSSENT Christian","SSK","53H00269","RHV",null,null,null,null,null,0,0,0]
[33,"LUCAS André (recurve)","SSC  ","55H01262","RHV",null,null,null,null,null,{"$f":"SUM(F37:J37)","v":0},{"$f":"K37/5","v":0},{"$f":"L37/2","v":0}]
[34,"DURIEUX Marc","SSC  ","57H01263","RHV",null,null,null,null,null,0,0,0]
[35,"ANTOINE Pol","GAU",null,"RHV",null,null,null,null,null,0,0,0]
[36,"STAINIER Robert","ABA ","46H00639","RHV",null,null,null,null,null,0,0,0]
[37,"CHABEAU Andre","MDY","57H03240","RHV",null,null,null,null,null,0,0,0]
[38,"GESSA Stefano","CAM","45H01355","RHV",null,null,null,null,null,0,0,0]
[39,"VANDERVELDEN Daniel","HUY  ","51H02731","RHV",null,null,null,null,null,0,0,0]
[40,"VANMEENEN Philippe","FBG","57H03948","RHV",null,null,null,null,null,0,0,0]
[41,"PIETTE Alain","FBG","54H03645","RHV",null,null,null,null,null,0,0,0]
[42,"RENARD René","SSK",null,"RHV",null,null,null,null,null,0,0,0]
[43,"DE GREEF Jean","SSK","46H00331","RHV",null,null,null,null,null,0,0,0]
[44,"BOEVER Pierre","TAB","56H02663","RHV",null,null,null,null,null,0,0,0]
[45,"FASSOTTE Charly","CTH","46H01723","RHV",null,null,null,null,null,0,0,0]
[46,"RENNEAU Jean-Noel","ADS","59H02001","RHV",null,null,null,null,null,0,0,0]
[47,"REIBER Guy","GSR","46H00175","RHV",null,null,null,null,null,0,0,0]
[48,"THEYS Marc","LFU","56H04345","RHV",null,null,null,null,null,0,0,0]
[49,"VANDENBERGHE Daniel","CAB","51H02731","RHV",null,null,null,null,null,0,0,0]
[50,"DEBATY Dominique","GAU",null,"RHV",null,null,null,null,null,0,0,0]
[51,"MAQUET Gilbert (recurve)","ACF  ","53H02240","RHV",null,null,null,null,null,0,0,0]
[52,"MAQUET Gilbert (recurve)","ACF  ","53H02240","RHV",null,null,null,null,null,0,0,0]
[""]
[""]
["",null,"La macro est déclenchée par toute entrée d'une valeur dans le tableau N5:BW20 (modifier le plage si nécessaire dans la macro)"]
[""]
[""]
[""]
[""]
[""]
[""]
[""]
[""]
[""]
[""]
[""]
[{"$f":"IF(B71<>\"\",A70+1,\"\")","v":""}]
[{"$f":"IF(B72<>\"\",A71+1,\"\")","v":""}]
[{"$f":"IF(B73<>\"\",A72+1,\"\")","v":""}]
[{"$f":"IF(B74<>\"\",A73+1,\"\")","v":""}]

{"sheet":"25M2024","index":15,"n_rows":74,"n_cols":42,"rows_kept":74,"cut":false,"hidden":false,"merged":[]}
[]
[]
[null,"Nom","Club","Matricule","Cat.","Tir 1 ","Tir 2","Tir 3","Tir 4","Tir 5","Total","M/600","M/300",null,null,null,null,null,"PAC","GAU","ANT","ITW","LIE","ANT","BTS","CEN","ANT","CAS","HAC","GAU","LIE","ACG","CMA","LAC","RCM","MDY","ECA","FGV","GSR","LIE","BTS","FOA"]
[]
[1,"OLBRECHTS Pierre","LAJ","56H00822","RHV",641,625,617,613,603,{"$f":"SUM(F5:J5)","v":3099},{"$f":"K5/5","v":619.79999999999995},{"$f":"L5/2","v":309.89999999999998},null,null,null,null,null,null,null,null,641,601,null,625,613,null,602,617,null,603]
[{"$f":"IF(B6<>\"\",A5+1,\"\")","v":2},"PIERRE Auguste","CAJ","56H04788","RHV",621,605,604,600,598,3028,605.6,302.8,null,null,null,null,null,null,null,null,null,null,null,598,605,null,621,587,null,600,604]
[{"$f":"IF(B7<>\"\",A6+1,\"\")","v":3},"SKORUPKA Guy","CEN","57H01040","RHV",620,615,600,598,581,3014,602.79999999999995,301.39999999999998,null,null,null,null,null,null,null,null,null,null,null,620,615,581,null,600,577,568,598]
[4,"COCQUYT Francis","ACM","60H01688","RHV",602,592,573,537,269,2573,514.6,257.3,null,null,null,null,null,null,null,null,573,269,null,null,null,null,537,602,null,null,592]
[5,"PETRONS Joel","LFU","49H00899","RHV",554,516,504,500,474,2548,509.6,254.8,null,null,null,null,null,null,null,null,504,null,null,516,554,null,500,474]
[6,"NEYRET Robert","LAJ","49H00841","RHV",533,520,500,427,379,2359,471.8,235.9,null,null,null,null,null,null,null,null,null,427,null,533,null,null,500,520,null,379]
[7,"DELCOMINETTE guy","LIE","48H01514","RHV",581,531,512,484,126,2234,446.8,223.4,null,null,null,null,null,null,null,null,531,484,null,581,null,null,512,126]
[8,"FRYNS Guido","ITW","59H03148","RHV",553,500,494,480,null,2027,405.4,202.7,null,null,null,null,null,null,null,null,null,494,null,null,500,null,480,553]
[9,"LEJEUNE Paul","LFE","56H00919","RHV",545,506,476,null,null,1527,305.39999999999998,152.69999999999999,null,null,null,null,null,null,null,null,null,null,506,null,476,545]
[10,"BACOT Paul (recurve)","HUY","50H01459","RHV",519,508,480,null,null,1507,301.39999999999998,150.69999999999999,null,null,null,null,null,null,null,null,null,null,null,508,null,null,null,480,null,null,519]
[11,"BARBIEUX Romain","CAJ","57H05709","RHV",525,480,465,null,null,1470,294,147,null,null,null,null,null,null,null,null,525,null,null,null,null,null,480,465]
[12,"MEYER Marc","GPE","59H04233","RHV",624,620,null,null,null,1244,248.8,124.4,null,null,null,null,null,null,null,null,null,null,null,null,620,null,null,null,624]
[13,"DEGHAYE Pierre","ACM","55H01808","RHV",597,345,null,null,null,942,188.4,94.2,null,null,null,null,null,null,null,null,597,345]
[14,"LIBERT Marc","ACG","60H06362","RHV",485,435,null,null,null,920,184,92,null,null,null,null,null,null,null,null,null,null,null,null,null,null,435,null,null,null,485]
[15,"FIORA Joel","SSK","57H00342","RHV",634,null,null,null,null,634,126.8,63.4,null,null,null,null,null,null,null,null,null,null,null,null,null,null,null,null,634]
[16,"LEJOLY Daniel","LIE","61H01549","RHV",622,null,null,null,null,622,124.4,62.2,null,null,null,null,null,null,null,null,null,622]
[17,"NATALIS Joseph","CAJ","42H01967","RHV",575,null,null,null,null,575,115,57.5,null,null,null,null,null,null,null,null,575]
[18,"METDEPENNINGEN Luc","MDY","59H02050","RHV",487,null,null,null,null,487,97.4,48.7,null,null,null,null,null,null,null,null,null,null,null,null,null,null,487]
[19,"DEPROOST Michel","SSK",null,"RHV",487,null,null,null,null,487,97.4,48.7,null,null,null,null,null,null,null,null,null,null,null,null,null,null,null,487]
[20,"DE BON  Pierre","LFE","57H03719","RHV",470,null,null,null,null,470,94,47,null,null,null,null,null,null,null,null,null,null,null,null,null,470]
[21,"X1",null,null,"RHV",null,null,null,null,null,0,0,0]
[22,"D'HEUR Michel","FAO","46H00532","RHV",null,null,null,null,null,0,0,0]
[23,"FOURNIER Gérard","BTS","55H02754","RHV",null,null,null,null,null,0,0,0]
[24,"X",null,null,"RHV",null,null,null,null,null,0,0,0]
[25,"VANDEN BOGGAARR Marc","ABA ","57H00558","RHV",null,null,null,null,null,0,0,0]
[26,"WIGGELEER Patrick","GSR","56H00096","RHV",null,null,null,null,null,0,0,0]
[27,"PENA Victor","CTH","54H01714","RHV",null,null,null,null,null,0,0,0]
[28,"GRAVAR Pierre","ECA","52H01303","RHV",null,null,null,null,null,0,0,0]
[29,"DELNATTE Georges","LIE","58H02914","RHV",null,null,null,null,null,0,0,0]
[30,"PETRUS Gus","GAU","54H00363","RHV",null,null,null,null,null,0,0,0]
[31,"RANDLE Daniel","CMA","47H00700","RHV",null,null,null,null,null,0,0,0]
[32,"NOSSENT Christian","SSK","53H00269","RHV",null,null,null,null,null,0,0,0]
[33,"LUCAS André (recurve)","SSC  ","55H01262","RHV",null,null,null,null,null,{"$f":"SUM(F37:J37)","v":0},{"$f":"K37/5","v":0},{"$f":"L37/2","v":0}]
[34,"DURIEUX Marc","SSC  ","57H01263","RHV",null,null,null,null,null,0,0,0]
[35,"ANTOINE Pol","GAU",null,"RHV",null,null,null,null,null,0,0,0]
[36,"STAINIER Robert","ABA ","46H00639","RHV",null,null,null,null,null,0,0,0]
[37,"CHABEAU Andre","MDY","57H03240","RHV",null,null,null,null,null,0,0,0]
[38,"GESSA Stefano","CAM","45H01355","RHV",null,null,null,null,null,0,0,0]
[39,"VANDERVELDEN Daniel","HUY  ","51H02731","RHV",null,null,null,null,null,0,0,0]
[40,"VANMEENEN Philippe","FBG","57H03948","RHV",null,null,null,null,null,0,0,0]
[41,"PIETTE Alain","FBG","54H03645","RHV",null,null,null,null,null,0,0,0]
[42,"RENARD René","SSK",null,"RHV",null,null,null,null,null,0,0,0]
[43,"DE GREEF Jean","SSK","46H00331","RHV",null,null,null,null,null,0,0,0]
[44,"BOEVER Pierre","TAB","56H02663","RHV",null,null,null,null,null,0,0,0]
[45,"FASSOTTE Charly","CTH","46H01723","RHV",null,null,null,null,null,0,0,0]
[46,"RENNEAU Jean-Noel","ADS","59H02001","RHV",null,null,null,null,null,0,0,0]
[47,"REIBER Guy","GSR","46H00175","RHV",null,null,null,null,null,0,0,0]
[48,"THEYS Marc","LFU","56H04345","RHV",null,null,null,null,null,0,0,0]
[49,"VANDENBERGHE Daniel","CAB","51H02731","RHV",null,null,null,null,null,0,0,0]
[50,"DEBATY Dominique","GAU",null,"RHV",null,null,null,null,null,0,0,0]
[51,"MAQUET Gilbert (recurve)","ACF  ","53H02240","RHV",null,null,null,null,null,0,0,0]
[52,"MAQUET Gilbert (recurve)","ACF  ","53H02240","RHV",null,null,null,null,null,0,0,0]
[""]
[""]
["",null,"La macro est déclenchée par toute entrée d'une valeur dans le tableau N5:BW20 (modifier le plage si nécessaire dans la macro)"]
[""]
[""]
[""]
[""]
[""]
[""]
[""]
[""]
[""]
[""]
[""]
[{"$f":"IF(B71<>\"\",A70+1,\"\")","v":""}]
[{"$f":"IF(B72<>\"\",A71+1,\"\")","v":""}]
[{"$f":"IF(B73<>\"\",A72+1,\"\")","v":""}]
[{"$f":"IF(B74<>\"\",A73+1,\"\")","v":""}]

{"sheet":"25M2025","index":16,"n_rows":100,"n_cols":42,"rows_kept":100,"cut":false,"hidden":false,"merged":[]}
[]
[]
[null,"Nom","Club","Matricule","Cat.","Tir 1 ","Tir 2","Tir 3","Tir 4","Tir 5","Total","M/600","M/300",null,null,null,null,null,"PAC","GAU","ANT","ITW","LIE","ANT","BTS","CEN","ANT","CAS","HAC","GAU","LIE","ACG","CMA","LAC","RCM","MDY","ECA","FGV","GSR","LIE","BTS","FOA"]
[]
[{"$f":"IF(B5<>\"\",A4+1,\"\")","v":1},"OLBRECHTS Pierre","LAJ","56H00822","RHV",641,625,617,613,603,{"$f":"SUM(F5:J5)","v":3099},{"$f":"K5/5","v":619.79999999999995},{"$f":"L5/2","v":309.89999999999998},null,null,null,null,null,null,null,null,641,601,null,625,613,null,602,617,null,603]
[2,"PIERRE Auguste","CAJ","56H04788","RHV",621,605,604,600,598,3028,605.6,302.8,null,null,null,null,null,null,null,null,null,null,null,598,605,null,621,587,null,600,604]
[3,"SKORUPKA Guy","CEN","57H01040","RHV",620,615,600,598,581,3014,602.79999999999995,301.39999999999998,null,null,null,null,null,null,null,null,null,null,null,620,615,581,null,600,577,568,598]
[4,"COCQUYT Francis","ACM","60H01688","RHV",602,592,573,537,269,2573,514.6,257.3,null,null,null,null,null,null,null,null,573,269,null,null,null,null,537,602,null,null,592]
[5,"PETRONS Joel","LFU","49H00899","RHV",554,516,504,500,474,2548,509.6,254.8,null,null,null,null,null,null,null,null,504,null,null,516,554,null,500,474]
[6,"NEYRET Robert","LAJ","49H00841","RHV",533,520,500,427,379,2359,471.8,235.9,null,null,null,null,null,null,null,null,null,427,null,533,null,null,500,520,null,379]
[7,"DELCOMINETTE guy","LIE","48H01514","RHV",581,531,512,484,126,2234,446.8,223.4,null,null,null,null,null,null,null,null,531,484,null,581,null,null,512,126]
[8,"FRYNS Guido","ITW","59H03148","RHV",553,500,494,480,null,2027,405.4,202.7,null,null,null,null,null,null,null,null,null,494,null,null,500,null,480,553]
[9,"LEJEUNE Paul","LFE","56H00919","RHV",545,506,476,null,null,1527,305.39999999999998,152.69999999999999,null,null,null,null,null,null,null,null,null,null,506,null,476,545]
[10,"BACOT Paul (recurve)","HUY","50H01459","RHV",519,508,480,null,null,1507,301.39999999999998,150.69999999999999,null,null,null,null,null,null,null,null,null,null,null,508,null,null,null,480,null,null,519]
[11,"BARBIEUX Romain","CAJ","57H05709","RHV",525,480,465,null,null,1470,294,147,null,null,null,null,null,null,null,null,525,null,null,null,null,null,480,465]
[12,"MEYER Marc","GPE","59H04233","RHV",624,620,null,null,null,1244,248.8,124.4,null,null,null,null,null,null,null,null,null,null,null,null,620,null,null,null,624]
[13,"DEGHAYE Pierre","ACM","55H01808","RHV",597,345,null,null,null,942,188.4,94.2,null,null,null,null,null,null,null,null,597,345]
[14,"LIBERT Marc","ACG","60H06362","RHV",485,435,null,null,null,920,184,92,null,null,null,null,null,null,null,null,null,null,null,null,null,null,435,null,null,null,485]
[15,"FIORA Joel","SSK","57H00342","RHV",634,null,null,null,null,634,126.8,63.4,null,null,null,null,null,null,null,null,null,null,null,null,null,null,null,null,634]
[16,"LEJOLY Daniel","LIE","61H01549","RHV",622,null,null,null,null,622,124.4,62.2,null,null,null,null,null,null,null,null,null,622]
[17,"NATALIS Joseph","CAJ","42H01967","RHV",575,null,null,null,null,575,115,57.5,null,null,null,null,null,null,null,null,575]
[18,"METDEPENNINGEN Luc","MDY","59H02050","RHV",487,null,null,null,null,487,97.4,48.7,null,null,null,null,null,null,null,null,null,null,null,null,null,null,487]
[19,"DEPROOST Michel","SSK",null,"RHV",487,null,null,null,null,487,97.4,48.7,null,null,null,null,null,null,null,null,null,null,null,null,null,null,null,487]
[20,"DE BON  Pierre","LFE","57H03719","RHV",470,null,null,null,null,470,94,47,null,null,null,null,null,null,null,null,null,null,null,null,null,470]
[21,"X1",null,null,"RHV",null,null,null,null,null,0,0,0]
[22,"D'HEUR Michel","FAO","46H00532","RHV",null,null,null,null,null,0,0,0]
[23,"FOURNIER Gérard","BTS","55H02754","RHV",null,null,null,null,null,0,0,0]
[24,"X",null,null,"RHV",null,null,null,null,null,0,0,0]
[25,"VANDEN BOGGAARR Marc","ABA ","57H00558","RHV",null,null,null,null,null,0,0,0]
[26,"WIGGELEER Patrick","GSR","56H00096","RHV",null,null,null,null,null,0,0,0]
[27,"PENA Victor","CTH","54H01714","RHV",null,null,null,null,null,0,0,0]
[28,"GRAVAR Pierre","ECA","52H01303","RHV",null,null,null,null,null,0,0,0]
[29,"DELNATTE Georges","LIE","58H02914","RHV",null,null,null,null,null,0,0,0]
[30,"PETRUS Gus","GAU","54H00363","RHV",null,null,null,null,null,0,0,0]
[31,"RANDLE Daniel","CMA","47H00700","RHV",null,null,null,null,null,0,0,0]
[32,"NOSSENT Christian","SSK","53H00269","RHV",null,null,null,null,null,0,0,0]
[1,"LUCAS André (recurve)","SSC  ","55H01262","RHV",null,null,null,null,null,{"$f":"SUM(F37:J37)","v":0},{"$f":"K37/5","v":0},{"$f":"L37/2","v":0}]
[{"$f":"IF(B38<>\"\",A37+1,\"\")","v":2},"DURIEUX Marc","SSC  ","57H01263","RHV",null,null,null,null,null,0,0,0]
[3,"ANTOINE Pol","GAU",null,"RHV",null,null,null,null,null,0,0,0]
[4,"STAINIER Robert","ABA ","46H00639","RHV",null,null,null,null,null,0,0,0]
[5,"CHABEAU Andre","MDY","57H03240","RHV",null,null,null,null,null,0,0,0]
[6,"GESSA Stefano","CAM","45H01355","RHV",null,null,null,null,null,0,0,0]
[7,"VANDERVELDEN Daniel","HUY  ","51H02731","RHV",null,null,null,null,null,0,0,0]
[8,"VANMEENEN Philippe","FBG","57H03948","RHV",null,null,null,null,null,0,0,0]
[9,"PIETTE Alain","FBG","54H03645","RHV",null,null,null,null,null,0,0,0]
[10,"RENARD René","SSK",null,"RHV",null,null,null,null,null,0,0,0]
[11,"DE GREEF Jean","SSK","46H00331","RHV",null,null,null,null,null,0,0,0]
[12,"BOEVER Pierre","TAB","56H02663","RHV",null,null,null,null,null,0,0,0]
[13,"FASSOTTE Charly","CTH","46H01723","RHV",null,null,null,null,null,0,0,0]
[14,"RENNEAU Jean-Noel","ADS","59H02001","RHV",null,null,null,null,null,0,0,0]
[15,"REIBER Guy","GSR","46H00175","RHV",null,null,null,null,null,0,0,0]
[16,"THEYS Marc","LFU","56H04345","RHV",null,null,null,null,null,0,0,0]
[17,"VANDENBERGHE Daniel","CAB","51H02731","RHV",null,null,null,null,null,0,0,0]
[18,"DEBATY Dominique","GAU",null,"RHV",null,null,null,null,null,0,0,0]
[19,"MAQUET Gilbert (recurve)","ACF  ","53H02240","RHV",null,null,null,null,null,0,0,0]
[20,"MAQUET Gilbert (recurve)","ACF  ","53H02240","RHV",null,null,null,null,null,0,0,0]
[""]
[""]
[""]
[""]
[""]
[""]
[""]
[""]
[""]
[""]
[""]
[""]
[""]
[""]
[""]
[""]
[""]
[""]
[]
[]
[]
[]
[]
[]
[]
[]
[]
[]
[]
[]
[]
[]
[]
[]
[]
[]
[]
[]
[]
[]
[]
[]
[]
[null,null,null,"La macro est déclenchée par toute entrée d'une valeur dans le tableau N5:BW20 (modifier le plage si nécessaire dans la macro)"]

{"sheet":"25M2026","index":17,"n_rows":74,"n_cols":42,"rows_kept":74,"cut":false,"hidden":false,"merged":[]}
[]
[]
[null,"Nom","Club","Matricule","Cat.","Tir 1 ","Tir 2","Tir 3","Tir 4","Tir 5","Total","M/600","M/300",null,null,null,null,null,"PAC","GAU","ANT","ITW","LIE","ANT","BTS","CEN","ANT","CAS","HAC","GAU","LIE","ACG","CMA","LAC","RCM","MDY","ECA","FGV","GSR","LIE","BTS","FOA"]
[]
[1,"OLBRECHTS Pierre","LAJ","56H00822","RHV",641,625,617,613,603,{"$f":"SUM(F5:J5)","v":3099},{"$f":"K5/5","v":619.79999999999995},{"$f":"L5/2","v":309.89999999999998},null,null,null,null,null,null,null,null,641,601,null,625,613,null,602,617,null,603]
[{"$f":"IF(B6<>\"\",A5+1,\"\")","v":2},"PIERRE Auguste","CAJ","56H04788","RHV",621,605,604,600,598,3028,605.6,302.8,null,null,null,null,null,null,null,null,null,null,null,598,605,null,621,587,null,600,604]
[{"$f":"IF(B7<>\"\",A6+1,\"\")","v":3},"SKORUPKA Guy","CEN","57H01040","RHV",620,615,600,598,581,3014,602.79999999999995,301.39999999999998,null,null,null,null,null,null,null,null,null,null,null,620,615,581,null,600,577,568,598]
[4,"COCQUYT Francis","ACM","60H01688","RHV",602,592,573,537,269,2573,514.6,257.3,null,null,null,null,null,null,null,null,573,269,null,null,null,null,537,602,null,null,592]
[5,"PETRONS Joel","LFU","49H00899","RHV",554,516,504,500,474,2548,509.6,254.8,null,null,null,null,null,null,null,null,504,null,null,516,554,null,500,474]
[6,"NEYRET Robert","LAJ","49H00841","RHV",533,520,500,427,379,2359,471.8,235.9,null,null,null,null,null,null,null,null,null,427,null,533,null,null,500,520,null,379]
[7,"DELCOMINETTE guy","LIE","48H01514","RHV",581,531,512,484,126,2234,446.8,223.4,null,null,null,null,null,null,null,null,531,484,null,581,null,null,512,126]
[8,"FRYNS Guido","ITW","59H03148","RHV",553,500,494,480,null,2027,405.4,202.7,null,null,null,null,null,null,null,null,null,494,null,null,500,null,480,553]
[9,"LEJEUNE Paul","LFE","56H00919","RHV",545,506,476,null,null,1527,305.39999999999998,152.69999999999999,null,null,null,null,null,null,null,null,null,null,506,null,476,545]
[10,"BACOT Paul (recurve)","HUY","50H01459","RHV",519,508,480,null,null,1507,301.39999999999998,150.69999999999999,null,null,null,null,null,null,null,null,null,null,null,508,null,null,null,480,null,null,519]
[11,"BARBIEUX Romain","CAJ","57H05709","RHV",525,480,465,null,null,1470,294,147,null,null,null,null,null,null,null,null,525,null,null,null,null,null,480,465]
[12,"MEYER Marc","GPE","59H04233","RHV",624,620,null,null,null,1244,248.8,124.4,null,null,null,null,null,null,null,null,null,null,null,null,620,null,null,null,624]
[13,"DEGHAYE Pierre","ACM","55H01808","RHV",597,345,null,null,null,942,188.4,94.2,null,null,null,null,null,null,null,null,597,345]
[14,"LIBERT Marc","ACG","60H06362","RHV",485,435,null,null,null,920,184,92,null,null,null,null,null,null,null,null,null,null,null,null,null,null,435,null,null,null,485]
[15,"FIORA Joel","SSK","57H00342","RHV",634,null,null,null,null,634,126.8,63.4,null,null,null,null,null,null,null,null,null,null,null,null,null,null,null,null,634]
[16,"LEJOLY Daniel","LIE","61H01549","RHV",622,null,null,null,null,622,124.4,62.2,null,null,null,null,null,null,null,null,null,622]
[17,"NATALIS Joseph","CAJ","42H01967","RHV",575,null,null,null,null,575,115,57.5,null,null,null,null,null,null,null,null,575]
[18,"METDEPENNINGEN Luc","MDY","59H02050","RHV",487,null,null,null,null,487,97.4,48.7,null,null,null,null,null,null,null,null,null,null,null,null,null,null,487]
[19,"DEPROOST Michel","SSK",null,"RHV",487,null,null,null,null,487,97.4,48.7,null,null,null,null,null,null,null,null,null,null,null,null,null,null,null,487]
[20,"DE BON  Pierre","LFE","57H03719","RHV",470,null,null,null,null,470,94,47,null,null,null,null,null,null,null,null,null,null,null,null,null,470]
[21,"X1",null,null,"RHV",null,null,null,null,null,0,0,0]
[22,"D'HEUR Michel","FAO","46H00532","RHV",null,null,null,null,null,0,0,0]
[23,"FOURNIER Gérard","BTS","55H02754","RHV",null,null,null,null,null,0,0,0]
[24,"X",null,null,"RHV",null,null,null,null,null,0,0,0]
[25,"VANDEN BOGGAARR Marc","ABA ","57H00558","RHV",null,null,null,null,null,0,0,0]
[26,"WIGGELEER Patrick","GSR","56H00096","RHV",null,null,null,null,null,0,0,0]
[27,"PENA Victor","CTH","54H01714","RHV",null,null,null,null,null,0,0,0]
[28,"GRAVAR Pierre","ECA","52H01303","RHV",null,null,null,null,null,0,0,0]
[29,"DELNATTE Georges","LIE","58H02914","RHV",null,null,null,null,null,0,0,0]
[30,"PETRUS Gus","GAU","54H00363","RHV",null,null,null,null,null,0,0,0]
[31,"RANDLE Daniel","CMA","47H00700","RHV",null,null,null,null,null,0,0,0]
[32,"NOSSENT Christian","SSK","53H00269","RHV",null,null,null,null,null,0,0,0]
[33,"LUCAS André (recurve)","SSC  ","55H01262","RHV",null,null,null,null,null,{"$f":"SUM(F37:J37)","v":0},{"$f":"K37/5","v":0},{"$f":"L37/2","v":0}]
[34,"DURIEUX Marc","SSC  ","57H01263","RHV",null,null,null,null,null,0,0,0]
[35,"ANTOINE Pol","GAU",null,"RHV",null,null,null,null,null,0,0,0]
[36,"STAINIER Robert","ABA ","46H00639","RHV",null,null,null,null,null,0,0,0]
[37,"CHABEAU Andre","MDY","57H03240","RHV",null,null,null,null,null,0,0,0]
[38,"GESSA Stefano","CAM","45H01355","RHV",null,null,null,null,null,0,0,0]
[39,"VANDERVELDEN Daniel","HUY  ","51H02731","RHV",null,null,null,null,null,0,0,0]
[40,"VANMEENEN Philippe","FBG","57H03948","RHV",null,null,null,null,null,0,0,0]
[41,"PIETTE Alain","FBG","54H03645","RHV",null,null,null,null,null,0,0,0]
[42,"RENARD René","SSK",null,"RHV",null,null,null,null,null,0,0,0]
[43,"DE GREEF Jean","SSK","46H00331","RHV",null,null,null,null,null,0,0,0]
[44,"BOEVER Pierre","TAB","56H02663","RHV",null,null,null,null,null,0,0,0]
[45,"FASSOTTE Charly","CTH","46H01723","RHV",null,null,null,null,null,0,0,0]
[46,"RENNEAU Jean-Noel","ADS","59H02001","RHV",null,null,null,null,null,0,0,0]
[47,"REIBER Guy","GSR","46H00175","RHV",null,null,null,null,null,0,0,0]
[48,"THEYS Marc","LFU","56H04345","RHV",null,null,null,null,null,0,0,0]
[49,"VANDENBERGHE Daniel","CAB","51H02731","RHV",null,null,null,null,null,0,0,0]
[50,"DEBATY Dominique","GAU",null,"RHV",null,null,null,null,null,0,0,0]
[51,"MAQUET Gilbert (recurve)","ACF  ","53H02240","RHV",null,null,null,null,null,0,0,0]
[52,"MAQUET Gilbert (recurve)","ACF  ","53H02240","RHV",null,null,null,null,null,0,0,0]
[""]
[""]
["",null,"La macro est déclenchée par toute entrée d'une valeur dans le tableau N5:BW20 (modifier le plage si nécessaire dans la macro)"]
[""]
[""]
[""]
[""]
[""]
[""]
[""]
[""]
[""]
[""]
[""]
[{"$f":"IF(B71<>\"\",A70+1,\"\")","v":""}]
[{"$f":"IF(B72<>\"\",A71+1,\"\")","v":""}]
[{"$f":"IF(B73<>\"\",A72+1,\"\")","v":""}]
[{"$f":"IF(B74<>\"\",A73+1,\"\")","v":""}]

{"sheet":"25M2027","index":18,"n_rows":100,"n_cols":42,"rows_kept":100,"cut":false,"hidden":false,"merged":[]}
[]
[]
[null,"Nom","Club","Matricule","Cat.","Tir 1 ","Tir 2","Tir 3","Tir 4","Tir 5","Total","M/600","M/300",null,null,null,null,null,"PAC","GAU","ANT","ITW","LIE","ANT","BTS","CEN","ANT","CAS","HAC","GAU","LIE","ACG","CMA","LAC","RCM","MDY","ECA","FGV","GSR","LIE","BTS","FOA"]
[]
[{"$f":"IF(B5<>\"\",A4+1,\"\")","v":1},"OLBRECHTS Pierre","LAJ","56H00822","RHV",641,625,617,613,603,{"$f":"SUM(F5:J5)","v":3099},{"$f":"K5/5","v":619.79999999999995},{"$f":"L5/2","v":309.89999999999998},null,null,null,null,null,null,null,null,641,601,null,625,613,null,602,617,null,603]
[2,"PIERRE Auguste","CAJ","56H04788","RHV",621,605,604,600,598,3028,605.6,302.8,null,null,null,null,null,null,null,null,null,null,null,598,605,null,621,587,null,600,604]
[3,"SKORUPKA Guy","CEN","57H01040","RHV",620,615,600,598,581,3014,602.79999999999995,301.39999999999998,null,null,null,null,null,null,null,null,null,null,null,620,615,581,null,600,577,568,598]
[4,"COCQUYT Francis","ACM","60H01688","RHV",602,592,573,537,269,2573,514.6,257.3,null,null,null,null,null,null,null,null,573,269,null,null,null,null,537,602,null,null,592]
[5,"PETRONS Joel","LFU","49H00899","RHV",554,516,504,500,474,2548,509.6,254.8,null,null,null,null,null,null,null,null,504,null,null,516,554,null,500,474]
[6,"NEYRET Robert","LAJ","49H00841","RHV",533,520,500,427,379,2359,471.8,235.9,null,null,null,null,null,null,null,null,null,427,null,533,null,null,500,520,null,379]
[7,"DELCOMINETTE guy","LIE","48H01514","RHV",581,531,512,484,126,2234,446.8,223.4,null,null,null,null,null,null,null,null,531,484,null,581,null,null,512,126]
[8,"FRYNS Guido","ITW","59H03148","RHV",553,500,494,480,null,2027,405.4,202.7,null,null,null,null,null,null,null,null,null,494,null,null,500,null,480,553]
[9,"LEJEUNE Paul","LFE","56H00919","RHV",545,506,476,null,null,1527,305.39999999999998,152.69999999999999,null,null,null,null,null,null,null,null,null,null,506,null,476,545]
[10,"BACOT Paul (recurve)","HUY","50H01459","RHV",519,508,480,null,null,1507,301.39999999999998,150.69999999999999,null,null,null,null,null,null,null,null,null,null,null,508,null,null,null,480,null,null,519]
[11,"BARBIEUX Romain","CAJ","57H05709","RHV",525,480,465,null,null,1470,294,147,null,null,null,null,null,null,null,null,525,null,null,null,null,null,480,465]
[12,"MEYER Marc","GPE","59H04233","RHV",624,620,null,null,null,1244,248.8,124.4,null,null,null,null,null,null,null,null,null,null,null,null,620,null,null,null,624]
[13,"DEGHAYE Pierre","ACM","55H01808","RHV",597,345,null,null,null,942,188.4,94.2,null,null,null,null,null,null,null,null,597,345]
[14,"LIBERT Marc","ACG","60H06362","RHV",485,435,null,null,null,920,184,92,null,null,null,null,null,null,null,null,null,null,null,null,null,null,435,null,null,null,485]
[15,"FIORA Joel","SSK","57H00342","RHV",634,null,null,null,null,634,126.8,63.4,null,null,null,null,null,null,null,null,null,null,null,null,null,null,null,null,634]
[16,"LEJOLY Daniel","LIE","61H01549","RHV",622,null,null,null,null,622,124.4,62.2,null,null,null,null,null,null,null,null,null,622]
[17,"NATALIS Joseph","CAJ","42H01967","RHV",575,null,null,null,null,575,115,57.5,null,null,null,null,null,null,null,null,575]
[18,"METDEPENNINGEN Luc","MDY","59H02050","RHV",487,null,null,null,null,487,97.4,48.7,null,null,null,null,null,null,null,null,null,null,null,null,null,null,487]
[19,"DEPROOST Michel","SSK",null,"RHV",487,null,null,null,null,487,97.4,48.7,null,null,null,null,null,null,null,null,null,null,null,null,null,null,null,487]
[20,"DE BON  Pierre","LFE","57H03719","RHV",470,null,null,null,null,470,94,47,null,null,null,null,null,null,null,null,null,null,null,null,null,470]
[21,"PENA Victor","CTH","54H01714","RHV",null,null,null,null,null,0,0,0]
[22,"X1",null,null,"RHV",null,null,null,null,null,0,0,0]
[23,"D'HEUR Michel","FAO","46H00532","RHV",null,null,null,null,null,0,0,0]
[24,"FOURNIER Gérard","BTS","55H02754","RHV",null,null,null,null,null,0,0,0]
[25,"X",null,null,"RHV",null,null,null,null,null,0,0,0]
[26,"VANDEN BOGGAARR Marc","ABA ","57H00558","RHV",null,null,null,null,null,0,0,0]
[27,"WIGGELEER Patrick","GSR","56H00096","RHV",null,null,null,null,null,0,0,0]
[28,"GRAVAR Pierre","ECA","52H01303","RHV",null,null,null,null,null,0,0,0]
[29,"DELNATTE Georges","LIE","58H02914","RHV",null,null,null,null,null,0,0,0]
[30,"PETRUS Gus","GAU","54H00363","RHV",null,null,null,null,null,0,0,0]
[31,"RANDLE Daniel","CMA","47H00700","RHV",null,null,null,null,null,0,0,0]
[32,"NOSSENT Christian","SSK","53H00269","RHV",null,null,null,null,null,0,0,0]
[1,"LUCAS André (recurve)","SSC  ","55H01262","RHV",null,null,null,null,null,{"$f":"SUM(F37:J37)","v":0},{"$f":"K37/5","v":0},{"$f":"L37/2","v":0}]
[{"$f":"IF(B38<>\"\",A37+1,\"\")","v":2},"DURIEUX Marc","SSC  ","57H01263","RHV",null,null,null,null,null,0,0,0]
[3,"ANTOINE Pol","GAU",null,"RHV",null,null,null,null,null,0,0,0]
[4,"STAINIER Robert","ABA ","46H00639","RHV",null,null,null,null,null,0,0,0]
[5,"CHABEAU Andre","MDY","57H03240","RHV",null,null,null,null,null,0,0,0]
[6,"GESSA Stefano","CAM","45H01355","RHV",null,null,null,null,null,0,0,0]
[7,"VANDERVELDEN Daniel","HUY  ","51H02731","RHV",null,null,null,null,null,0,0,0]
[8,"VANMEENEN Philippe","FBG","57H03948","RHV",null,null,null,null,null,0,0,0]
[9,"PIETTE Alain","FBG","54H03645","RHV",null,null,null,null,null,0,0,0]
[10,"RENARD René","SSK",null,"RHV",null,null,null,null,null,0,0,0]
[11,"DE GREEF Jean","SSK","46H00331","RHV",null,null,null,null,null,0,0,0]
[12,"BOEVER Pierre","TAB","56H02663","RHV",null,null,null,null,null,0,0,0]
[13,"FASSOTTE Charly","CTH","46H01723","RHV",null,null,null,null,null,0,0,0]
[14,"RENNEAU Jean-Noel","ADS","59H02001","RHV",null,null,null,null,null,0,0,0]
[15,"REIBER Guy","GSR","46H00175","RHV",null,null,null,null,null,0,0,0]
[16,"THEYS Marc","LFU","56H04345","RHV",null,null,null,null,null,0,0,0]
[17,"VANDENBERGHE Daniel","CAB","51H02731","RHV",null,null,null,null,null,0,0,0]
[18,"DEBATY Dominique","GAU",null,"RHV",null,null,null,null,null,0,0,0]
[19,"MAQUET Gilbert (recurve)","ACF  ","53H02240","RHV",null,null,null,null,null,0,0,0]
[20,"MAQUET Gilbert (recurve)","ACF  ","53H02240","RHV",null,null,null,null,null,0,0,0]
[""]
[""]
[""]
[""]
[""]
[""]
[""]
[""]
[""]
[""]
[""]
[""]
[""]
[""]
[""]
[""]
[""]
[""]
[]
[]
[]
[]
[]
[]
[]
[]
[]
[]
[]
[]
[]
[]
[]
[]
[]
[]
[]
[]
[]
[]
[]
[]
[]
[null,null,null,"La macro est déclenchée par toute entrée d'une valeur dans le tableau N5:BW20 (modifier le plage si nécessaire dans la macro)"]

{"sheet":"25Mtest","index":19,"n_rows":100,"n_cols":42,"rows_kept":100,"cut":false,"hidden":false,"merged":[]}
[]
[]
[null,"Nom","Club","Matricule","Cat.","Tir 1 ","Tir 2","Tir 3","Tir 4","Tir 5","Total","M/600","M/300",null,null,null,null,null,"PAC","GAU","ANT","ITW","LIE","ANT","BTS","CEN","ANT","CAS","HAC","GAU","LIE","ACG","CMA","LAC","RCM","MDY","ECA","FGV","GSR","LIE","BTS","FOA"]
[]
[{"$f":"IF(B5<>\"\",A4+1,\"\")","v":1},"OLBRECHTS Pierre","LAJ","56H00822","RHV",641,625,617,613,603,{"$f":"SUM(F5:J5)","v":3099},{"$f":"K5/5","v":619.79999999999995},{"$f":"L5/2","v":309.89999999999998},null,null,null,null,null,null,null,null,641,601,null,625,613,null,602,617,null,603]
[2,"PIERRE Auguste","CAJ","56H04788","RHV",621,605,604,600,598,3028,605.6,302.8,null,null,null,null,null,null,null,null,null,null,null,598,605,null,621,587,null,600,604]
[3,"SKORUPKA Guy","CEN","57H01040","RHV",620,615,600,598,581,3014,602.79999999999995,301.39999999999998,null,null,null,null,null,null,null,null,null,null,null,620,615,581,null,600,577,568,598]
[4,"COCQUYT Francis","ACM","60H01688","RHV",602,592,573,537,269,2573,514.6,257.3,null,null,null,null,null,null,null,null,573,269,null,null,null,null,537,602,null,null,592]
[5,"PETRONS Joel","LFU","49H00899","RHV",554,516,504,500,474,2548,509.6,254.8,null,null,null,null,null,null,null,null,504,null,null,516,554,null,500,474]
[6,"NEYRET Robert","LAJ","49H00841","RHV",533,520,500,427,379,2359,471.8,235.9,null,null,null,null,null,null,null,null,null,427,null,533,null,null,500,520,null,379]
[7,"DELCOMINETTE guy","LIE","48H01514","RHV",581,531,512,484,126,2234,446.8,223.4,null,null,null,null,null,null,null,null,531,484,null,581,null,null,512,126]
[8,"FRYNS Guido","ITW","59H03148","RHV",553,500,494,480,null,2027,405.4,202.7,null,null,null,null,null,null,null,null,null,494,null,null,500,null,480,553]
[9,"LEJEUNE Paul","LFE","56H00919","RHV",545,506,476,null,null,1527,305.39999999999998,152.69999999999999,null,null,null,null,null,null,null,null,null,null,506,null,476,545]
[10,"BACOT Paul (recurve)","HUY","50H01459","RHV",519,508,480,null,null,1507,301.39999999999998,150.69999999999999,null,null,null,null,null,null,null,null,null,null,null,508,null,null,null,480,null,null,519]
[11,"BARBIEUX Romain","CAJ","57H05709","RHV",525,480,465,null,null,1470,294,147,null,null,null,null,null,null,null,null,525,null,null,null,null,null,480,465]
[12,"MEYER Marc","GPE","59H04233","RHV",624,620,null,null,null,1244,248.8,124.4,null,null,null,null,null,null,null,null,null,null,null,null,620,null,null,null,624]
[13,"DEGHAYE Pierre","ACM","55H01808","RHV",597,345,null,null,null,942,188.4,94.2,null,null,null,null,null,null,null,null,597,345]
[14,"LIBERT Marc","ACG","60H06362","RHV",485,435,null,null,null,920,184,92,null,null,null,null,null,null,null,null,null,null,null,null,null,null,435,null,null,null,485]
[15,"FIORA Joel","SSK","57H00342","RHV",634,null,null,null,null,634,126.8,63.4,null,null,null,null,null,null,null,null,null,null,null,null,null,null,null,null,634]
[16,"LEJOLY Daniel","LIE","61H01549","RHV",622,null,null,null,null,622,124.4,62.2,null,null,null,null,null,null,null,null,null,622]
[17,"NATALIS Joseph","CAJ","42H01967","RHV",575,null,null,null,null,575,115,57.5,null,null,null,null,null,null,null,null,575]
[18,"METDEPENNINGEN Luc","MDY","59H02050","RHV",487,null,null,null,null,487,97.4,48.7,null,null,null,null,null,null,null,null,null,null,null,null,null,null,487]
[19,"DEPROOST Michel","SSK",null,"RHV",487,null,null,null,null,487,97.4,48.7,null,null,null,null,null,null,null,null,null,null,null,null,null,null,null,487]
[20,"DE BON  Pierre","LFE","57H03719","RHV",470,null,null,null,null,470,94,47,null,null,null,null,null,null,null,null,null,null,null,null,null,470]
[21,"X1",null,null,"RHV",null,null,null,null,null,0,0,0]
[22,"D'HEUR Michel","FAO","46H00532","RHV",null,null,null,null,null,0,0,0]
[23,"FOURNIER Gérard","BTS","55H02754","RHV",null,null,null,null,null,0,0,0]
[24,"X",null,null,"RHV",null,null,null,null,null,0,0,0]
[25,"VANDEN BOGGAARR Marc","ABA ","57H00558","RHV",null,null,null,null,null,0,0,0]
[26,"WIGGELEER Patrick","GSR","56H00096","RHV",null,null,null,null,null,0,0,0]
[27,"PENA Victor","CTH","54H01714","RHV",null,null,null,null,null,0,0,0]
[28,"GRAVAR Pierre","ECA","52H01303","RHV",null,null,null,null,null,0,0,0]
[29,"DELNATTE Georges","LIE","58H02914","RHV",null,null,null,null,null,0,0,0]
[30,"PETRUS Gus","GAU","54H00363","RHV",null,null,null,null,null,0,0,0]
[31,"RANDLE Daniel","CMA","47H00700","RHV",null,null,null,null,null,0,0,0]
[32,"NOSSENT Christian","SSK","53H00269","RHV",null,null,null,null,null,0,0,0]
[1,"LUCAS André (recurve)","SSC  ","55H01262","RHV",null,null,null,null,null,{"$f":"SUM(F37:J37)","v":0},{"$f":"K37/5","v":0},{"$f":"L37/2","v":0}]
[{"$f":"IF(B38<>\"\",A37+1,\"\")","v":2},"DURIEUX Marc","SSC  ","57H01263","RHV",null,null,null,null,null,0,0,0]
[3,"ANTOINE Pol","GAU",null,"RHV",null,null,null,null,null,0,0,0]
[4,"STAINIER Robert","ABA ","46H00639","RHV",null,null,null,null,null,0,0,0]
[5,"CHABEAU Andre","MDY","57H03240","RHV",null,null,null,null,null,0,0,0]
[6,"GESSA Stefano","CAM","45H01355","RHV",null,null,null,null,null,0,0,0]
[7,"VANDERVELDEN Daniel","HUY  ","51H02731","RHV",null,null,null,null,null,0,0,0]
[8,"VANMEENEN Philippe","FBG","57H03948","RHV",null,null,null,null,null,0,0,0]
[9,"PIETTE Alain","FBG","54H03645","RHV",null,null,null,null,null,0,0,0]
[10,"RENARD René","SSK",null,"RHV",null,null,null,null,null,0,0,0]
[11,"DE GREEF Jean","SSK","46H00331","RHV",null,null,null,null,null,0,0,0]
[12,"BOEVER Pierre","TAB","56H02663","RHV",null,null,null,null,null,0,0,0]
[13,"FASSOTTE Charly","CTH","46H01723","RHV",null,null,null,null,null,0,0,0]
[14,"RENNEAU Jean-Noel","ADS","59H02001","RHV",null,null,null,null,null,0,0,0]
[15,"REIBER Guy","GSR","46H00175","RHV",null,null,null,null,null,0,0,0]
[16,"THEYS Marc","LFU","56H04345","RHV",null,null,null,null,null,0,0,0]
[17,"VANDENBERGHE Daniel","CAB","51H02731","RHV",null,null,null,null,null,0,0,0]
[18,"DEBATY Dominique","GAU",null,"RHV",null,null,null,null,null,0,0,0]
[19,"MAQUET Gilbert (recurve)","ACF  ","53H02240","RHV",null,null,null,null,null,0,0,0]
[20,"MAQUET Gilbert (recurve)","ACF  ","53H02240","RHV",null,null,null,null,null,0,0,0]
[""]
[""]
[""]
[""]
[""]
[""]
[""]
[""]
[""]
[""]
[""]
[""]
[""]
[""]
[""]
[""]
[""]
[""]
[]
[]
[]
[]
[]
[]
[]
[]
[]
[]
[]
[]
[]
[]
[]
[]
[]
[]
[]
[]
[]
[]
[]
[]
[]
[null,null,null,"La macro est déclenchée par toute entrée d'une valeur dans le tableau N5:BW20 (modifier le plage si nécessaire dans la macro)"]

{"sheet":"Feuil1","index":20,"n_rows":54,"n_cols":22,"rows_kept":54,"cut":false,"hidden":false,"merged":[]}
[]
[]
[null,"OLBRECHTS Pierre","LAJ","56H00822","RHV",641,625,617,613,603,null,641,601,null,625,613,null,602,617,null,603]
[null,"PIERRE Auguste","CAJ","56H04788","RHV",621,605,604,600,598,null,null,null,null,598,605,null,621,587,null,600,604]
[null,"SKORUPKA Guy","CEN","57H01040","RHV",620,615,600,598,581,null,null,null,null,620,615,581,null,600,577,568,598]
[null,"COCQUYT Francis","ACM","60H01688","RHV",602,592,573,537,269,null,573,269,null,null,null,null,537,602,null,null,592]
[null,"PETRONS Joel","LFU","49H00899","RHV",554,516,504,500,474,null,504,null,null,516,554,null,500,474]
[null,"NEYRET Robert","LAJ","49H00841","RHV",533,520,500,427,379,null,null,427,null,533,null,null,500,520,null,379]
[null,"DELCOMINETTE guy","LIE","48H01514","RHV",581,531,512,484,126,null,531,484,null,581,null,null,512,126]
[null,"FRYNS Guido","ITW","59H03148","RHV",553,500,494,480,null,null,null,494,null,null,500,null,480,553]
[null,"LEJEUNE Paul","LFE","56H00919","RHV",545,506,476,null,null,null,null,null,506,null,476,545]
[null,"BACOT Paul (recurve)","HUY","50H01459","RHV",519,508,480,null,null,null,null,null,null,508,null,null,null,480,null,null,519]
[null,"BARBIEUX Romain","CAJ","57H05709","RHV",525,480,465,null,null,null,525,null,null,null,null,null,480,465]
[null,"MEYER Marc","GPE","59H04233","RHV",624,620,null,null,null,null,null,null,null,null,620,null,null,null,624]
[null,"DEGHAYE Pierre","ACM","55H01808","RHV",597,345,null,null,null,null,597,345]
[null,"LIBERT Marc","ACG","60H06362","RHV",485,435,null,null,null,null,null,null,null,null,null,null,435,null,null,null,485]
[null,"FIORA Joel","SSK","57H00342","RHV",634,null,null,null,null,null,null,null,null,null,null,null,null,null,634]
[null,"LEJOLY Daniel","LIE","61H01549","RHV",622,null,null,null,null,null,null,622]
[null,"NATALIS Joseph","CAJ","42H01967","RHV",575,null,null,null,null,null,575]
[null,"METDEPENNINGEN Luc","MDY","59H02050","RHV",487,null,null,null,null,null,null,null,null,null,null,null,487]
[null,"DEPROOST Michel","SSK",null,"RHV",487,null,null,null,null,null,null,null,null,null,null,null,null,487]
[null,"DE BON  Pierre","LFE","57H03719","RHV",470,null,null,null,null,null,null,null,null,null,null,470]
[null,"X1",null,null,"RHV"]
[null,"D'HEUR Michel","FAO","46H00532","RHV"]
[null,"FOURNIER Gérard","BTS","55H02754","RHV"]
[null,"X",null,null,"RHV"]
[null,"VANDEN BOGGAARR Marc","ABA ","57H00558","RHV"]
[null,"WIGGELEER Patrick","GSR","56H00096","RHV"]
[null,"PENA Victor","CTH","54H01714","RHV"]
[null,"GRAVAR Pierre","ECA","52H01303","RHV"]
[null,"DELNATTE Georges","LIE","58H02914","RHV"]
[null,"PETRUS Gus","GAU","54H00363","RHV"]
[null,"RANDLE Daniel","CMA","47H00700","RHV"]
[null,"NOSSENT Christian","SSK","53H00269","RHV"]
[null,"LUCAS André (recurve)","SSC  ","55H01262","RHV"]
[null,"DURIEUX Marc","SSC  ","57H01263","RHV"]
[null,"ANTOINE Pol","GAU",null,"RHV"]
[null,"STAINIER Robert","ABA ","46H00639","RHV"]
[null,"CHABEAU Andre","MDY","57H03240","RHV"]
[null,"GESSA Stefano","CAM","45H01355","RHV"]
[null,"VANDERVELDEN Daniel","HUY  ","51H02731","RHV"]
[null,"VANMEENEN Philippe","FBG","57H03948","RHV"]
[null,"PIETTE Alain","FBG","54H03645","RHV"]
[null,"RENARD René","SSK",null,"RHV"]
[null,"DE GREEF Jean","SSK","46H00331","RHV"]
[null,"BOEVER Pierre","TAB","56H02663","RHV"]
[null,"FASSOTTE Charly","CTH","46H01723","RHV"]
[null,"RENNEAU Jean-Noel","ADS","59H02001","RHV"]
[null,"REIBER Guy","GSR","46H00175","RHV"]
[null,"THEYS Marc","LFU","56H04345","RHV"]
[null,"VANDENBERGHE Daniel","CAB","51H02731","RHV"]
[null,"DEBATY Dominique","GAU",null,"RHV"]
[null,"MAQUET Gilbert (recurve)","ACF  ","53H02240","RHV"]
[null,"MAQUET Gilbert (recurve)","ACF  ","53H02240","RHV"]

{"sheet":"Feuil3","index":21,"n_rows":19,"n_cols":11,"rows_kept":19,"cut":false,"hidden":false,"merged":[]}
[]
[]
[]
["1   VANDEN BOGGAARR Marc","ABA ","57H00558","RHV",526,518,518,513,508,{"$f":"SUM(E4:I4)","v":2583},516.6]
["2   NATALIS Joseph","CAJ","42H01967","RHV",527,524,510,510,510,{"$f":"SUM(E5:I5)","v":2581},516.20000000000005]
["3   LUCAS André (recurve)","SSC  ","55H01262","RHV",527,523,521,502,487,2560,512]
["4   VANDERVELDEN Daniel","HUY  ","51H02731","RHV",532,506,506,502,496,2542,508.4]
["5   PETRONS Joel","LFU","49H00899","RHV",512,510,508,499,499,2528,505.6]
["6   SKORUPKA Guy","CEN","57H01040","RHV",510,505,504,502,496,2517,503.4]
["7   MAQUET Gilbert (recurve)","ACF  ","53H02240","RHV",525,524,508,480,466,2503,500.6]
["8   OLBRECHTS Pierre","LAJ","56H00822","RHV",521,499,495,486,486,2487,497.4]
["9   DEGHAYE Pierre","ACM","55H01808","RHV",518,505,489,486,476,2474,494.8]
["10  FOURNIER Gérard","BTS","55H02754","RHV",509,501,499,486,474,2469,493.8]
["11  GRAVAR Pierre","ECA","52H01303","RHV",503,496,490,490,485,2464,492.8]
["12  PENA Victor","CTH","54H01714","RHV",493,493,484,467,465,2402,480.4]
["13  PETRUS Gus","GAU","54H00363","RHV",484,483,469,458,455,2349,469.8]
["14  BACOT Paul (recurve)","HUY","50H01459","RHV",483,480,474,447,443,2327,465.4]
["15  RANDLE Daniel","CMA","47H00700","RHV",470,463,456,448,441,2278,455.6]
["16  NEYRET Robert","LAJ","49H00841","RHV",468,444,428,416,347,2103,420.6]